Workbook

Sheet Table1A List of required stocks
A1: Table1A: List of required stocks
L2: WP years | M2: 2021
L3: AR year | M3: 2021
A4: MS | B4: Reference years | C4: Species | D4: Region | E4: RFMO/RFO/IO | F4: Area / Stock | G4: Selected for sampling (Y/N) | H4: Average landings in the reference years (tons) | I4: EU TAC (if any) (%) | J4: Share (%) in EU landings | K4: Threshold (Y/N) | L4: Comments | M4: Changes in species landings
A5: IRL | B5: 2015-2018 | C5: Anguilla anguilla | D5: North Sea (ICES areas IIIa and IV), Eastern Arctic (ICES areas I and II) | E5: ICES | F5: I, II | G5: N | H5: None | J5: None | K5: Y | L5: DATA SOURCE for COLUMN I: Reference years 2015-2018 used when calculating %share in EU landings . Data source for % EU TAC is from the MARE FIDES (https://webgate.ec.europa.eu/fides/index.cfm) database and % share of the landings is from EUROSTAT (via ICES) for the years 2015-2017 (because 2018 data are still preliminary).
A6: IRL | B6: 2015-2018 | C6: Brosme brosme | D6: North Sea (ICES areas IIIa and IV), Eastern Arctic (ICES areas I and II) | E6: ICES | F6: I, II | G6: N | H6: None | I6: None | K6: Y
A7: IRL | B7: 2015-2018 | C7: Clupea harengus | D7: North Sea (ICES areas IIIa and IV), Eastern Arctic (ICES areas I and II) | E7: ICES | F7: I, II, | G7: N | H7: 2657 | I7: 9 | K7: Y | L7: Sum of <10% quota = 19% Landings increased from 1900t
A8: IRL | B8: 2015-2018 | C8: Gadus morhua | D8: North Sea (ICES areas IIIa and IV), Eastern Arctic (ICES areas I and II) | E8: ICES | F8: I, II | G8: N | H8: <200 | I8: 1 | K8: Y
A9: IRL | B9: 2015-2018 | C9: Mallotus villosus | D9: North Sea (ICES areas IIIa and IV), Eastern Arctic (ICES areas I and II) | E9: ICES | F9: I, II | G9: N | H9: None | I9: None | K9: Y
A10: IRL | B10: 2015-2018 | C10: Melanogrammus aeglefinus | D10: North Sea (ICES areas IIIa and IV), Eastern Arctic (ICES areas I and II) | E10: ICES | F10: I, II | G10: N | H10: <200 | I10: None | K10: Y
A11: IRL | B11: 2015-2018 | C11: Micromesistius poutassou | D11: North Sea (ICES areas IIIa and IV), Eastern Arctic (ICES areas I and II) | E11: ICES | F11: I-II | G11: - | H11: <200 | I11: - | J11: - | K11: - | L11: Included in the "I-IX, XII, XIV" stock
A12: IRL | B12: 2015-2018 | C12: Pandalus borealis | D12: North Sea (ICES areas IIIa and IV), Eastern Arctic (ICES areas I and II) | E12: ICES | F12: I, II | G12: N | H12: None | I12: None | K12: Y
A13: IRL | B13: 2015-2018 | C13: Pollachius virens | D13: North Sea (ICES areas IIIa and IV), Eastern Arctic (ICES areas I and II) | E13: ICES | F13: I, II | G13: N | H13: None | I13: 9 | K13: Y | L13: Landings increased but not selected for sampling
A14: IRL | B14: 2015-2018 | C14: Reinhardtius hippoglossoides | D14: North Sea (ICES areas IIIa and IV), Eastern Arctic (ICES areas I and II) | E14: ICES | F14: I, II | G14: N | H14: None | J14: None | K14: Y
A15: IRL | B15: 2015-2018 | C15: Salmo salar | D15: North Sea (ICES areas IIIa and IV), Eastern Arctic (ICES areas I and II) | E15: ICES | F15: I, II | G15: N | H15: None | J15: None | K15: Y
A16: IRL | B16: 2015-2018 | C16: Scomber scombrus | D16: North Sea (ICES areas IIIa and IV), Eastern Arctic (ICES areas I and II) | E16: ICES | F16: II, | G16: - | H16: 1 | I16: - | J16: - | K16: - | L16: Included in the "II, IIIa, IV, V, VI, VII, VIII, IX" stock Landings decreased from 580t
A17: IRL | B17: 2015-2018 | C17: Sebastes marinus. | D17: North Sea (ICES areas IIIa and IV), Eastern Arctic (ICES areas I and II) | E17: ICES | F17: I, II | G17: N | H17: None | I17: None | K17: Y
A18: IRL | B18: 2015-2018 | C18: Sebastes mentella. | D18: North Sea (ICES areas IIIa and IV), Eastern Arctic (ICES areas I and II) | E18: ICES | F18: I, II | G18: N | H18: None | I18: None | K18: Y
A19: IRL | B19: 2015-2018 | C19: Trachurus trachurus | D19: North Sea (ICES areas IIIa and IV), Eastern Arctic (ICES areas I and II) | E19: ICES | F19: IIa, | G19: - | H19: None | I19: - | J19: - | K19: - | L19: Included in the "IIa, IVa, Vb, VIa, VIIa-c, e-k, VIIIabde" stock
A20: IRL | B20: 2015-2018 | C20: Ammodytidae | D20: North Sea (ICES areas IIIa and IV), Eastern Arctic (ICES areas I and II) | E20: ICES | F20: IV | G20: N | H20: None | I20: None | K20: Y
A21: IRL | B21: 2015-2018 | C21: Anarhichas spp. | D21: North Sea (ICES areas IIIa and IV), Eastern Arctic (ICES areas I and II) | E21: NA | F21: IV | G21: N | H21: None | J21: None | K21: Y
A22: IRL | B22: 2015-2018 | C22: Anguilla anguilla | D22: North Sea (ICES areas IIIa and IV), Eastern Arctic (ICES areas I and II) | E22: ICES | F22: IV, VIId | G22: N | H22: None | J22: None | K22: Y
A23: IRL | B23: 2015-2018 | C23: Argentina spp. | D23: North Sea (ICES areas IIIa and IV), Eastern Arctic (ICES areas I and II) | E23: ICES | F23: IV | G23: N | H23: None | I23: 1 | K23: Y
A24: IRL | B24: 2015-2018 | C24: Brosme brosme | D24: North Sea (ICES areas IIIa and IV), Eastern Arctic (ICES areas I and II) | E24: ICES | F24: IV | G24: N | H24: None | I24: None | K24: Y
A25: IRL | B25: 2015-2018 | C25: Clupea harengus | D25: North Sea (ICES areas IIIa and IV), Eastern Arctic (ICES areas I and II) | E25: ICES | F25: IV, VIId | G25: N | H25: 503 | I25: None | K25: Y | L25: Now above threshold but we have no TAC for sampling years
A26: IRL | B26: 2015-2018 | C26: Crangon crangon | D26: North Sea (ICES areas IIIa and IV), Eastern Arctic (ICES areas I and II) | E26: ICES | F26: IV, VIId | G26: N | H26: None | J26: None | K26: Y
A27: IRL | B27: 2015-2018 | C27: Dicentrarchus labrax | D27: North Sea (ICES areas IIIa and IV), Eastern Arctic (ICES areas I and II) | E27: ICES | F27: IV, VIId | G27: N | H27: None | J27: None | K27: Y
A28: IRL | B28: 2015-2018 | C28: Eutrigla gurnardus | D28: North Sea (ICES areas IIIa and IV), Eastern Arctic (ICES areas I and II) | E28: NA | F28: IV | G28: N | H28: None | J28: None | K28: Y
A29: IRL | B29: 2015-2018 | C29: Gadus morhua | D29: North Sea (ICES areas IIIa and IV), Eastern Arctic (ICES areas I and II) | E29: ICES | F29: IV, VIId | G29: N | H29: None | I29: None | K29: Y
A30: IRL | B30: 2015-2018 | C30: Glyptocephalus cynoglossus | D30: North Sea (ICES areas IIIa and IV), Eastern Arctic (ICES areas I and II) | E30: NA | F30: IV | G30: N | H30: None | I30: None | K30: Y
A31: IRL | B31: 2015-2018 | C31: Helicolenus dactylopterus | D31: North Sea (ICES areas IIIa and IV), Eastern Arctic (ICES areas I and II) | E31: NA | F31: IV | G31: N | H31: None | I31: None | K31: Y
A32: IRL | B32: 2015-2018 | C32: Lepidorhombus boscii | D32: North Sea (ICES areas IIIa and IV), Eastern Arctic (ICES areas I and II) | E32: ICES | F32: IV, VIId | G32: N | H32: None | I32: None | K32: Y
A33: IRL | B33: 2015-2018 | C33: Lepidorhombus whiffiagonis | D33: North Sea (ICES areas IIIa and IV), Eastern Arctic (ICES areas I and II) | E33: ICES | F33: IV, VIId | G33: N | H33: None | I33: None | K33: Y
A34: IRL | B34: 2015-2018 | C34: Limanda limanda | D34: North Sea (ICES areas IIIa and IV), Eastern Arctic (ICES areas I and II) | E34: ICES | F34: IV, VIId | G34: N | H34: None | I34: None | K34: Y
A35: IRL | B35: 2015-2018 | C35: Lophius budegassa | D35: North Sea (ICES areas IIIa and IV), Eastern Arctic (ICES areas I and II) | E35: ICES | F35: IV, VIId | G35: N | H35: None | I35: None | K35: Y
A36: IRL | B36: 2015-2018 | C36: Lophius piscatorius | D36: North Sea (ICES areas IIIa and IV), Eastern Arctic (ICES areas I and II) | E36: ICES | F36: IV | G36: N | H36: None | I36: None | K36: Y
A37: IRL | B37: 2015-2018 | C37: Macrourus berglax | D37: North Sea (ICES areas IIIa and IV), Eastern Arctic (ICES areas I and II) | E37: NA | F37: IV | G37: N | H37: None | I37: None | K37: Y
A38: IRL | B38: 2015-2018 | C38: Melanogrammus aeglefinus | D38: North Sea (ICES areas IIIa and IV), Eastern Arctic (ICES areas I and II) | E38: ICES | F38: IV | G38: N | H38: None | I38: None | K38: Y
A39: IRL | B39: 2015-2018 | C39: Merlangius merlangus | D39: North Sea (ICES areas IIIa and IV), Eastern Arctic (ICES areas I and II) | E39: ICES | F39: IV, VIId | G39: N | H39: None | I39: None | K39: Y
A40: IRL | B40: 2015-2018 | C40: Merluccius merluccius | D40: North Sea (ICES areas IIIa and IV), Eastern Arctic (ICES areas I and II) | E40: ICES | F40: IV VII | G40: N | H40: None | I40: None | K40: Y | L40: Presumably this should be IV, VId
A41: IRL | B41: 2015-2018 | C41: Micromesistius poutassou | D41: North Sea (ICES areas IIIa and IV), Eastern Arctic (ICES areas I and II) | E41: ICES | F41: IV, VIId | G41: N | H41: None | I41: None | K41: Y
A42: IRL | B42: 2015-2018 | C42: Microstomus kitt | D42: North Sea (ICES areas IIIa and IV), Eastern Arctic (ICES areas I and II) | E42: ICES | F42: IV, VIId | G42: N | H42: None | I42: None | K42: Y
A43: IRL | B43: 2015-2018 | C43: Molva dypterygia | D43: North Sea (ICES areas IIIa and IV), Eastern Arctic (ICES areas I and II) | E43: ICES | F43: IV | G43: N | H43: None | I43: 8 | K43: Y
A44: IRL | B44: 2015-2018 | C44: Molva molva | D44: North Sea (ICES areas IIIa and IV), Eastern Arctic (ICES areas I and II) | E44: ICES | F44: IV | G44: N | H44: None | I44: None | K44: Y
A45: IRL | B45: 2015-2018 | C45: Mullus barbatus | D45: North Sea (ICES areas IIIa and IV), Eastern Arctic (ICES areas I and II) | E45: NA | F45: IV, VIId | G45: N | H45: None | J45: None | K45: Y
A46: IRL | B46: 2015-2018 | C46: Mullus surmuletus | D46: North Sea (ICES areas IIIa and IV), Eastern Arctic (ICES areas I and II) | E46: NA | F46: IV, VIId | G46: N | H46: None | J46: None | K46: Y
A47: IRL | B47: 2015-2018 | C47: Nephrops norvegicus | D47: North Sea (ICES areas IIIa and IV), Eastern Arctic (ICES areas I and II) | E47: ICES | F47: all functional units | G47: N | H47: None | I47: None | K47: Y
A48: IRL | B48: 2015-2018 | C48: Pandalus borealis | D48: North Sea (ICES areas IIIa and IV), Eastern Arctic (ICES areas I and II) | E48: ICES | F48: IVa East/IVa/IV | G48: N | H48: None | I48: None | K48: Y
A49: IRL | B49: 2015-2018 | C49: Pecten maximus | D49: North Sea (ICES areas IIIa and IV), Eastern Arctic (ICES areas I and II) | E49: NA | F49: VIId | G49: N | H49: 676 | J49: 3 | K49: Y | L49: Landing increased but outside thresholds for sampling
A50: IRL | B50: 2015-2018 | C50: Phycis blennoides | D50: North Sea (ICES areas IIIa and IV), Eastern Arctic (ICES areas I and II) | E50: ICES | F50: IV | G50: N | H50: None | I50: None | K50: Y
A51: IRL | B51: 2015-2018 | C51: Phycis phycis | D51: North Sea (ICES areas IIIa and IV), Eastern Arctic (ICES areas I and II) | E51: NA | F51: IV | G51: N | H51: None | J51: None | K51: Y
A52: IRL | B52: 2015-2018 | C52: Platichthys flesus | D52: North Sea (ICES areas IIIa and IV), Eastern Arctic (ICES areas I and II) | E52: ICES | F52: IV | G52: N | H52: None | I52: None | K52: Y
A53: IRL | B53: 2015-2018 | C53: Pleuronectes platessa | D53: North Sea (ICES areas IIIa and IV), Eastern Arctic (ICES areas I and II) | E53: ICES | F53: IV | G53: N | H53: None | I53: None | K53: Y
A54: IRL | B54: 2015-2018 | C54: Pleuronectes platessa | D54: North Sea (ICES areas IIIa and IV), Eastern Arctic (ICES areas I and II) | E54: ICES | F54: VIId | G54: N | H54: None | I54: None | K54: Y
A55: IRL | B55: 2015-2018 | C55: Pollachius virens | D55: North Sea (ICES areas IIIa and IV), Eastern Arctic (ICES areas I and II) | E55: ICES | F55: IV | G55: N | H55: None | I55: None | K55: Y
A56: IRL | B56: 2015-2018 | C56: Psetta maxima | D56: North Sea (ICES areas IIIa and IV), Eastern Arctic (ICES areas I and II) | E56: ICES | F56: IV, VIId | G56: N | H56: None | I56: None | K56: Y
A57: IRL | B57: 2015-2018 | C57: Reinhardtius hippoglossoides | D57: North Sea (ICES areas IIIa and IV), Eastern Arctic (ICES areas I and II) | E57: ICES | F57: IV | G57: N | H57: None | I57: 1 | K57: Y
A58: IRL | B58: 2015-2018 | C58: Salmo salar | D58: North Sea (ICES areas IIIa and IV), Eastern Arctic (ICES areas I and II) | E58: ICES | F58: IV, VIId | G58: N | H58: None | J58: None | K58: Y
A59: IRL | B59: 2015-2018 | C59: Scomber scombrus | D59: North Sea (ICES areas IIIa and IV), Eastern Arctic (ICES areas I and II) | E59: ICES | F59: IV, VIId | G59: - | H59: 28149 | I59: - | J59: - | K59: - | L59: Included in the "II, IIIa, IV, V, VI, VII, VIII, IX" stock Decrease in landings from 30950t
A60: IRL | B60: 2015-2018 | C60: Scophthalmus rhombus | D60: North Sea (ICES areas IIIa and IV), Eastern Arctic (ICES areas I and II) | E60: ICES | F60: IV, VIId | G60: N | H60: None | I60: None | K60: Y
A61: IRL | B61: 2015-2018 | C61: Sebastes mentella. | D61: North Sea (ICES areas IIIa and IV), Eastern Arctic (ICES areas I and II) | E61: ICES | F61: IV | G61: N | H61: None | J61: None | K61: Y
A62: IRL | B62: 2015-2018 | C62: Solea solea | D62: North Sea (ICES areas IIIa and IV), Eastern Arctic (ICES areas I and II) | E62: ICES | F62: IV | G62: N | H62: None | I62: None | K62: Y
A63: IRL | B63: 2015-2018 | C63: Solea solea | D63: North Sea (ICES areas IIIa and IV), Eastern Arctic (ICES areas I and II) | E63: ICES | F63: VIId | G63: N | H63: None | I63: None | K63: Y
A64: IRL | B64: 2015-2018 | C64: Sprattus sprattus | D64: North Sea (ICES areas IIIa and IV), Eastern Arctic (ICES areas I and II) | E64: ICES | F64: IV/VIId | G64: N | H64: None | I64: None | K64: Y
A65: IRL | B65: 2015-2018 | C65: Trachurus trachurus. | D65: North Sea (ICES areas IIIa and IV), Eastern Arctic (ICES areas I and II) | E65: ICES | F65: IV, VIId | G65: - | H65: 0 | I65: - | J65: - | K65: - | L65: Included in the "IIa, IVa, Vb, VIa, VIIa-c, e-k, VIIIabde" stock Now zero landings
A66: IRL | B66: 2015-2018 | C66: Trigla lucerna | D66: North Sea (ICES areas IIIa and IV), Eastern Arctic (ICES areas I and II) | E66: NA | F66: IV | G66: N | H66: None | J66: None | K66: Y
A67: IRL | B67: 2015-2018 | C67: Trisopterus esmarki | D67: North Sea (ICES areas IIIa and IV), Eastern Arctic (ICES areas I and II) | E67: ICES | F67: IV | G67: N | H67: None | I67: None | K67: Y
A68: IRL | B68: 2015-2018 | C68: Zeus faber | D68: North Sea (ICES areas IIIa and IV), Eastern Arctic (ICES areas I and II) | E68: ICES | F68: IV, VIId | G68: N | H68: None | J68: None | K68: Y
A69: IRL | B69: 2015-2018 | C69: Selachii, Rajidae | D69: North Sea (ICES areas IIIa and IV), Eastern Arctic (ICES areas I and II) | E69: ICES | F69: IV, VIId | G69: N | H69: None | I69: None | K69: Y | L69: Zero quota for all species in those areas
A70: IRL | B70: 2015-2018 | C70: Alepocephalus bairdii | D70: North Western waters (ICES areas Vb (only Union waters), VI and VII) | E70: NEAFC | F70: VI, XII | G70: N | H70: None | I70: None | K70: Y
A71: IRL | B71: 2015-2018 | C71: Ammodytidae | D71: North Western waters (ICES areas Vb (only Union waters), VI and VII) | E71: ICES | F71: VIa | G71: N | H71: None | I71: None | K71: Y
A72: IRL | B72: 2015-2018 | C72: Capros aper | D72: North Western waters (ICES areas Vb (only Union waters), VI and VII) | E72: ICES | F72: V, VI,VII | G72: Y | H72: 5992 | I72: 69 | K72: N | L72: Decrease in landings from 33760t | M72: Decrease in landings from 9.06t in 2020 to 0.59t in 2021
A73: IRL | B73: 2015-2018 | C73: Pecten maximus | D73: North Western waters (ICES areas Vb (only Union waters), VI and VII) | E73: NA | F73: IV, VI, VII | G73: Y | H73: 2369 | J73: 5 | K73: Y | L73: Slight decrease in landings from 2590t | M73: Landings of Pecten maximus increased slightly from 1,600.54t landed in 2020 to 1,675.93t in 2021.
A74: IRL | B74: 2015-2018 | C74: Aequipecten opercularis | D74: North Western waters (ICES areas Vb (only Union waters), VI and VII) | E74: NA | F74: VII | G74: N | H74: <200 | J74: <1 | K74: Y
A75: IRL | B75: 2015-2018 | C75: Maja squinado | D75: North Western waters (ICES areas Vb (only Union waters), VI and VII) | E75: NA | F75: V, VI,VII | G75: Y | H75: 111 | J75: 2 | K75: N | L75: Decrease in landings from 480t but will stil sample | M75: Landings increased from 357.59t in 2020 to 403.10t in 2021
A76: IRL | B76: 2015-2018 | C76: Anguilla anguilla | D76: North Western waters (ICES areas Vb (only Union waters), VI and VII) | E76: ICES | F76: all areas | G76: N | H76: None | J76: None | K76: Y
A77: IRL | B77: 2015-2018 | C77: Aphanopus spp. | D77: North Western waters (ICES areas Vb (only Union waters), VI and VII) | E77: ICES | F77: all areas | G77: N | H77: None | I77: 3 | K77: Y | L77: No landings.
A78: IRL | B78: 2015-2018 | C78: Argentina spp. | D78: North Western waters (ICES areas Vb (only Union waters), VI and VII) | E78: ICES | F78: all areas | G78: N | H78: 8 | I78: 7 | K78: Y | L78: Increase in landings to 8t
A79: IRL | B79: 2015-2018 | C79: Argyrosomus regius | D79: North Western waters (ICES areas Vb (only Union waters), VI and VII) | E79: NA | F79: all areas | G79: N | H79: None | J79: None | K79: Y
A80: IRL | B80: 2015-2018 | C80: Aspitrigla cuculus | D80: North Western waters (ICES areas Vb (only Union waters), VI and VII) | E80: NA | F80: all areas | G80: N | H80: <200 | J80: <1 | K80: Y
A81: IRL | B81: 2015-2018 | C81: Beryx spp. | D81: North Western waters (ICES areas Vb (only Union waters), VI and VII) | E81: ICES | F81: all areas, excluding X and IXa | G81: N | H81: None | I81: 3 | K81: Y | L81: No landings.
A82: IRL | B82: 2015-2018 | C82: Beryx spp. | D82: Southern Western waters (ICES zones VIII, IX and X (waters around Azores), CECAF areas 34.1.1, 34.1.2 and 34.2.0 (waters around Madeira and the Canary Islands)) | E82: ICES | F82: IXa and X | G82: N | H82: None | I82: 3 | K82: Y | L82: No landings.
A83: IRL | B83: 2015-2018 | C83: Cancer pagurus | D83: North Western waters (ICES areas Vb (only Union waters), VI and VII) | E83: ICES | F83: all areas | G83: Y | H83: 8076 | J83: 22 | K83: N | L83: Increase in landings from 5630t | M83: Landings increased from 4,665.39t in 2020 to 5,892.5t in 2021.
A84: IRL | B84: 2015-2018 | C84: Clupea harengus | D84: North Western waters (ICES areas Vb (only Union waters), VI and VII) | E84: ICES | F84: VIa | G84: - | H84: 1610 | I84: - | J84: - | K84: - | L84: Duplicated stock, See VIaN and VIaS Decrease in landings from 4090t
A85: IRL | B85: 2015-2018 | C85: Clupea harengus | D85: North Western waters (ICES areas Vb (only Union waters), VI and VII) | E85: ICES | F85: VIaN | G85: N | H85: <200 | I85: 15 | K85: N | L85: Deselected from sampling
A86: IRL | B86: 2015-2018 | C86: Clupea harengus | D86: North Western waters (ICES areas Vb (only Union waters), VI and VII) | E86: ICES | F86: VIaS | G86: Y | H86: None | I86: 91 | K86: Y | L86: Zero TAC, sample on surveys only until fishery opens again Monitoring TAC in place for 2019 and 2020 | M86: Landings remained relatively stable with 1,177.25t landed in 2021.
A87: IRL | B87: 2015-2018 | C87: Clupea harengus | D87: North Western waters (ICES areas Vb (only Union waters), VI and VII) | E87: ICES | F87: VIIa | G87: Y | H87: 2575 | I87: 26 | K87: N | L87: Increase in landings from 1520t | M87: Significant decrease in landings from 800.25t in 2020 to217.85t in 2021.
A88: IRL | B88: 2015-2018 | C88: Clupea harengus | D88: North Western waters (ICES areas Vb (only Union waters), VI and VII) | E88: ICES | F88: VIIj | G88: Y | H88: 259 | I88: 86 | K88: N | L88: Interpreting this as VIIa(S),VIIg and VIIj Slight decrease in landings from 340t | M88: Landings of Clupea harengus have fallen by over 60% from 94.52t in 2020 to 34.5t in 2021
A89: IRL | B89: 2015-2018 | C89: Conger conger | D89: North Western waters (ICES areas Vb (only Union waters), VI and VII) | E89: NA | F89: all areas, excluding X | G89: N | H89: <200 | J89: <1 | K89: Y
A90: IRL | B90: 2015-2018 | C90: Conger conger | D90: Southern Western waters (ICES zones VIII, IX and X (waters around Azores), CECAF areas 34.1.1, 34.1.2 and 34.2.0 (waters around Madeira and the Canary Islands)) | E90: NA | F90: X | G90: N | H90: None | J90: None | K90: Y
A91: IRL | B91: 2015-2018 | C91: Coryphaenoides rupestris | D91: North Western waters (ICES areas Vb (only Union waters), VI and VII) | E91: ICES | F91: all areas | G91: N | H91: None | I91: 6 | K91: Y | L91: No landings.
A92: IRL | B92: 2015-2018 | C92: Dalatias licha | D92: North Western waters (ICES areas Vb (only Union waters), VI and VII) | E92: NEAFC | F92: All areas | G92: N | H92: None | I92: None | K92: Y
A93: IRL | B93: 2015-2018 | C93: Dasyatis pastinaca | D93: North Western waters (ICES areas Vb (only Union waters), VI and VII) | E93: NA | F93: VII, VIII | G93: N | H93: None | J93: None | K93: Y
A94: IRL | B94: 2015-2018 | C94: Deania calcea | D94: North Western waters (ICES areas Vb (only Union waters), VI and VII) | E94: NEAFC | F94: V, VI, VII, IX, X, XII | G94: N | H94: None | I94: None | K94: Y
A95: IRL | B95: 2015-2018 | C95: Dicentrarchus labrax | D95: North Western waters (ICES areas Vb (only Union waters), VI and VII) | E95: ICES | F95: all areas, excluding IX | G95: N | H95: None | J95: None | K95: Y
A96: IRL | B96: 2015-2018 | C96: Dicentrarchus labrax | D96: Southern Western waters (ICES zones VIII, IX and X (waters around Azores), CECAF areas 34.1.1, 34.1.2 and 34.2.0 (waters around Madeira and the Canary Islands)) | E96: ICES | F96: IX | G96: N | H96: None | J96: None | K96: Y
A97: IRL | B97: 2015-2018 | C97: Dicologlossa cuneata | D97: Southern Western waters (ICES zones VIII, IX and X (waters around Azores), CECAF areas 34.1.1, 34.1.2 and 34.2.0 (waters around Madeira and the Canary Islands)) | E97: NA | F97: VIIIc, IX | G97: N | H97: None | J97: None | K97: Y
A98: IRL | B98: 2015-2018 | C98: Engraulis encrasicolus | D98: Southern Western waters (ICES zones VIII, IX and X (waters around Azores), CECAF areas 34.1.1, 34.1.2 and 34.2.0 (waters around Madeira and the Canary Islands)) | E98: ICES | F98: IXa (only Cádiz) | G98: N | H98: None | I98: None | K98: Y
A99: IRL | B99: 2015-2018 | C99: Engraulis encrasicolus | D99: Southern Western waters (ICES zones VIII, IX and X (waters around Azores), CECAF areas 34.1.1, 34.1.2 and 34.2.0 (waters around Madeira and the Canary Islands)) | E99: ICES | F99: VIII | G99: N | H99: None | I99: None | K99: Y
A100: IRL | B100: 2015-2018 | C100: Etmopterus spinax | D100: North Western waters (ICES areas Vb (only Union waters), VI and VII) | E100: NEAFC | F100: VI, VII, VIII | G100: N | H100: None | I100: None | K100: Y
A101: IRL | B101: 2015-2018 | C101: Eutrigla gurnardus | D101: North Western waters (ICES areas Vb (only Union waters), VI and VII) | E101: ICES | F101: VIId,e | G101: N | H101: 8 | J101: None | K101: Y | L101: Increse in landings from zero, will not affect programme
A102: IRL | B102: 2015-2018 | C102: Gadus morhua | D102: North Western waters (ICES areas Vb (only Union waters), VI and VII) | E102: ICES | F102: Va | G102: N | H102: None | I102: None | K102: Y
A103: IRL | B103: 2015-2018 | C103: Gadus morhua | D103: North Western waters (ICES areas Vb (only Union waters), VI and VII) | E103: ICES | F103: Vb | G103: N | H103: None | I103: None | K103: Y
A104: IRL | B104: 2015-2018 | C104: Gadus morhua | D104: North Western waters (ICES areas Vb (only Union waters), VI and VII) | E104: ICES | F104: VIa | G104: Y | H104: <200 | I104: 22 | K104: Y | L104: Cod plan | M104: Landings of cod increased from 57.88t landed in 2020 to 83.99t in 2021
A105: IRL | B105: 2015-2018 | C105: Gadus morhua | D105: North Western waters (ICES areas Vb (only Union waters), VI and VII) | E105: ICES | F105: VIb | G105: N | H105: <200 | I105: 22 | K105: Y
A106: IRL | B106: 2015-2018 | C106: Gadus morhua | D106: North Western waters (ICES areas Vb (only Union waters), VI and VII) | E106: ICES | F106: VIIa | G106: Y | H106: <200 | I106: 66 | K106: Y | L106: Below threshold but will be sampled for stock assessment | M106: Landings have fallen from 118.83t in 2020 to 76.68t in 2021.
A107: IRL | B107: 2015-2018 | C107: Gadus morhua | D107: North Western waters (ICES areas Vb (only Union waters), VI and VII) | E107: ICES | F107: VIIe-k | G107: Y | H107: 710 | I107: 18 | K107: N | L107: Decrease in landings from 1210t | M107: Landings decreased from 365.44t in 2020 to 227.59t in 2021
A108: IRL | B108: 2015-2018 | C108: Glyptocephalus cynoglossus | D108: North Western waters (ICES areas Vb (only Union waters), VI and VII) | E108: NA | F108: VI, VII | G108: Y | H108: 614 | J108: 36 | K108: Y | L108: Slight increase in landings from 600t | M108: Slight increase in landings from 416.44 t in 2020 to 470.95 in 2021.
A109: IRL | B109: 2015-2018 | C109: Helicolenus dactylopterus | D109: North Western waters (ICES areas Vb (only Union waters), VI and VII) | E109: NA | F109: all areas | G109: N | H109: <200 | I109: None | K109: Y
A110: IRL | B110: 2015-2018 | C110: Homarus gammarus | D110: North Western waters (ICES areas Vb (only Union waters), VI and VII) | E110: NA | F110: all areas | G110: Y | H110: 397 | J110: 8 | K110: Y | L110: Below threshold but will sample anyway Slight decrease in landings | M110: Increase in landings from 411.52t in 2020 to 556.83t in 2021
A111: IRL | B111: 2015-2018 | C111: Hoplostethus atlanticus | D111: North Western waters (ICES areas Vb (only Union waters), VI and VII) | E111: ICES | F111: all areas | G111: N | H111: None | I111: 28 | K111: Y | L111: Zero TAC
A112: IRL | B112: 2015-2018 | C112: Lepidopus caudatus | D112: Southern Western waters (ICES zones VIII, IX and X (waters around Azores), CECAF areas 34.1.1, 34.1.2 and 34.2.0 (waters around Madeira and the Canary Islands)) | E112: NEAFC | F112: IXa | G112: N | H112: None | I112: None | K112: Y
A113: IRL | B113: 2015-2018 | C113: Lepidorhombus boscii | D113: Southern Western waters (ICES zones VIII, IX and X (waters around Azores), CECAF areas 34.1.1, 34.1.2 and 34.2.0 (waters around Madeira and the Canary Islands)) | E113: NEAFC | F113: VIIIc, IXa | G113: N | H113: None | I113: None | K113: Y
A114: IRL | B114: 2015-2018 | C114: Lepidorhombus whiffiagonis | D114: North Western waters (ICES areas Vb (only Union waters), VI and VII) | E114: ICES | F114: VI | G114: Y | H114: 705 | I114: 13 | K114: N | L114: Increase in landings from 450t | M114: Landings decreased slightly from 628.79t in 2020 to 605.64t in 2021
A115: IRL | B115: 2015-2018 | C115: Lepidorhombus whiffiagonis | D115: North Western waters (ICES areas Vb (only Union waters), VI and VII) | E115: ICES | F115: VII, VIIIabd | G115: Y | H115: 2447 | I115: 17 | K115: N | L115: Decrease in landings from 2570t | M115: Landings increased from 1,665.12t in 2020 to 1,929.91t in 2021
A116: IRL | B116: 2015-2018 | C116: Lepidorhombus whiffiagonis | D116: North Western waters (ICES areas Vb (only Union waters), VI and VII) | E116: ICES | F116: VIIIc, IXa | G116: N | H116: None | I116: None | K116: Y
A117: IRL | B117: 2015-2018 | C117: Limanda limanda | D117: North Western waters (ICES areas Vb (only Union waters), VI and VII) | E117: ICES | F117: VIIe | G117: N | H117: None | J117: None | K117: Y
A118: IRL | B118: 2015-2018 | C118: Limanda limanda | D118: North Western waters (ICES areas Vb (only Union waters), VI and VII) | E118: ICES | F118: VIIa,f-h | G118: N | H118: None | J118: 1 | K118: Y | L118: landings <200t
A119: IRL | B119: 2015-2018 | C119: Loligo vulgaris | D119: North Western waters (ICES areas Vb (only Union waters), VI and VII) | E119: ICES | F119: all areas, excluding VIIIc, IXa | G119: Y | H119: 792 | J119: 9 | K119: N | L119: Now included in sampling on at sea trips both commercial and surveys | M119: 0.04t was of Logio vulgaris was landed in 2021.
A120: IRL | B120: 2015-2018 | C120: Loligo vulgaris | D120: Southern Western waters (ICES zones VIII, IX and X (waters around Azores), CECAF areas 34.1.1, 34.1.2 and 34.2.0 (waters around Madeira and the Canary Islands)) | E120: ICES | F120: VIIIc, IXa | G120: N | H120: None | J120: None | K120: Y
A121: IRL | B121: 2015-2018 | C121: Lophius budegassa | D121: North Western waters (ICES areas Vb (only Union waters), VI and VII) | E121: ICES | F121: IV, VI | G121: Y | H121: 804 | I121: 10 | K121: N | L121: Increase in landings from 550t | M121: Slight increas in landings to 553.50t landed in 2021
A122: IRL | B122: 2015-2018 | C122: Lophius budegassa | D122: North Western waters (ICES areas Vb (only Union waters), VI and VII) | E122: ICES | F122: VIIb-k, VIIIabd | G122: Y | H122: 3373 | I122: 8 | K122: Y | L122: Below threshold but will sample anyway. Sum of <10% quota = 23% Increase in landings from 550t | M122: Slight decrease in landings to 2,645.51t landed in 2021
A123: IRL | B123: 2015-2018 | C123: Lophius budegassa | D123: North Western waters (ICES areas Vb (only Union waters), VI and VII) | E123: ICES | F123: VIIIc, IXa | G123: N | H123: None | I123: None | K123: Y
A124: IRL | B124: 2015-2018 | C124: Lophius piscatorious | D124: North Western waters (ICES areas Vb (only Union waters), VI and VII) | E124: ICES | F124: IV, VI | G124: Y | H124: 550 | I124: 10 | K124: N | M124: No significant change in the landings in 2021
A125: IRL | B125: 2015-2018 | C125: Lophius piscatorious | D125: North Western waters (ICES areas Vb (only Union waters), VI and VII) | E125: ICES | F125: VIIb-k, VIIIabd | G125: Y | H125: 3110 | I125: 8 | K125: Y | L125: Below threshold but will sample anyway. Sum of <10% quota = 23% | M125: No significant change in the landings in 2021
A126: IRL | B126: 2015-2018 | C126: Lophius piscatorious | D126: Southern Western waters (ICES zones VIII, IX and X (waters around Azores), CECAF areas 34.1.1, 34.1.2 and 34.2.0 (waters around Madeira and the Canary Islands)) | E126: ICES | F126: VIIIc, IXa | G126: N | H126: None | I126: None | K126: Y
A127: IRL | B127: 2015-2018 | C127: Mallotus villosus | D127: North Western waters (ICES areas Vb (only Union waters), VI and VII) | E127: ICES | F127: XIV | G127: N | H127: None | I127: None | K127: Y
A128: IRL | B128: 2015-2018 | C128: Melanogrammus aeglefinus | D128: North Western waters (ICES areas Vb (only Union waters), VI and VII) | E128: ICES | F128: Va | G128: N | H128: None | J128: None | K128: Y
A129: IRL | B129: 2015-2018 | C129: Melanogrammus aeglefinus | D129: North Western waters (ICES areas Vb (only Union waters), VI and VII) | E129: ICES | F129: Vb | G129: N | H129: None | I129: None | K129: Y
A130: IRL | B130: 2015-2018 | C130: Melanogrammus aeglefinus | D130: North Western waters (ICES areas Vb (only Union waters), VI and VII) | E130: ICES | F130: VIa | G130: Y | H130: 811 | I130: 16 | K130: N | L130: Increase in landings from 730t | M130: Landings of haddock increased from 410.15t in 2020 to 543.42t in 2021, but are still below the average landings in the reference years.
A131: IRL | B131: 2015-2018 | C131: Melanogrammus aeglefinus | D131: North Western waters (ICES areas Vb (only Union waters), VI and VII) | E131: ICES | F131: VIb | G131: Y | H131: 432 | I131: 8 | K131: Y | L131: Below threshold but will sample | M131: Landings decreased from 595.86t in 2020 to 454.50t in 2021
A132: IRL | B132: 2015-2018 | C132: Melanogrammus aeglefinus | D132: North Western waters (ICES areas Vb (only Union waters), VI and VII) | E132: ICES | F132: VIIa | G132: Y | H132: 913 | I132: 43 | K132: N | L132: Increase in landings from 510t | M132: Landings increased from 658.86t landed in 2020 to 997.89t in 2021
A133: IRL | B133: 2015-2018 | C133: Melanogrammus aeglefinus | D133: North Western waters (ICES areas Vb (only Union waters), VI and VII) | E133: ICES | F133: VIIb-k | G133: Y | H133: 1641 | I133: 22 | K133: N | L133: Decrease in landings from 2140t | M133: Landings increased from 2,282.67t landed in 2020 to 2,917.46t in 2021
A134: IRL | B134: 2015-2018 | C134: Merlangius merlangus | D134: North Western waters (ICES areas Vb (only Union waters), VI and VII) | E134: ICES | F134: VIII | G134: N | H134: None | I134: None | K134: Y
A135: IRL | B135: 2015-2018 | C135: Merlangius merlangus | D135: North Western waters (ICES areas Vb (only Union waters), VI and VII) | E135: ICES | F135: IX, X | G135: N | H135: None | I135: None | K135: Y
A136: IRL | B136: 2015-2018 | C136: Merlangius merlangus | D136: North Western waters (ICES areas Vb (only Union waters), VI and VII) | E136: ICES | F136: Vb | G136: N | H136: None | J136: None | K136: Y
A137: IRL | B137: 2015-2018 | C137: Merlangius merlangus | D137: North Western waters (ICES areas Vb (only Union waters), VI and VII) | E137: ICES | F137: VIa | G137: Y | H137: <200 | I137: 30 | K137: Y | L137: landings <200t but will sample anyway | M137: Landings relatively stable with 160.26t landed in 2021.
A138: IRL | B138: 2015-2018 | C138: Merlangius merlangus | D138: North Western waters (ICES areas Vb (only Union waters), VI and VII) | E138: ICES | F138: VIb | G138: N | H138: <200 | I138: 30 | K138: Y | L138: landings <200t
A139: IRL | B139: 2015-2018 | C139: Merlangius merlangus | D139: North Western waters (ICES areas Vb (only Union waters), VI and VII) | E139: ICES | F139: VIIa | G139: Y | H139: <200 | I139: 58 | K139: Y | L139: landings <200t but will sample anyway | M139: Landings doubled from 51.81t landed in 2020 to 102.59t landed in 2021.
A140: IRL | B140: 2015-2018 | C140: Merlangius merlangus | D140: North Western waters (ICES areas Vb (only Union waters), VI and VII) | E140: ICES | F140: VIIe-k | G140: Y | H140: 5619 | I140: 28 | K140: N | L140: Decrease in landings from 5960t | M140: Landings relatively stable with 2,565.13t landed in 2021.
A141: IRL | B141: 2015-2018 | C141: Merluccius merluccius | D141: North Western waters (ICES areas Vb (only Union waters), VI and VII) | E141: ICES | F141: IIIa, IV, VI, VII, VIIIab | G141: Y | H141: 3447 | I141: 5 | K141: Y | L141: Below threshold but will sample for stock assessment Increase in landings from 2360t | M141: Landings relatively stable with 3,449.47t landed in 2021
A142: IRL | B142: 2015-2018 | C142: Merluccius merluccius | D142: Southern Western waters (ICES zones VIII, IX and X (waters around Azores), CECAF areas 34.1.1, 34.1.2 and 34.2.0 (waters around Madeira and the Canary Islands)) | E142: ICES | F142: VIIIc, IXa | G142: N | H142: None | I142: 1 | K142: Y | L142: No landings
A143: IRL | B143: 2015-2018 | C143: Microchirus variegatus | D143: North Western waters (ICES areas Vb (only Union waters), VI and VII) | E143: NA | F143: all areas | G143: N | H143: None | J143: None | K143: Y
A144: IRL | B144: 2015-2018 | C144: Micromesistius poutassou | D144: North Western waters (ICES areas Vb (only Union waters), VI and VII) | E144: ICES | F144: I-IX, XII, XIV | G144: Y | H144: 39894 | I144: 12 | K144: N | L144: Increase in landings from 19820t | M144: Increase in landings from 34,935.59t landed in 2020 to 36,768.56t landed in 2021.
A145: IRL | B145: 2015-2018 | C145: Microstomus kitt | D145: North Western waters (ICES areas Vb (only Union waters), VI and VII) | E145: ICES | F145: all areas | G145: N | H145: 446 | J145: 10 | K145: Y | L145: Slight decrease in landings from 450t
A146: IRL | B146: 2015-2018 | C146: Molva dypterygia | D146: North Western waters (ICES areas Vb (only Union waters), VI and VII) | E146: ICES | F146: all areas, excluding X | G146: N | H146: None | I146: 0.3 | K146: Y | L146: No landings
A147: IRL | B147: 2015-2018 | C147: Molva macrophthalma | D147: North Western waters (ICES areas Vb (only Union waters), VI and VII) | E147: NA | F147: X | G147: N | H147: None | J147: None | K147: Y
A148: IRL | B148: 2015-2018 | C148: Molva molva | D148: North Western waters (ICES areas Vb (only Union waters), VI and VII) | E148: ICES | F148: all areas | G148: N | H148: 633 | I148: 7 | K148: Y | L148: Sum of <10% quota = 9% Slight increase in landings from 570t
A149: IRL | B149: 2015-2018 | C149: Mullus surmuletus | D149: North Western waters (ICES areas Vb (only Union waters), VI and VII) | E149: NA | F149: all areas | G149: N | H149: <200 | J149: <1 | K149: Y
A150: IRL | B150: 2015-2018 | C150: Mustelus asterias | D150: North Western waters (ICES areas Vb (only Union waters), VI and VII) | E150: NA | F150: VI, VII, VIII, IX | G150: N | H150: None | J150: None | K150: Y
A151: IRL | B151: 2015-2018 | C151: Mustelus mustelus | D151: North Western waters (ICES areas Vb (only Union waters), VI and VII) | E151: NA | F151: VI, VII, VIII, IX | G151: N | H151: None | J151: None | K151: Y
A152: IRL | B152: 2015-2018 | C152: Mustelus punctulatus | D152: North Western waters (ICES areas Vb (only Union waters), VI and VII) | E152: NA | F152: VI, VII, VIII, IX | G152: N | H152: None | J152: None | K152: Y
A153: IRL | B153: 2015-2018 | C153: Nephrops norvegicus | D153: North Western waters (ICES areas Vb (only Union waters), VI and VII) | E153: ICES | F153: VI Fuctional unit | G153: N | H153: <200 | I153: 1 | K153: Y | L153: Landings <200t
A154: IRL | B154: 2015-2018 | C154: Nephrops norvegicus | D154: North Western waters (ICES areas Vb (only Union waters), VI and VII) | E154: ICES | F154: VII Functional unit | G154: Y | H154: 8204 | I154: 37 | K154: N | L154: Slight decrease in landings from 8510t | M154: Landings increased from 4,154.03t landed in 2020 to 4,983.08t landed in 2021
A155: IRL | B155: 2015-2018 | C155: Nephrops norvegicus | D155: Southern Western waters (ICES zones VIII, IX and X (waters around Azores), CECAF areas 34.1.1, 34.1.2 and 34.2.0 (waters around Madeira and the Canary Islands)) | E155: ICES | F155: VIII, IX Functional unit | G155: N | H155: <200 | I155: None | K155: Y
A156: IRL | B156: 2015-2018 | C156: Octopus vulgaris | D156: North Western waters (ICES areas Vb (only Union waters), VI and VII) | E156: ICES | F156: all areas, excluding VIIIc, IXa | G156: N | H156: <200 | J156: <1 | K156: Y
A157: IRL | B157: 2015-2018 | C157: Octopus vulgaris | D157: Southern Western waters (ICES zones VIII, IX and X (waters around Azores), CECAF areas 34.1.1, 34.1.2 and 34.2.0 (waters around Madeira and the Canary Islands)) | E157: ICES | F157: VIIIc, IXa | G157: N | H157: None | J157: None | K157: Y
A158: IRL | B158: 2015-2018 | C158: Pagellus bogaraveo | D158: Southern Western waters (ICES zones VIII, IX and X (waters around Azores), CECAF areas 34.1.1, 34.1.2 and 34.2.0 (waters around Madeira and the Canary Islands)) | E158: ICES | F158: IXa, X | G158: N | H158: None | I158: None | K158: Y
A159: IRL | B159: 2015-2018 | C159: Pandalus spp. | D159: North Western waters (ICES areas Vb (only Union waters), VI and VII) | E159: ICES | F159: all areas | G159: N | H159: <200 | J159: <1 | K159: Y
A160: IRL | B160: 2015-2018 | C160: Parapenaeus longirostris | D160: Southern Western waters (ICES zones VIII, IX and X (waters around Azores), CECAF areas 34.1.1, 34.1.2 and 34.2.0 (waters around Madeira and the Canary Islands)) | E160: NA | F160: IXa | G160: N | H160: None | J160: None | K160: Y
A161: IRL | B161: 2015-2018 | C161: Phycis blennoides | D161: North Western waters (ICES areas Vb (only Union waters), VI and VII) | E161: ICES | F161: all areas | G161: N | H161: <200 | I161: 11 | K161: Y | L161: landings <200t
A162: IRL | B162: 2015-2018 | C162: Phycis phycis | D162: North Western waters (ICES areas Vb (only Union waters), VI and VII) | E162: NA | F162: all areas | G162: N | H162: <200 | J162: None | K162: Y
A163: IRL | B163: 2015-2018 | C163: Pleuronectes platessa | D163: North Western waters (ICES areas Vb (only Union waters), VI and VII) | E163: ICES | F163: VIIa | G163: Y | H163: 438 | I163: 70 | K163: N | L163: landings increased from <200t | M163: Further decrease in landings with 232.98t landed in 2019, 162.15t landed in 2020 and 99.69t landd in 2021.
A164: IRL | B164: 2015-2018 | C164: Pleuronectes platessa | D164: North Western waters (ICES areas Vb (only Union waters), VI and VII) | E164: ICES | F164: VIIe | G164: N | H164: None | I164: None | K164: Y
A165: IRL | B165: 2015-2018 | C165: Pleuronectes platessa | D165: North Western waters (ICES areas Vb (only Union waters), VI and VII) | E165: ICES | F165: VIIfg | G165: Y | H165: <200 | I165: 44 | K165: N | L165: landings <200t but will sample anyway | M165: Landings decreased from 104.66t landed in 2020 to 99.57t landed in 2021
A166: IRL | B166: 2015-2018 | C166: Pleuronectes platessa | D166: North Western waters (ICES areas Vb (only Union waters), VI and VII) | E166: ICES | F166: VIIbc | G166: Y | H166: <200 | I166: 85 | K166: N | L166: landings <200t only sampled on survey | M166: Landings decreased by just over 50% from 5.55t landed in 2020 to 2.52t landed in 2021.
A167: IRL | B167: 2015-2018 | C167: Pleuronectes platessa | D167: North Western waters (ICES areas Vb (only Union waters), VI and VII) | E167: ICES | F167: VIIh-k | G167: Y | H167: <200 | I167: 44 | K167: N | L167: landings <200t but will sample anyway | M167: Slight increase from 11.12t landed in 2020 to 14.58t landed in 2021.
A168: IRL | B168: 2015-2018 | C168: Pleuronectes platessa | D168: Southern Western waters (ICES zones VIII, IX and X (waters around Azores), CECAF areas 34.1.1, 34.1.2 and 34.2.0 (waters around Madeira and the Canary Islands)) | E168: ICES | F168: VIII, IX, X | G168: N | H168: None | I168: None | K168: Y
A169: IRL | B169: 2015-2018 | C169: Pollachius pollachius | D169: North Western waters (ICES areas Vb (only Union waters), VI and VII) | E169: ICES | F169: all areas except IX, X | G169: Y | H169: 1160 | I169: 15, 8, 1 | K169: N | L169: TAC share 15% in VI; 8% in VII and 1% in VIII | M169: Slight decrease from 542.56t landed in 2020 to 528.29t landed in 2020.
A170: IRL | B170: 2015-2018 | C170: Pollachius pollachius | D170: Southern Western waters (ICES zones VIII, IX and X (waters around Azores), CECAF areas 34.1.1, 34.1.2 and 34.2.0 (waters around Madeira and the Canary Islands)) | E170: ICES | F170: IX, X | G170: N | H170: None | I170: None | K170: Y
A171: IRL | B171: 2015-2018 | C171: Pollachius virens | D171: North Western waters (ICES areas Vb (only Union waters), VI and VII) | E171: ICES | F171: Va | G171: N | H171: None | I171: 6 | K171: Y | L171: No landings
A172: IRL | B172: 2015-2018 | C172: Pollachius virens | D172: North Western waters (ICES areas Vb (only Union waters), VI and VII) | E172: ICES | F172: Vb | G172: N | H172: None | I172: 6 | K172: Y | L172: No landings
A173: IRL | B173: 2015-2018 | C173: Pollachius virens | D173: North Western waters (ICES areas Vb (only Union waters), VI and VII) | E173: ICES | F173: IV, IIIa, VI | G173: Y | H173: <200 | I173: 6 | K173: Y | L173: Does not reach threshold but will sample as trying to move from landings based assessment to a Cat3 | M173: Landings decreased from 100.43t landed in 2020 to 58.92t landed in 2021.
A174: IRL | B174: 2015-2018 | C174: Pollachius virens | D174: North Western waters (ICES areas Vb (only Union waters), VI and VII) | E174: ICES | F174: VII, VIII | G174: Y | H174: 567 | I174: 47 | K174: N | L174: Decrease in landings from 1020t | M174: landings increased from 161.11t landed in 2020 to 203.64t landed in 2021.
A175: IRL | B175: 2015-2018 | C175: Polyprion americanus | D175: Southern Western waters (ICES zones VIII, IX and X (waters around Azores), CECAF areas 34.1.1, 34.1.2 and 34.2.0 (waters around Madeira and the Canary Islands)) | E175: NEAFC | F175: X | G175: N | H175: None | I175: None | K175: Y
A176: IRL | B176: 2015-2018 | C176: Psetta maxima | D176: North Western waters (ICES areas Vb (only Union waters), VI and VII) | E176: ICES | F176: all areas | G176: N | H176: 225 | J176: 6 | K176: Y
A177: IRL | B177: 2015-2018 | C177: Reinhardtius hippoglossoides | D177: North Western waters (ICES areas Vb (only Union waters), VI and VII) | E177: ICES | F177: V, XIV | G177: N | H177: None | I177: None | K177: Y
A178: IRL | B178: 2015-2018 | C178: Reinhardtius hippoglossoides | D178: North Western waters (ICES areas Vb (only Union waters), VI and VII) | E178: ICES | F178: VI | G178: N | H178: None | I178: 1 | K178: Y | L178: No landings
A179: IRL | B179: 2015-2018 | C179: Hippoglossus hippoglossus | D179: North Western waters (ICES areas Vb (only Union waters), VI and VII) | E179: ICES | F179: V, XIV | G179: N | H179: None | I179: None | K179: Y
A180: IRL | B180: 2015-2018 | C180: Salmo salar | D180: North Western waters (ICES areas Vb (only Union waters), VI and VII) | E180: ICES | F180: all areas | G180: N | H180: None | J180: None | K180: Y
A181: IRL | B181: 2015-2018 | C181: Sardina pilchardus | D181: Southern Western waters (ICES zones VIII, IX and X (waters around Azores), CECAF areas 34.1.1, 34.1.2 and 34.2.0 (waters around Madeira and the Canary Islands)) | E181: ICES | F181: VIIIabd | G181: N | H181: None | J181: None | K181: Y
A182: IRL | B182: 2015-2018 | C182: Sardina pilchardus | D182: Southern Western waters (ICES zones VIII, IX and X (waters around Azores), CECAF areas 34.1.1, 34.1.2 and 34.2.0 (waters around Madeira and the Canary Islands)) | E182: ICES | F182: VIIIc, IXa | G182: N | H182: None | J182: None | K182: Y
A183: IRL | B183: 2015-2018 | C183: Scomber colias | D183: Southern Western waters (ICES zones VIII, IX and X (waters around Azores), CECAF areas 34.1.1, 34.1.2 and 34.2.0 (waters around Madeira and the Canary Islands)) | E183: NA | F183: VIII, IX, X | G183: N | H183: None | J183: None | K183: Y
A184: IRL | B184: 2015-2018 | C184: Scomber scombrus | D184: North Western waters (ICES areas Vb (only Union waters), VI and VII) | E184: ICES | F184: II, IIIa, IV, V, VI, VII, VIII, IX | G184: Y | H184: 75311 | I184: 21 | K184: N | L184: Decrease in landings from 82360t | M184: Decrease in landings from 63,936.50t landed to 51,379.20t landed in 2021.
A185: IRL | B185: 2015-2018 | C185: Scophthalmus rhombus | D185: North Western waters (ICES areas Vb (only Union waters), VI and VII) | E185: ICES | F185: all areas | G185: N | H185: <200 | J185: 11 | K185: Y
A186: IRL | B186: 2015-2018 | C186: Sebastes marinus | D186: North Western waters (ICES areas Vb (only Union waters), VI and VII) | E186: ICES | F186: ICES Sub areas V, VI, XII, XIV & NAFO SA 2 + (Div. 1F + 3K). | G186: N | H186: None | I186: None | K186: Y
A187: IRL | B187: 2015-2018 | C187: Sebastes mentella | D187: North Western waters (ICES areas Vb (only Union waters), VI and VII) | E187: ICES | F187: ICES Sub areas V, VI, XII, XIV & NAFO SA 2 + (Div. 1F + 3K) | G187: N | H187: None | I187: None | K187: Y
A188: IRL | B188: 2015-2018 | C188: Sepia officinalis | D188: North Western waters (ICES areas Vb (only Union waters), VI and VII) | E188: ICES | F188: all areas | G188: N | H188: <200 | J188: 1 | K188: Y
A189: IRL | B189: 2015-2018 | C189: Solea solea | D189: North Western waters (ICES areas Vb (only Union waters), VI and VII) | E189: ICES | F189: VIIa | G189: Y | H189: 294 | I189: 42 | K189: N | L189: Landings increased from <200t, but historically included in programme and will continue to sample | M189: Landings increased from 43.10t landed in 2020 to 78.21t landed in 2021
A190: IRL | B190: 2015-2018 | C190: Solea solea | D190: North Western waters (ICES areas Vb (only Union waters), VI and VII) | E190: ICES | F190: VIIfg | G190: N | H190: <200 | I190: 3 | K190: Y | L190: Landings <200t
A191: IRL | B191: 2015-2018 | C191: Solea solea | D191: North Western waters (ICES areas Vb (only Union waters), VI and VII) | E191: ICES | F191: VIIbc | G191: Y | H191: <200 | I191: 86 | K191: N | M191: Landings remained relative stable with 12.73t landed in 2020 and 13.04t landed in 2021.
A192: IRL | B192: 2015-2018 | C192: Solea solea | D192: North Western waters (ICES areas Vb (only Union waters), VI and VII) | E192: ICES | F192: VIIhjk | G192: Y | H192: <200 | I192: 45 | K192: N | L192: landings <200t but will sample anyway | M192: Increase in landings from 35.98t landed in 2020 to 71.71t landed in 2021.
A193: IRL | B193: 2015-2018 | C193: Solea solea | D193: Southern Western waters (ICES zones VIII, IX and X (waters around Azores), CECAF areas 34.1.1, 34.1.2 and 34.2.0 (waters around Madeira and the Canary Islands)) | E193: ICES | F193: IXa | G193: N | H193: None | I193: None | K193: Y
A194: IRL | B194: 2015-2018 | C194: Solea solea | D194: North Western waters (ICES areas Vb (only Union waters), VI and VII) | E194: ICES | F194: VIIIc | G194: N | H194: None | I194: None | K194: Y
A195: IRL | B195: 2015-2018 | C195: Solea solea | D195: North Western waters (ICES areas Vb (only Union waters), VI and VII) | E195: ICES | F195: VIIe | G195: N | H195: None | I195: None | K195: Y
A196: IRL | B196: 2015-2018 | C196: Solea solea | D196: Southern Western waters (ICES zones VIII, IX and X (waters around Azores), CECAF areas 34.1.1, 34.1.2 and 34.2.0 (waters around Madeira and the Canary Islands)) | E196: ICES | F196: VIIIab | G196: N | H196: None | I196: None | K196: Y
A197: IRL | B197: 2015-2018 | C197: Sparidae | D197: North Western waters (ICES areas Vb (only Union waters), VI and VII) | E197: ICES | F197: all areas | G197: N | H197: None | J197: None | K197: Y
A198: IRL | B198: 2015-2018 | C198: Trachurus mediterraneus | D198: Southern Western waters (ICES zones VIII, IX and X (waters around Azores), CECAF areas 34.1.1, 34.1.2 and 34.2.0 (waters around Madeira and the Canary Islands)) | E198: NA | F198: VIII, IX | G198: N | H198: None | J198: None | K198: Y
A199: IRL | B199: 2015-2018 | C199: Trachurus picturatus | D199: Southern Western waters (ICES zones VIII, IX and X (waters around Azores), CECAF areas 34.1.1, 34.1.2 and 34.2.0 (waters around Madeira and the Canary Islands)) | E199: NA | F199: VIII, IX, X | G199: N | H199: None | J199: None | K199: Y
A200: IRL | B200: 2015-2018 | C200: Trachurus trachurus | D200: North Western waters (ICES areas Vb (only Union waters), VI and VII) | E200: ICES | F200: IIa, IVa, Vb, VIa, VIIa-c, e-k, VIIIabde | G200: Y | H200: 25000 | I200: 26 | K200: N | L200: Landings decreased from 3080t | M200: Decrease in landings from 17,206.82t landed in 2020 to 16,245.20t landed in 2021.
... 39 more rows

Sheet Table1B Planning of sampling
A1: Table 1B: Planning of sampling for biological variables
R2: WP | Y2: 2021
R3: AR Year | Y3: 2021
A4: MS | B4: Species | C4: Region | D4: RFMO/RFO/IO | E4: Area / Stock | F4: Frequency | G4: Length | J4: Age | M4: Weight | P4: Sex ratio | S4: Sexual maturity | V4: Fecundity | Y4: Comments
G5: 2020 | H5: 2021 | J5: 2020 | K5: 2021 | M5: 2020 | N5: 2021 | P5: 2020 | Q5: 2021 | S5: 2020 | T5: 2021 | V5: 2020 | W5: 2021
A6: IRL | B6: Capros aper | C6: North Western waters (ICES areas Vb (only Union waters), VI and VII) | D6: ICES | E6: V, VI,VII | F6: A | G6: X | H6: X | J6: X | K6: X | M6: X | N6: X | P6: X | Q6: X | R6: X | S6: X | T6: X | Y6: Otoliths collected but not aged
A7: IRL | B7: Pecten maximus | C7: North Western waters (ICES areas Vb (only Union waters), VI and VII) | D7: NA | E7: IV, VI, VII | F7: A | G7: X | H7: X | M7: X | N7: X
A8: IRL | B8: Maja squinado | C8: North Western waters (ICES areas Vb (only Union waters), VI and VII) | D8: NA | E8: V, VI,VII | F8: M | G8: X | H8: X | M8: X | N8: X | P8: X | Q8: X | R8: X | Y8: Monthly but only during the fishing season
A9: IRL | B9: Cancer pagurus | C9: North Western waters (ICES areas Vb (only Union waters), VI and VII) | D9: ICES | E9: all areas | F9: M | G9: X | H9: X | M9: X | N9: X | P9: X | Q9: X | R9: X
A10: IRL | B10: Clupea harengus | C10: North Western waters (ICES areas Vb (only Union waters), VI and VII) | D10: ICES | E10: VIaS | F10: Q | G10: X | H10: X | J10: X | K10: X | M10: X | N10: X | P10: X | Q10: X | R10: X | S10: X | T10: X
A11: IRL | B11: Clupea harengus | C11: North Western waters (ICES areas Vb (only Union waters), VI and VII) | D11: ICES | E11: VIIa | F11: Q | G11: X | H11: X | J11: X | K11: X | M11: X | N11: X | P11: X | Q11: X | R11: X | S11: X | T11: X
A12: IRL | B12: Clupea harengus | C12: North Western waters (ICES areas Vb (only Union waters), VI and VII) | D12: ICES | E12: VIIj | F12: Q | G12: X | H12: X | J12: X | K12: X | M12: X | N12: X | P12: X | Q12: X | R12: X | S12: X | T12: X | Y12: Interpreting this as VIIa(S),VIIg and VIIj
A13: IRL | B13: Gadus morhua | C13: North Western waters (ICES areas Vb (only Union waters), VI and VII) | D13: ICES | E13: VIa | F13: Q | G13: X | H13: X | J13: X | K13: X | M13: X | N13: X | P13: X | Q13: X | R13: X | S13: X | T13: X
A14: IRL | B14: Gadus morhua | C14: North Western waters (ICES areas Vb (only Union waters), VI and VII) | D14: ICES | E14: VIIa | F14: Q | G14: X | H14: X | J14: X | K14: X | M14: X | N14: X | P14: X | Q14: X | R14: X | S14: X | T14: X
A15: IRL | B15: Gadus morhua | C15: North Western waters (ICES areas Vb (only Union waters), VI and VII) | D15: ICES | E15: VIIe-k | F15: Q | G15: X | H15: X | J15: X | K15: X | M15: X | N15: X | P15: X | Q15: X | R15: X | S15: X | T15: X
A16: IRL | B16: Glyptocephalus cynoglossus | C16: North Western waters (ICES areas Vb (only Union waters), VI and VII) | D16: NA | E16: VI, VII | F16: A | G16: X | H16: X | M16: X | N16: X | P16: X | Q16: X
A17: IRL | B17: Homarus gammarus | C17: North Western waters (ICES areas Vb (only Union waters), VI and VII) | D17: NA | E17: all areas | F17: M | G17: X | H17: X | M17: X | N17: X | P17: X | Q17: X | R17: X
A18: IRL | B18: Lepidorhombus whiffiagonis | C18: North Western waters (ICES areas Vb (only Union waters), VI and VII) | D18: ICES | E18: VI | F18: A | G18: X | H18: X | J18: X | K18: X | M18: X | N18: X | P18: X | Q18: X | R18: X | S18: X | T18: X
A19: IRL | B19: Lepidorhombus whiffiagonis | C19: North Western waters (ICES areas Vb (only Union waters), VI and VII) | D19: ICES | E19: VII, VIIIabd | F19: A | G19: X | H19: X | J19: X | K19: X | M19: X | N19: X | P19: X | Q19: X | R19: X | S19: X | T19: X
A20: IRL | B20: Loligo vulgaris | C20: North Western waters (ICES areas Vb (only Union waters), VI and VII) | D20: ICES | E20: all areas, excluding VIIIc, IXa | F20: A | G20: X | H20: X | Y20: Only from surveys and at sea sampling
A21: IRL | B21: Lophius budegassa | C21: North Western waters (ICES areas Vb (only Union waters), VI and VII) | D21: ICES | E21: IV, VI | F21: Other | G21: Q | H21: Q | J21: Q | K21: Q | M21: Q | N21: Q | P21: A | Q21: A | R21: A | S21: A | T21: A | Y21: L,A,W: quarterly; S,M: Annual. Illicia collected but not aged
A22: IRL | B22: Lophius budegassa | C22: North Western waters (ICES areas Vb (only Union waters), VI and VII) | D22: ICES | E22: VIIb-k, VIIIabd | F22: Other | G22: Q | H22: Q | J22: Q | K22: Q | M22: Q | N22: Q | P22: A | Q22: A | R22: A | S22: A | T22: A | Y22: L,A,W: quarterly; S,M: Annual. Illicia collected but not aged
A23: IRL | B23: Lophius piscatorious | C23: North Western waters (ICES areas Vb (only Union waters), VI and VII) | D23: ICES | E23: IV, VI | F23: Other | G23: Q | H23: Q | J23: Q | K23: Q | M23: Q | N23: Q | P23: A | Q23: A | R23: A | S23: A | T23: A | Y23: L,A,W: quarterly; S,M: Annual. Illicia collected but not aged
A24: IRL | B24: Lophius piscatorious | C24: North Western waters (ICES areas Vb (only Union waters), VI and VII) | D24: ICES | E24: VIIb-k, VIIIabd | F24: Other | G24: Q | H24: Q | J24: Q | K24: Q | M24: Q | N24: Q | P24: A | Q24: A | R24: A | S24: A | T24: A | Y24: L,A,W: quarterly; S,M: Annual. Illicia collected but not aged
A25: IRL | B25: Melanogrammus aeglefinus | C25: North Western waters (ICES areas Vb (only Union waters), VI and VII) | D25: ICES | E25: VIa | F25: Other | G25: Q | H25: Q | J25: Q | K25: Q | M25: Q | N25: Q | P25: A | Q25: A | R25: A | S25: A | T25: A | Y25: L,A,W: quarterly; S,M: Annual
A26: IRL | B26: Melanogrammus aeglefinus | C26: North Western waters (ICES areas Vb (only Union waters), VI and VII) | D26: ICES | E26: VIb | F26: Other | G26: Q | H26: Q | J26: Q | K26: Q | M26: Q | N26: Q | Y26: L,A,W: quarterly; S,M: Annual
A27: IRL | B27: Melanogrammus aeglefinus | C27: North Western waters (ICES areas Vb (only Union waters), VI and VII) | D27: ICES | E27: VIIa | F27: Other | G27: Q | H27: Q | J27: Q | K27: Q | M27: Q | N27: Q | P27: A | Q27: A | R27: A | S27: A | T27: A | Y27: L,A,W: quarterly; S,M: Annual
A28: IRL | B28: Melanogrammus aeglefinus | C28: North Western waters (ICES areas Vb (only Union waters), VI and VII) | D28: ICES | E28: VIIb-k | F28: Other | G28: Q | H28: Q | J28: Q | K28: Q | M28: Q | N28: Q | P28: A | Q28: A | R28: A | S28: A | T28: A | Y28: L,A,W: quarterly; S,M: Annual
A29: IRL | B29: Merlangius merlangus | C29: North Western waters (ICES areas Vb (only Union waters), VI and VII) | D29: ICES | E29: VIa | F29: Other | G29: Q | H29: Q | J29: Q | K29: Q | M29: Q | N29: Q | P29: A | Q29: A | R29: A | S29: A | T29: A | Y29: L,A,W: quarterly; S,M: Annual
A30: IRL | B30: Merlangius merlangus | C30: North Western waters (ICES areas Vb (only Union waters), VI and VII) | D30: ICES | E30: VIIa | F30: Other | G30: Q | H30: Q | J30: Q | K30: Q | M30: Q | N30: Q | P30: A | Q30: A | R30: A | S30: A | T30: A | Y30: L,A,W: quarterly; S,M: Annual
A31: IRL | B31: Merlangius merlangus | C31: North Western waters (ICES areas Vb (only Union waters), VI and VII) | D31: ICES | E31: VIIe-k | F31: Other | G31: Q | H31: Q | J31: Q | K31: Q | M31: Q | N31: Q | P31: A | Q31: A | R31: A | S31: A | T31: A | Y31: L,A,W: quarterly; S,M: Annual
A32: IRL | B32: Merluccius merluccius | C32: North Western waters (ICES areas Vb (only Union waters), VI and VII) | D32: ICES | E32: IIIa, IV, VI, VII, VIIIab | F32: Other | G32: Q | H32: Q | J32: Q | K32: Q | M32: Q | N32: Q | P32: A | Q32: A | R32: A | S32: A | T32: A | Y32: L,A,W: quarterly; S,M: Annual. Otoliths collected but not aged
A33: IRL | B33: Micromesistius poutassou | C33: North Western waters (ICES areas Vb (only Union waters), VI and VII) | D33: ICES | E33: I-IX, XII, XIV | F33: Q | G33: X | H33: X | J33: X | K33: X | M33: X | N33: X | P33: X | Q33: X | R33: X | S33: X | T33: X
A34: IRL | B34: Nephrops norvegicus | C34: North Western waters (ICES areas Vb (only Union waters), VI and VII) | D34: ICES | E34: VII Functional unit | F34: Other | G34: Q | H34: Q | M34: A | N34: A | P34: Q | Q34: Q | R34: Q | S34: Q | T34: Q | Y34: L,S,M: quarterly; W: Annual
A35: IRL | B35: Pleuronectes platessa | C35: North Western waters (ICES areas Vb (only Union waters), VI and VII) | D35: ICES | E35: VIIa | F35: A | G35: X | H35: X | J35: X | K35: X | M35: X | N35: X | P35: X | Q35: X | R35: X | S35: X | T35: X
A36: IRL | B36: Pleuronectes platessa | C36: North Western waters (ICES areas Vb (only Union waters), VI and VII) | D36: ICES | E36: VIIbc | F36: A | G36: X | H36: X | M36: X | N36: X | P36: X | Q36: X | R36: X | S36: X | T36: X | Y36: No age-based assessment
A37: IRL | B37: Pleuronectes platessa | C37: North Western waters (ICES areas Vb (only Union waters), VI and VII) | D37: ICES | E37: VIIfg | F37: A | G37: X | H37: X | J37: X | K37: X | M37: X | N37: X | P37: X | Q37: X | R37: X | S37: X | T37: X
A38: IRL | B38: Pleuronectes platessa | C38: North Western waters (ICES areas Vb (only Union waters), VI and VII) | D38: ICES | E38: VIIh-k | F38: A | G38: X | H38: X | J38: X | K38: X | M38: X | N38: X | P38: X | Q38: X | R38: X | S38: X | T38: X
A39: IRL | B39: Pollachius pollachius | C39: North Western waters (ICES areas Vb (only Union waters), VI and VII) | D39: ICES | E39: all areas except IX, X | F39: Other | G39: Q | H39: Q | J39: Q | K39: Q | M39: Q | N39: Q | P39: A | Q39: A | R39: A | S39: A | T39: A | Y39: L,A,W: quarterly; S,M: Annual
A40: IRL | B40: Pollachius virens | C40: North Western waters (ICES areas Vb (only Union waters), VI and VII) | D40: ICES | E40: IV, IIIa, VI | F40: Other | G40: Q | H40: Q | J40: Q | K40: Q | M40: Q | N40: Q | P40: A | Q40: A | R40: A | Y40: L,A,W: quarterly; S: Annual Now selected for sampling
A41: IRL | B41: Pollachius virens | C41: North Western waters (ICES areas Vb (only Union waters), VI and VII) | D41: ICES | E41: VII, VIII | F41: Other | G41: Q | H41: Q | J41: Q | K41: Q | M41: Q | N41: Q | P41: A | Q41: A | R41: A | Y41: L,A,W: quarterly; S: Annual
A42: IRL | B42: Scomber scombrus | C42: North Western waters (ICES areas Vb (only Union waters), VI and VII) | D42: ICES | E42: II, IIIa, IV, V, VI, VII, VIII, IX | F42: Other | G42: Q | H42: Q | J42: Q | K42: Q | M42: Q | N42: Q | P42: A | Q42: A | R42: A | S42: A | T42: A | Y42: L,A,W: quarterly; S,M: Annual
A43: IRL | B43: Solea solea | C43: North Western waters (ICES areas Vb (only Union waters), VI and VII) | D43: ICES | E43: VIIa | F43: A | G43: X | H43: X | J43: X | K43: X | M43: X | N43: X | P43: X | Q43: X | R43: X | S43: X | T43: X
A44: IRL | B44: Solea solea | C44: North Western waters (ICES areas Vb (only Union waters), VI and VII) | D44: ICES | E44: VIIbc | F44: A | G44: X | H44: X | M44: X | N44: X | P44: X | Q44: X | R44: X | S44: X | T44: X | Y44: No age-based assessment
A45: IRL | B45: Solea solea | C45: North Western waters (ICES areas Vb (only Union waters), VI and VII) | D45: ICES | E45: VIIhjk | F45: A | G45: X | H45: X | J45: X | K45: X | M45: X | N45: X | P45: X | Q45: X | R45: X | S45: X | T45: X
A46: IRL | B46: Trachurus trachurus | C46: North Western waters (ICES areas Vb (only Union waters), VI and VII) | D46: ICES | E46: IIa, IVa, Vb, VIa, VIIa-c, e-k, VIIIabde | F46: Other | G46: Q | H46: Q | J46: Q | K46: Q | M46: Q | N46: Q | P46: Q | Q46: Q | R46: Q | S46: Q | T46: Q
A47: IRL | B47: Raja brachyura | C47: North Western waters (ICES areas Vb (only Union waters), VI and VII) | D47: ICES | E47: VIIafg | F47: A | G47: X | H47: X | M47: X | N47: X | P47: X | Q47: X | R47: X | S47: X | T47: X
A48: IRL | B48: Leucoraja naevus | C48: North Western waters (ICES areas Vb (only Union waters), VI and VII) | D48: ICES | E48: VI, VII, VIIIabd | F48: A | G48: X | H48: X | M48: X | N48: X | P48: X | Q48: X | R48: X | S48: X | T48: X
A49: IRL | B49: Raja montagui | C49: North Western waters (ICES areas Vb (only Union waters), VI and VII) | D49: ICES | E49: VIIaefg | F49: A | G49: X | H49: X | M49: X | N49: X | P49: X | Q49: X | R49: X | S49: X | T49: X | Y49: Only from surveys
A50: IRL | B50: Raja clavata | C50: North Western waters (ICES areas Vb (only Union waters), VI and VII) | D50: ICES | E50: VIIafg | F50: A | G50: X | H50: X | M50: X | N50: X | P50: X | Q50: X | R50: X | S50: X | T50: X | Y50: Only from surveys
A51: IRL | B51: Raja clavata | C51: North Western waters (ICES areas Vb (only Union waters), VI and VII) | D51: ICES | E51: VI | F51: A | G51: X | H51: X | M51: X | N51: X | P51: X | Q51: X | R51: X | S51: X | T51: X | Y51: Only from surveys
A52: IRL | B52: Other skates and rays | C52: North Western waters (ICES areas Vb (only Union waters), VI and VII) | D52: ICES | E52: VI, VIIabcefghjk | F52: A | G52: X | H52: X | M52: X | N52: X | P52: X | Q52: X | R52: X | S52: X | T52: X | Y52: Only from surveys
A53: IRL | B53: Thunnus alalunga | C53: Other | D53: ICCAT | E53: Atlantic Ocean and adjacent seas | F53: A | G53: X | H53: X | M53: X | N53: X

Sheet Table1C Sampling intensity
A1: Table 1C: Sampling intensity for biological variables
P2: WP years | Q2: 2021
P3: AR year | Q3: 2021
A4: MS | B4: MS partcipating in sampling | C4: Sampling year | D4: Species | E4: Region | F4: RFMO/RFO/IO | G4: Area / Stock | H4: Variables | I4: Data sources | J4: Planned minimum no of individuals to be measured at the national level | K4: Planned minimum no of individuals to be measured at the regional level | L4: Comments | M4: Achieved number of individuals measured at the national level | N4: % of achievement (100*M/J) | O4: Achieved number of samples | P4: Sampling protocol | Q4: AR Comments
A5: IRL | B5: IRL | C5: 2021 | D5: Capros aper | E5: North Western waters (ICES areas Vb (only Union waters), VI and VII) | F5: ICES | G5: V, VI,VII | H5: Length | I5: Commercial | J5: 2000 | K5: 0 | M5: 13343 | N5: =M5/J5 -> 6.6715 | O5: 129 | P5: All individuals in a sample measured | Q5: Excess sampling intensity occurred at no additional expense to DCF
A6: IRL | B6: IRL | C6: 2021 | D6: Capros aper | E6: North Western waters (ICES areas Vb (only Union waters), VI and VII) | F6: ICES | G6: V, VI,VII | H6: Age | I6: Commercial | J6: 150 | K6: 0 | L6: 5 per 1/2 cm group | M6: 510 | N6: =M6/J6 -> 3.4 | O6: 11 | P6: 5 per 1/2 cm group | Q6: Excess sampling intensity occurred at no additional expense to DCF
A7: IRL | B7: IRL | C7: 2021 | D7: Capros aper | E7: North Western waters (ICES areas Vb (only Union waters), VI and VII) | F7: ICES | G7: V, VI,VII | H7: Weight | I7: Commercial | J7: 150 | K7: 0 | L7: 5 per 1/2 cm group | M7: 510 | N7: 3.4 | O7: 11 | P7: 5 per 1/2 cm group | Q7: Excess sampling intensity occurred at no additional expense to DCF
A8: IRL | B8: IRL | C8: 2021 | D8: Capros aper | E8: North Western waters (ICES areas Vb (only Union waters), VI and VII) | F8: ICES | G8: V, VI,VII | H8: Sex | I8: Commercial | J8: 150 | K8: 0 | L8: 5 per 1/2 cm group | M8: 491 | N8: 3.273333333 | O8: 11 | P8: 5 per 1/2 cm group | Q8: Excess sampling intensity occurred at no additional expense to DCF
A9: IRL | B9: IRL | C9: 2021 | D9: Capros aper | E9: North Western waters (ICES areas Vb (only Union waters), VI and VII) | F9: ICES | G9: V, VI,VII | H9: Maturity | I9: Commercial | J9: 150 | K9: 0 | L9: 5 per 1/2 cm group | M9: 510 | N9: 3.4 | O9: 11 | P9: 5 per 1/2 cm group | Q9: Excess sampling intensity occurred at no additional expense to DCF
A10: IRL | B10: IRL | C10: 2021 | D10: Capros aper | E10: North Western waters (ICES areas Vb (only Union waters), VI and VII) | F10: ICES | G10: V, VI,VII | H10: Length | I10: Survey | J10: 2000 | K10: 0 | L10: Increased to reflect actual sampling on survey | M10: 5451 | N10: 2.7255 | O10: 97 | P10: All individuals in a sample measured | Q10: Excess sampling intensity occurred at no additional expense to DCF
A11: IRL | B11: IRL | C11: 2021 | D11: Capros aper | E11: North Western waters (ICES areas Vb (only Union waters), VI and VII) | F11: ICES | G11: V, VI,VII | H11: Age | I11: Survey | J11: 500 | K11: 0 | L11: 1 per 1/2 cm per strata Increased to reflect actual sampling on survey | M11: 651 | N11: 1.302 | O11: 15 | P11: 1 per 1/2 cm per strata
A12: IRL | B12: IRL | C12: 2021 | D12: Capros aper | E12: North Western waters (ICES areas Vb (only Union waters), VI and VII) | F12: ICES | G12: V, VI,VII | H12: Weight | I12: Survey | J12: 500 | K12: 0 | L12: 1 per 1/2 cm per strata Increased to reflect actual sampling on survey | M12: 1024 | N12: 2.048 | O12: 15 | P12: 1 per 1/2 cm per strata | Q12: Excess sampling intensity occurred at no additional expense to DCF
A13: IRL | B13: IRL | C13: 2021 | D13: Capros aper | E13: North Western waters (ICES areas Vb (only Union waters), VI and VII) | F13: ICES | G13: V, VI,VII | H13: Sex | I13: Survey | J13: 500 | K13: 0 | L13: 1 per 1/2 cm per strata Increased to reflect actual sampling on survey | M13: 1024 | N13: 2.048 | O13: 15 | P13: 1 per 1/2 cm per strata | Q13: Excess sampling intensity occurred at no additional expense to DCF
A14: IRL | B14: IRL | C14: 2021 | D14: Capros aper | E14: North Western waters (ICES areas Vb (only Union waters), VI and VII) | F14: ICES | G14: V, VI,VII | H14: Maturity | I14: Survey | J14: 500 | K14: 0 | L14: 1 per 1/2 cm per strata Increased to reflect actual sampling on survey | M14: 1024 | N14: 2.048 | O14: 15 | P14: 1 per 1/2 cm per strata | Q14: Excess sampling intensity occurred at no additional expense to DCF
A15: IRL | B15: IRL | C15: 2021 | D15: Pecten maximus | E15: North Western waters (ICES areas Vb (only Union waters), VI and VII) | F15: NA | G15: IV, VI, VII | H15: Length | I15: Commercial | J15: 3000 | K15: 0 | M15: 13442 | N15: 4.480666667 | O15: 35 | P15: 3 bags of scallop measured from each Vessel at a processing facility | Q15: All measurements were recorded from landings and additional measurements were taken at national expense.
A16: IRL | B16: IRL | C16: 2021 | D16: Pecten maximus | E16: North Western waters (ICES areas Vb (only Union waters), VI and VII) | F16: NA | G16: IV, VI, VII | H16: Age | I16: Commercial | J16: 0 | K16: 0 | L16: Not selected for sampling | M16: 0 | O16: 0 | P16: NA | Q16: Not selected for sampling
A17: IRL | B17: IRL | C17: 2021 | D17: Pecten maximus | E17: North Western waters (ICES areas Vb (only Union waters), VI and VII) | F17: NA | G17: IV, VI, VII | H17: Weight | I17: Commercial | J17: 300 | K17: 0 | M17: 300 | N17: 1 | O17: 0 | P17: 3 bags of scallop measured from each Vessel at a processing facility
A18: IRL | B18: IRL | C18: 2021 | D18: Pecten maximus | E18: North Western waters (ICES areas Vb (only Union waters), VI and VII) | F18: NA | G18: IV, VI, VII | H18: Sex | I18: Commercial | J18: 0 | K18: 0 | L18: Not selected for sampling | M18: 0 | O18: 0 | P18: NA | Q18: Not selected for sampling
A19: IRL | B19: IRL | C19: 2021 | D19: Pecten maximus | E19: North Western waters (ICES areas Vb (only Union waters), VI and VII) | F19: NA | G19: IV, VI, VII | H19: Maturity | I19: Commercial | J19: 0 | K19: 0 | L19: Not selected for sampling | M19: 0 | O19: 0 | P19: NA | Q19: Not selected for sampling
A20: IRL | B20: IRL | C20: 2021 | D20: Pecten maximus | E20: North Western waters (ICES areas Vb (only Union waters), VI and VII) | F20: NA | G20: IV, VI, VII | H20: Length | I20: Survey | J20: 500 | K20: 0 | M20: 2151 | N20: 4.302 | O20: 83 | P20: All specimens sampled from each dredge unless the bulk catch is too large in which case 1/2 the bulk catchis sampled. | Q20: Excess sampling intensity occurred at no additional expense to DCF
A21: IRL | B21: IRL | C21: 2021 | D21: Pecten maximus | E21: North Western waters (ICES areas Vb (only Union waters), VI and VII) | F21: NA | G21: IV, VI, VII | H21: Age | I21: Survey | J21: 0 | K21: 0 | L21: Not selected for sampling | M21: 0 | O21: 0 | P21: NA | Q21: Not selected for sampling
A22: IRL | B22: IRL | C22: 2021 | D22: Pecten maximus | E22: North Western waters (ICES areas Vb (only Union waters), VI and VII) | F22: NA | G22: IV, VI, VII | H22: Weight | I22: Survey | J22: 100 | K22: 0 | M22: 173 | N22: 1.73 | O22: 12 | P22: All specimens sampled from each dredge unless the bulk catch is too large in which case 1/2 the bulk catchis sampled. | Q22: Additional weights collected at national expense.
A23: IRL | B23: IRL | C23: 2021 | D23: Pecten maximus | E23: North Western waters (ICES areas Vb (only Union waters), VI and VII) | F23: NA | G23: IV, VI, VII | H23: Sex | I23: Survey | J23: 0 | K23: 0 | L23: Not selected for sampling | M23: 0 | O23: 0 | P23: NA | Q23: Not selected for sampling
A24: IRL | B24: IRL | C24: 2021 | D24: Pecten maximus | E24: North Western waters (ICES areas Vb (only Union waters), VI and VII) | F24: NA | G24: IV, VI, VII | H24: Maturity | I24: Survey | J24: 0 | K24: 0 | L24: Not selected for sampling | M24: 0 | O24: 0 | P24: NA | Q24: Not selected for sampling
A25: IRL | B25: IRL | C25: 2021 | D25: Maja squinado | E25: North Western waters (ICES areas Vb (only Union waters), VI and VII) | F25: NA | G25: V, VI,VII | H25: Length | I25: Commercial | J25: 500 | K25: 0 | M25: 937 | N25: 1.874 | O25: 19 | P25: All individuals in a sample measured | Q25: Excess sampling intensity occurred at no additional expense to DCF
A26: IRL | B26: IRL | C26: 2021 | D26: Maja squinado | E26: North Western waters (ICES areas Vb (only Union waters), VI and VII) | F26: NA | G26: V, VI,VII | H26: Age | I26: Commercial | J26: 0 | K26: 0 | L26: Not selected for sampling | M26: 0 | O26: 0 | P26: NA | Q26: Not selected for sampling
A27: IRL | B27: IRL | C27: 2021 | D27: Maja squinado | E27: North Western waters (ICES areas Vb (only Union waters), VI and VII) | F27: NA | G27: V, VI,VII | H27: Weight | I27: Commercial | J27: 200 | K27: 0 | M27: 937 | N27: 4.685 | O27: 19 | P27: All individuals in a sample weighed | Q27: Excess sampling intensity occurred at no additional expense to DCF
A28: IRL | B28: IRL | C28: 2021 | D28: Maja squinado | E28: North Western waters (ICES areas Vb (only Union waters), VI and VII) | F28: NA | G28: V, VI,VII | H28: Sex | I28: Commercial | J28: 500 | K28: 0 | M28: 937 | N28: 1.874 | O28: 19 | P28: All individuals in a sample sexed | Q28: Excess sampling intensity occurred at no additional expense to DCF
A29: IRL | B29: IRL | C29: 2021 | D29: Maja squinado | E29: North Western waters (ICES areas Vb (only Union waters), VI and VII) | F29: NA | G29: V, VI,VII | H29: Maturity | I29: Commercial | J29: 0 | K29: 0 | L29: Not selected for sampling | M29: 0 | O29: 0 | P29: NA | Q29: Not selected for sampling
A30: IRL | B30: IRL | C30: 2021 | D30: Cancer pagurus | E30: North Western waters (ICES areas Vb (only Union waters), VI and VII) | F30: ICES | G30: all areas | H30: Length | I30: Commercial | J30: 3000 | K30: 0 | M30: 10805 | N30: 3.601666667 | O30: 75 | P30: Cancer pagurus measured by observers on board vessels targetting lobster and brown crab. Either the total catch from all pots per string are measured or the catch from the first ten pots is measured. | Q30: Excess sampling intensity occurred at no additional expense to DCF
A31: IRL | B31: IRL | C31: 2021 | D31: Cancer pagurus | E31: North Western waters (ICES areas Vb (only Union waters), VI and VII) | F31: ICES | G31: all areas | H31: Age | I31: Commercial | J31: 0 | K31: 0 | L31: Not selected for sampling | M31: 0 | O31: 0 | P31: NA | Q31: Not selected for sampling
A32: IRL | B32: IRL | C32: 2021 | D32: Cancer pagurus | E32: North Western waters (ICES areas Vb (only Union waters), VI and VII) | F32: ICES | G32: all areas | H32: Weight | I32: Commercial | J32: 1000 | K32: 0 | M32: 5213 | N32: 5.213 | O32: 35 | P32: Landed Cancer pagurus measured at a processing facility. | Q32: Excess sampling intensity occurred at no additional expense to DCF
A33: IRL | B33: IRL | C33: 2021 | D33: Cancer pagurus | E33: North Western waters (ICES areas Vb (only Union waters), VI and VII) | F33: ICES | G33: all areas | H33: Sex | I33: Commercial | J33: 3000 | K33: 0 | M33: 10805 | N33: 3.601666667 | O33: 75 | P33: Landed Cancer pagurus measured at a processing facility. | Q33: Excess sampling intensity occurred at no additional expense to DCF
A34: IRL | B34: IRL | C34: 2021 | D34: Cancer pagurus | E34: North Western waters (ICES areas Vb (only Union waters), VI and VII) | F34: ICES | G34: all areas | H34: Maturity | I34: Commercial | J34: 0 | K34: 0 | L34: Not selected for sampling | M34: 0 | O34: 0 | P34: NA | Q34: Not selected for sampling
A35: IRL | B35: IRL | C35: 2021 | D35: Clupea harengus | E35: North Western waters (ICES areas Vb (only Union waters), VI and VII) | F35: ICES | G35: VIaN | H35: Length | I35: Commercial | J35: 320 | K35: 0 | M35: 0 | O35: 0 | P35: NA | Q35: Deselected from sampling but a target was mistakenly included in Table 1C of the NWP. For consistency the target has been reported in Table IC of the AR, but no sampling was possible as no fishery took place.
A36: IRL | B36: IRL | C36: 2021 | D36: Clupea harengus | E36: North Western waters (ICES areas Vb (only Union waters), VI and VII) | F36: ICES | G36: VIaN | H36: Age | I36: Commercial | J36: 320 | K36: 0 | L36: 50 per sample | M36: 0 | O36: 0 | P36: NA | Q36: Deselected from sampling but a target was mistakenly included in Table 1C of the NWP. For consistency the target has been reported in Table IC of the AR, but no sampling was possible as no fishery took place.
A37: IRL | B37: IRL | C37: 2021 | D37: Clupea harengus | E37: North Western waters (ICES areas Vb (only Union waters), VI and VII) | F37: ICES | G37: VIaN | H37: Weight | I37: Commercial | J37: 320 | K37: 0 | L37: 50 per sample | M37: 0 | O37: 0 | P37: NA | Q37: Deselected from sampling but a target was mistakenly included in Table 1C of the NWP. For consistency the target has been reported in Table IC of the AR, but no sampling was possible as no fishery took place.
A38: IRL | B38: IRL | C38: 2021 | D38: Clupea harengus | E38: North Western waters (ICES areas Vb (only Union waters), VI and VII) | F38: ICES | G38: VIaN | H38: Sex | I38: Commercial | J38: 320 | K38: 0 | L38: 50 per sample | M38: 0 | O38: 0 | P38: NA | Q38: Deselected from sampling but a target was mistakenly included in Table 1C of the NWP. For consistency the target has been reported in Table IC of the AR, but no sampling was possible as no fishery took place.
A39: IRL | B39: IRL | C39: 2021 | D39: Clupea harengus | E39: North Western waters (ICES areas Vb (only Union waters), VI and VII) | F39: ICES | G39: VIaN | H39: Maturity | I39: Commercial | J39: 320 | K39: 0 | L39: 50 per sample | M39: 0 | O39: 0 | P39: NA | Q39: Deselected from sampling but a target was mistakenly included in Table 1C of the NWP. For consistency the target has been reported in Table IC of the AR, but no sampling was possible as no fishery took place.
A40: IRL | B40: IRL | C40: 2021 | D40: Clupea harengus | E40: North Western waters (ICES areas Vb (only Union waters), VI and VII) | F40: ICES | G40: VIaN | H40: Length | I40: Survey | J40: 2500 | K40: 0 | L40: Increased to reflect actual sampling on survey | M40: 2171 | N40: 0.8684 | O40: 4 | P40: All individuals in a sample measured | Q40: All herring encountered on survey were measured.
A41: IRL | B41: IRL | C41: 2021 | D41: Clupea harengus | E41: North Western waters (ICES areas Vb (only Union waters), VI and VII) | F41: ICES | G41: VIaN | H41: Age | I41: Survey | J41: 400 | K41: 0 | L41: 1 per 1/2 cm per strata Increased to reflect actual sampling on survey | M41: 400 | N41: 1 | O41: 4 | P41: 1 per 1/2 cm per strata
A42: IRL | B42: IRL | C42: 2021 | D42: Clupea harengus | E42: North Western waters (ICES areas Vb (only Union waters), VI and VII) | F42: ICES | G42: VIaN | H42: Weight | I42: Survey | J42: 400 | K42: 0 | L42: 1 per 1/2 cm per strata Increased to reflect actual sampling on survey | M42: 400 | N42: 1 | O42: 4 | P42: 1 per 1/2 cm per strata
A43: IRL | B43: IRL | C43: 2021 | D43: Clupea harengus | E43: North Western waters (ICES areas Vb (only Union waters), VI and VII) | F43: ICES | G43: VIaN | H43: Sex | I43: Survey | J43: 400 | K43: 0 | L43: 1 per 1/2 cm per strata Increased to reflect actual sampling on survey | M43: 400 | N43: 1 | O43: 4 | P43: 1 per 1/2 cm per strata
A44: IRL | B44: IRL | C44: 2021 | D44: Clupea harengus | E44: North Western waters (ICES areas Vb (only Union waters), VI and VII) | F44: ICES | G44: VIaN | H44: Maturity | I44: Survey | J44: 400 | K44: 0 | L44: 1 per 1/2 cm per strata Increased to reflect actual sampling on survey | M44: 400 | N44: 1 | O44: 4 | P44: 1 per 1/2 cm per strata
A45: IRL | B45: IRL | C45: 2021 | D45: Clupea harengus | E45: North Western waters (ICES areas Vb (only Union waters), VI and VII) | F45: ICES | G45: VIaS | H45: Length | I45: Commercial | J45: 320 | K45: 0 | M45: 10306 | N45: 32.20625 | O45: 41 | P45: All individuals in a sample measured | Q45: Excess sampling intensity occurred at no additional expense to DCF
A46: IRL | B46: IRL | C46: 2021 | D46: Clupea harengus | E46: North Western waters (ICES areas Vb (only Union waters), VI and VII) | F46: ICES | G46: VIaS | H46: Age | I46: Commercial | J46: 320 | K46: 0 | L46: 5 per length class | M46: 2037 | N46: 6.365625 | O46: 35 | P46: 5 per 1/2 cm length group | Q46: Excess sampling intensity occurred at no additional expense to DCF
A47: IRL | B47: IRL | C47: 2021 | D47: Clupea harengus | E47: North Western waters (ICES areas Vb (only Union waters), VI and VII) | F47: ICES | G47: VIaS | H47: Weight | I47: Commercial | J47: 320 | K47: 0 | L47: 5 per length class | M47: 2037 | N47: 6.365625 | O47: 35 | P47: 5 per 1/2 cm length group | Q47: Excess sampling intensity occurred at no additional expense to DCF
A48: IRL | B48: IRL | C48: 2021 | D48: Clupea harengus | E48: North Western waters (ICES areas Vb (only Union waters), VI and VII) | F48: ICES | G48: VIaS | H48: Sex | I48: Commercial | J48: 320 | K48: 0 | L48: 5 per length class | M48: 2037 | N48: 6.365625 | O48: 35 | P48: 5 per 1/2 cm length group | Q48: Excess sampling intensity occurred at no additional expense to DCF
A49: IRL | B49: IRL | C49: 2021 | D49: Clupea harengus | E49: North Western waters (ICES areas Vb (only Union waters), VI and VII) | F49: ICES | G49: VIaS | H49: Maturity | I49: Commercial | J49: 320 | K49: 0 | L49: 5 per length class | M49: 2037 | N49: 6.365625 | O49: 35 | P49: 5 per 1/2 cm length group | Q49: Excess sampling intensity occurred at no additional expense to DCF
A50: IRL | B50: IRL | C50: 2021 | D50: Clupea harengus | E50: North Western waters (ICES areas Vb (only Union waters), VI and VII) | F50: ICES | G50: VIaS | H50: Length | I50: Survey | J50: 500 | K50: 0 | M50: 5464 | N50: 10.928 | O50: 15 | P50: Random subsample | Q50: Excess sampling intensity occurred at no additional expense to DCF
A51: IRL | B51: IRL | C51: 2021 | D51: Clupea harengus | E51: North Western waters (ICES areas Vb (only Union waters), VI and VII) | F51: ICES | G51: VIaS | H51: Age | I51: Survey | J51: 250 | K51: 0 | L51: 1 per 1/2 cm per strata | M51: 913 | N51: 3.652 | O51: 15 | P51: 1 per 1/2 cm per strata | Q51: Excess sampling intensity occurred at no additional expense to DCF
A52: IRL | B52: IRL | C52: 2021 | D52: Clupea harengus | E52: North Western waters (ICES areas Vb (only Union waters), VI and VII) | F52: ICES | G52: VIaS | H52: Weight | I52: Survey | J52: 250 | K52: 0 | L52: 1 per 1/2 cm per strata | M52: 913 | N52: 3.652 | O52: 15 | P52: 1 per 1/2 cm per strata | Q52: Excess sampling intensity occurred at no additional expense to DCF
A53: IRL | B53: IRL | C53: 2021 | D53: Clupea harengus | E53: North Western waters (ICES areas Vb (only Union waters), VI and VII) | F53: ICES | G53: VIaS | H53: Sex | I53: Survey | J53: 250 | K53: 0 | L53: 1 per 1/2 cm per strata | M53: 913 | N53: 3.652 | O53: 15 | P53: 1 per 1/2 cm per strata | Q53: Excess sampling intensity occurred at no additional expense to DCF
A54: IRL | B54: IRL | C54: 2021 | D54: Clupea harengus | E54: North Western waters (ICES areas Vb (only Union waters), VI and VII) | F54: ICES | G54: VIaS | H54: Maturity | I54: Survey | J54: 250 | K54: 0 | L54: 1 per 1/2 cm per strata | M54: 913 | N54: 3.652 | O54: 15 | P54: 1 per 1/2 cm per strata | Q54: Excess sampling intensity occurred at no additional expense to DCF
A55: IRL | B55: IRL | C55: 2021 | D55: Clupea harengus | E55: North Western waters (ICES areas Vb (only Union waters), VI and VII) | F55: ICES | G55: VIIa | H55: Length | I55: Commercial | J55: 80 | K55: 0 | M55: 5123 | N55: 64.0375 | O55: 24 | P55: All individuals in a sample measured | Q55: Excess sampling intensity occurred at no additional expense to DCF
A56: IRL | B56: IRL | C56: 2021 | D56: Clupea harengus | E56: North Western waters (ICES areas Vb (only Union waters), VI and VII) | F56: ICES | G56: VIIa | H56: Age | I56: Commercial | J56: 80 | K56: 0 | L56: 50 per sample | M56: 1100 | N56: 13.75 | O56: 22 | P56: 50 per sample | Q56: Excess sampling intensity occurred at no additional expense to DCF
A57: IRL | B57: IRL | C57: 2021 | D57: Clupea harengus | E57: North Western waters (ICES areas Vb (only Union waters), VI and VII) | F57: ICES | G57: VIIa | H57: Weight | I57: Commercial | J57: 80 | K57: 0 | L57: 50 per sample | M57: 1100 | N57: 13.75 | O57: 22 | P57: 50 per sample | Q57: Excess sampling intensity occurred at no additional expense to DCF
A58: IRL | B58: IRL | C58: 2021 | D58: Clupea harengus | E58: North Western waters (ICES areas Vb (only Union waters), VI and VII) | F58: ICES | G58: VIIa | H58: Sex | I58: Commercial | J58: 80 | K58: 0 | L58: 50 per sample | M58: 1099 | N58: 13.7375 | O58: 22 | P58: 50 per sample | Q58: Excess sampling intensity occurred at no additional expense to DCF
A59: IRL | B59: IRL | C59: 2021 | D59: Clupea harengus | E59: North Western waters (ICES areas Vb (only Union waters), VI and VII) | F59: ICES | G59: VIIa | H59: Maturity | I59: Commercial | J59: 80 | K59: 0 | L59: 50 per sample | M59: 1095 | N59: 13.6875 | O59: 22 | P59: 50 per sample | Q59: Excess sampling intensity occurred at no additional expense to DCF
A60: IRL | B60: IRL | C60: 2021 | D60: Clupea harengus | E60: North Western waters (ICES areas Vb (only Union waters), VI and VII) | F60: ICES | G60: VIIa | H60: Length | I60: Survey | J60: 0 | K60: 0 | L60: Commercial sampling only | M60: 0 | P60: NA | Q60: Not selected for sampling.
A61: IRL | B61: IRL | C61: 2021 | D61: Clupea harengus | E61: North Western waters (ICES areas Vb (only Union waters), VI and VII) | F61: ICES | G61: VIIa | H61: Age | I61: Survey | J61: 0 | K61: 0 | L61: Commercial sampling only | M61: 0 | P61: NA | Q61: Not selected for sampling
A62: IRL | B62: IRL | C62: 2021 | D62: Clupea harengus | E62: North Western waters (ICES areas Vb (only Union waters), VI and VII) | F62: ICES | G62: VIIa | H62: Weight | I62: Survey | J62: 0 | K62: 0 | L62: Commercial sampling only | M62: 0 | P62: NA | Q62: Not selected for sampling
A63: IRL | B63: IRL | C63: 2021 | D63: Clupea harengus | E63: North Western waters (ICES areas Vb (only Union waters), VI and VII) | F63: ICES | G63: VIIa | H63: Sex | I63: Survey | J63: 0 | K63: 0 | L63: Commercial sampling only | M63: 0 | P63: NA | Q63: Not selected for sampling
A64: IRL | B64: IRL | C64: 2021 | D64: Clupea harengus | E64: North Western waters (ICES areas Vb (only Union waters), VI and VII) | F64: ICES | G64: VIIa | H64: Maturity | I64: Survey | J64: 0 | K64: 0 | L64: Commercial sampling only | M64: 0 | P64: NA | Q64: Not selected for sampling
A65: IRL | B65: IRL | C65: 2021 | D65: Clupea harengus | E65: North Western waters (ICES areas Vb (only Union waters), VI and VII) | F65: ICES | G65: VIIj | H65: Length | I65: Commercial | J65: 1500 | K65: 0 | L65: interpret this as VIIa(S),VIIg and VIIj | M65: 0 | O65: 0 | P65: All individuals in a sample measured | Q65: Landings of Clupea harengus have fallen by over 60% from 94.52t in 2020 to 34.5t in 2021. A full level 5 lockdown in Q1 and Q2 combined with a National Vessel Tie Up Scheme in Q4 made it extremely difficult to access these small landings for sampling.
A66: IRL | B66: IRL | C66: 2021 | D66: Clupea harengus | E66: North Western waters (ICES areas Vb (only Union waters), VI and VII) | F66: ICES | G66: VIIj | H66: Age | I66: Commercial | J66: 1500 | K66: 0 | L66: interpret this as VIIa(S),VIIg and VIIj | M66: 0 | O66: 0 | P66: 50 per sample | Q66: Landings of Clupea harengus have fallen by over 60% from 94.52t in 2020 to 34.5t in 2021. A full level 5 lockdown in Q1 and Q2 combined with a National Vessel Tie Up Scheme in Q4 made it extremely difficult to access these small landings for sampling.
A67: IRL | B67: IRL | C67: 2021 | D67: Clupea harengus | E67: North Western waters (ICES areas Vb (only Union waters), VI and VII) | F67: ICES | G67: VIIj | H67: Weight | I67: Commercial | J67: 1500 | K67: 0 | L67: interpret this as VIIa(S),VIIg and VIIj | M67: 0 | O67: 0 | P67: 50 per sample | Q67: Landings of Clupea harengus have fallen by over 60% from 94.52t in 2020 to 34.5t in 2021. A full level 5 lockdown in Q1 and Q2 combined with a National Vessel Tie Up Scheme in Q4 made it extremely difficult to access these small landings for sampling.
A68: IRL | B68: IRL | C68: 2021 | D68: Clupea harengus | E68: North Western waters (ICES areas Vb (only Union waters), VI and VII) | F68: ICES | G68: VIIj | H68: Sex | I68: Commercial | J68: 1500 | K68: 0 | L68: interpret this as VIIa(S),VIIg and VIIj | M68: 0 | O68: 0 | P68: 50 per sample | Q68: Landings of Clupea harengus have fallen by over 60% from 94.52t in 2020 to 34.5t in 2021. A full level 5 lockdown in Q1 and Q2 combined with a National Vessel Tie Up Scheme in Q4 made it extremely difficult to access these small landings for sampling.
A69: IRL | B69: IRL | C69: 2021 | D69: Clupea harengus | E69: North Western waters (ICES areas Vb (only Union waters), VI and VII) | F69: ICES | G69: VIIj | H69: Maturity | I69: Commercial | J69: 1500 | K69: 0 | L69: interpret this as VIIa(S),VIIg and VIIj | M69: 0 | O69: 0 | P69: 50 per sample | Q69: Landings of Clupea harengus have fallen by over 60% from 94.52t in 2020 to 34.5t in 2021. A full level 5 lockdown in Q1 and Q2 combined with a National Vessel Tie Up Scheme in Q4 made it extremely difficult to access these small landings for sampling.
A70: IRL | B70: IRL | C70: 2021 | D70: Clupea harengus | E70: North Western waters (ICES areas Vb (only Union waters), VI and VII) | F70: ICES | G70: VIIj | H70: Length | I70: Survey | J70: 100 | K70: 0 | L70: interpret this as VIIa(S),VIIg and VIIj | M70: 939 | N70: =M70/J70 -> 9.39 | O70: 6 | P70: All individuals in a sample measured | Q70: Additional samples of Clupea harengus were sampled on survey to part compensate for the lack of samples secured from market sampling in this area.
A71: IRL | B71: IRL | C71: 2021 | D71: Clupea harengus | E71: North Western waters (ICES areas Vb (only Union waters), VI and VII) | F71: ICES | G71: VIIj | H71: Age | I71: Survey | J71: 100 | K71: 0 | L71: interpret this as VIIa(S),VIIg and VIIj 50 per sample | M71: 512 | N71: 5.12 | O71: 6 | P71: 1 per 1/2 cm per strata | Q71: Additional samples of Clupea harengus were sampled on survey to part compensate for the lack of samples secured from market sampling in this area.
A72: IRL | B72: IRL | C72: 2021 | D72: Clupea harengus | E72: North Western waters (ICES areas Vb (only Union waters), VI and VII) | F72: ICES | G72: VIIj | H72: Weight | I72: Survey | J72: 100 | K72: 0 | L72: interpret this as VIIa(S),VIIg and VIIj 50 per sample | M72: 214 | N72: 2.14 | O72: 6 | P72: 1 per 1/2 cm per strata | Q72: Additional samples of Clupea harengus were sampled on survey to part compensate for the lack of samples secured from market sampling in this area.
A73: IRL | B73: IRL | C73: 2021 | D73: Clupea harengus | E73: North Western waters (ICES areas Vb (only Union waters), VI and VII) | F73: ICES | G73: VIIj | H73: Sex | I73: Survey | J73: 100 | K73: 0 | L73: interpret this as VIIa(S),VIIg and VIIj 50 per sample | M73: 512 | N73: 5.12 | O73: 6 | P73: 1 per 1/2 cm per strata | Q73: Additional samples of Clupea harengus were sampled on survey to part compensate for the lack of samples secured from market sampling in this area.
A74: IRL | B74: IRL | C74: 2021 | D74: Clupea harengus | E74: North Western waters (ICES areas Vb (only Union waters), VI and VII) | F74: ICES | G74: VIIj | H74: Maturity | I74: Survey | J74: 100 | K74: 0 | L74: interpret this as VIIa(S),VIIg and VIIj 50 per sample | M74: 512 | N74: 5.12 | O74: 6 | P74: 1 per 1/2 cm per strata | Q74: Additional samples of Clupea harengus were sampled on survey to part compensate for the lack of samples secured from market sampling in this area.
A75: IRL | B75: IRL | C75: 2021 | D75: Gadus morhua | E75: North Western waters (ICES areas Vb (only Union waters), VI and VII) | F75: ICES | G75: VIa | H75: Length | I75: Commercial | J75: 1000 | K75: 0 | M75: 1999 | N75: 1.999 | O75: 32 | P75: All individuals in a sample measured | Q75: Excess sampling intensity occurred at no additional expense to DCF
A76: IRL | B76: IRL | C76: 2021 | D76: Gadus morhua | E76: North Western waters (ICES areas Vb (only Union waters), VI and VII) | F76: ICES | G76: VIa | H76: Age | I76: Commercial | J76: 750 | K76: 0 | L76: target is one fish per 1 cm size class per sample | M76: 443 | N76: 0.5906666667 | O76: 24 | P76: 1 per 1 cm per sample | Q76: 83.99t of Gadus morhua were landed in VIa in 2021. Accessing samples was difficult with limited access being granted to Marine Institute staff to sample in the local fishermen's Co - Op, during further Covid 19 level 5 national lockdowns in the first half of 2021.
A77: IRL | B77: IRL | C77: 2021 | D77: Gadus morhua | E77: North Western waters (ICES areas Vb (only Union waters), VI and VII) | F77: ICES | G77: VIa | H77: Weight | I77: Commercial | J77: 750 | K77: 0 | L77: target is one fish per 1 cm size class per sample | M77: 443 | N77: 0.5906666667 | O77: 24 | P77: 1 per 1 cm per sample | Q77: 83.99t of Gadus morhua were landed in VIa in 2021. Accessing samples was difficult with limited access being granted to Marine Institute staff to sample in the local fishermen's Co - Op, during further Covid 19 level 5 national lockdowns in the first half of 2021.
A78: IRL | B78: IRL | C78: 2021 | D78: Gadus morhua | E78: North Western waters (ICES areas Vb (only Union waters), VI and VII) | F78: ICES | G78: VIa | H78: Sex | I78: Commercial | J78: 250 | K78: 0 | L78: target is one fish per 1 cm size class per sample | M78: 60 | N78: 0.24 | O78: 3 | P78: 1 per 1 cm per sample | Q78: 83.99t of Gadus morhua were landed in VIa in 2021. Accessing samples was difficult with limited access being granted to Marine Institute staff to sample in the local fishermen's Co - Op, during further Covid 19 level 5 national lockdowns in the first half of 2021.
A79: IRL | B79: IRL | C79: 2021 | D79: Gadus morhua | E79: North Western waters (ICES areas Vb (only Union waters), VI and VII) | F79: ICES | G79: VIa | H79: Maturity | I79: Commercial | J79: 100 | K79: 0 | L79: target is one fish per 1 cm size class per sample | M79: 60 | N79: 0.6 | O79: 3 | P79: 1 per 1 cm per sample | Q79: 83.99t of Gadus morhua were landed in VIa in 2021. Accessing samples was difficult with limited access being granted to Marine Institute staff to sample in the local fishermen's Co - Op, during further Covid 19 level 5 national lockdowns in the first half of 2021.
A80: IRL | B80: IRL | C80: 2021 | D80: Gadus morhua | E80: North Western waters (ICES areas Vb (only Union waters), VI and VII) | F80: ICES | G80: VIa | H80: Length | I80: Survey | J80: 25 | K80: 0 | L80: As per IBTS Manual | M80: 81 | N80: 3.24 | O80: 17 | P80: As per IBTS Manual | Q80: Additional Gadus morhua were encountered on suvey and were sampled at no additional expense to the DCF, in order to bolster sampling for cod in this area.
A81: IRL | B81: IRL | C81: 2021 | D81: Gadus morhua | E81: North Western waters (ICES areas Vb (only Union waters), VI and VII) | F81: ICES | G81: VIa | H81: Age | I81: Survey | J81: 25 | K81: 0 | L81: As per IBTS Manual | M81: 61 | N81: 2.44 | O81: 17 | P81: As per IBTS Manual | Q81: Additional Gadus morhua were encountered on suvey and were sampled at no additional expense to the DCF, in order to bolster sampling for cod in this area.
A82: IRL | B82: IRL | C82: 2021 | D82: Gadus morhua | E82: North Western waters (ICES areas Vb (only Union waters), VI and VII) | F82: ICES | G82: VIa | H82: Weight | I82: Survey | J82: 25 | K82: 0 | L82: As per IBTS Manual | M82: 61 | N82: 2.44 | O82: 17 | P82: As per IBTS Manual | Q82: Additional Gadus morhua were encountered on suvey and were sampled at no additional expense to the DCF, in order to bolster sampling for cod in this area.
A83: IRL | B83: IRL | C83: 2021 | D83: Gadus morhua | E83: North Western waters (ICES areas Vb (only Union waters), VI and VII) | F83: ICES | G83: VIa | H83: Sex | I83: Survey | J83: 25 | K83: 0 | L83: As per IBTS Manual | M83: 61 | N83: 2.44 | O83: 17 | P83: As per IBTS Manual | Q83: Additional Gadus morhua were encountered on suvey and were sampled at no additional expense to the DCF, in order to bolster sampling for cod in this area.
A84: IRL | B84: IRL | C84: 2021 | D84: Gadus morhua | E84: North Western waters (ICES areas Vb (only Union waters), VI and VII) | F84: ICES | G84: VIa | H84: Maturity | I84: Survey | J84: 0 | K84: 0 | L84: Commercial sampling only | M84: 0 | O84: 0 | P84: NA | Q84: Not selected for sampling
A85: IRL | B85: IRL | C85: 2021 | D85: Gadus morhua | E85: North Western waters (ICES areas Vb (only Union waters), VI and VII) | F85: ICES | G85: VIIa | H85: Length | I85: Commercial | J85: 1000 | K85: 0 | M85: 166 | N85: 0.166 | O85: 11 | P85: All individuals in a sample measured | Q85: Landings decreased from 118.83t in 2020 to 76.68t in 2021. Also sampling proved difficult in this area as the main fish buyer and processor remained closed to sampling throughout 2021 due to the on going Covid 19 global pandemic.
A86: IRL | B86: IRL | C86: 2021 | D86: Gadus morhua | E86: North Western waters (ICES areas Vb (only Union waters), VI and VII) | F86: ICES | G86: VIIa | H86: Age | I86: Commercial | J86: 750 | K86: 0 | L86: target is one fish per 1 cm size class per sample | M86: 158 | N86: 0.2106666667 | O86: 9 | P86: 1 per 1 cm per sample | Q86: Landings decreased from 118.83t in 2020 to 76.68t in 2021. Also sampling proved difficult in this area as the main fish buyer and processor remained closed to sampling throughout 2021 due to the on going Covid 19 global pandemic.
A87: IRL | B87: IRL | C87: 2021 | D87: Gadus morhua | E87: North Western waters (ICES areas Vb (only Union waters), VI and VII) | F87: ICES | G87: VIIa | H87: Weight | I87: Commercial | J87: 750 | K87: 0 | L87: target is one fish per 1 cm size class per sample | M87: 158 | N87: 0.2106666667 | O87: 9 | P87: 1 per 1 cm per sample | Q87: Landings decreased from 118.83t in 2020 to 76.68t in 2021. Also sampling proved difficult in this area as the main fish buyer and processor remained closed to sampling throughout 2021 due to the on going Covid 19 global pandemic.
A88: IRL | B88: IRL | C88: 2021 | D88: Gadus morhua | E88: North Western waters (ICES areas Vb (only Union waters), VI and VII) | F88: ICES | G88: VIIa | H88: Sex | I88: Commercial | J88: 250 | K88: 0 | L88: target is one fish per 1 cm size class per sample | M88: 0 | O88: 0 | P88: 1 per 1 cm per sample | Q88: Landings decreased slightly from 76t in 2020 to 75t in 2021. Also sampling proved difficult in this area as the main fish buyer and processor remained closed to sampling throughout 2021 due to the on going Covid 19 global pandemic.
A89: IRL | B89: IRL | C89: 2021 | D89: Gadus morhua | E89: North Western waters (ICES areas Vb (only Union waters), VI and VII) | F89: ICES | G89: VIIa | H89: Maturity | I89: Commercial | J89: 250 | K89: 0 | L89: target is one fish per 1 cm size class per sample | M89: 0 | O89: 0 | P89: 1 per 1 cm per sample | Q89: Landings decreased slightly from 76t in 2020 to 75t in 2021. Also sampling proved difficult in this area as the main fish buyer and processor remained closed to sampling throughout 2021 due to the on going Covid 19 global pandemic.
A90: IRL | B90: IRL | C90: 2021 | D90: Gadus morhua | E90: North Western waters (ICES areas Vb (only Union waters), VI and VII) | F90: ICES | G90: VIIa | H90: Length | I90: Survey | J90: 0 | K90: 0 | L90: Commercial sampling only | M90: 0 | O90: 0 | P90: NA | Q90: Not selected for sampling
A91: IRL | B91: IRL | C91: 2021 | D91: Gadus morhua | E91: North Western waters (ICES areas Vb (only Union waters), VI and VII) | F91: ICES | G91: VIIa | H91: Age | I91: Survey | J91: 0 | K91: 0 | L91: Commercial sampling only | M91: 0 | O91: 0 | P91: NA | Q91: Not selected for sampling
A92: IRL | B92: IRL | C92: 2021 | D92: Gadus morhua | E92: North Western waters (ICES areas Vb (only Union waters), VI and VII) | F92: ICES | G92: VIIa | H92: Weight | I92: Survey | J92: 0 | K92: 0 | L92: Commercial sampling only | M92: 0 | O92: 0 | P92: NA | Q92: Not selected for sampling
A93: IRL | B93: IRL | C93: 2021 | D93: Gadus morhua | E93: North Western waters (ICES areas Vb (only Union waters), VI and VII) | F93: ICES | G93: VIIa | H93: Sex | I93: Survey | J93: 0 | K93: 0 | L93: Commercial sampling only | M93: 0 | O93: 0 | P93: NA | Q93: Not selected for sampling
A94: IRL | B94: IRL | C94: 2021 | D94: Gadus morhua | E94: North Western waters (ICES areas Vb (only Union waters), VI and VII) | F94: ICES | G94: VIIa | H94: Maturity | I94: Survey | J94: 0 | K94: 0 | L94: Commercial sampling only | M94: 0 | O94: 0 | P94: NA | Q94: Not selected for sampling
A95: IRL | B95: IRL | C95: 2021 | D95: Gadus morhua | E95: North Western waters (ICES areas Vb (only Union waters), VI and VII) | F95: ICES | G95: VIIe-k | H95: Length | I95: Commercial | J95: 2000 | K95: 0 | M95: 4830 | N95: 2.415 | O95: 170 | P95: All individuals in a sample measured | Q95: Excess planned sampling intensity occurred at no additional expense to DCF
A96: IRL | B96: IRL | C96: 2021 | D96: Gadus morhua | E96: North Western waters (ICES areas Vb (only Union waters), VI and VII) | F96: ICES | G96: VIIe-k | H96: Age | I96: Commercial | J96: 1000 | K96: 0 | L96: target is one fish per 1 cm size class per sample | M96: 1509 | N96: 1.509 | O96: 100 | P96: 1 per 1 cm per sample | Q96: Excess sampling intensity occurred at no additional expense to DCF
A97: IRL | B97: IRL | C97: 2021 | D97: Gadus morhua | E97: North Western waters (ICES areas Vb (only Union waters), VI and VII) | F97: ICES | G97: VIIe-k | H97: Weight | I97: Commercial | J97: 1000 | K97: 0 | L97: target is one fish per 1 cm size class per sample | M97: 1509 | N97: 1.509 | O97: 100 | P97: 1 per 1 cm per sample | Q97: Excess sampling intensity occurred at no additional expense to DCF
A98: IRL | B98: IRL | C98: 2021 | D98: Gadus morhua | E98: North Western waters (ICES areas Vb (only Union waters), VI and VII) | F98: ICES | G98: VIIe-k | H98: Sex | I98: Commercial | J98: 500 | K98: 0 | L98: target is one fish per 1 cm size class per sample | M98: 485 | N98: 0.97 | O98: 15 | P98: 1 per 1 cm per sample
A99: IRL | B99: IRL | C99: 2021 | D99: Gadus morhua | E99: North Western waters (ICES areas Vb (only Union waters), VI and VII) | F99: ICES | G99: VIIe-k | H99: Maturity | I99: Commercial | J99: 500 | K99: 0 | L99: target is one fish per 1 cm size class per sample | M99: 485 | N99: 0.97 | O99: 13 | P99: 1 per 1 cm per sample
A100: IRL | B100: IRL | C100: 2021 | D100: Gadus morhua | E100: North Western waters (ICES areas Vb (only Union waters), VI and VII) | F100: ICES | G100: VIIe-k | H100: Length | I100: Survey | J100: 50 | K100: 0 | L100: As per IBTS Manual | M100: 63 | N100: 1.26 | O100: 28 | P100: As per IBTS Manual | Q100: Higher than anticipated numbers of Gadus morhua were encountered by the survey and were sampled at no extra cost to the DCF.
A101: IRL | B101: IRL | C101: 2021 | D101: Gadus morhua | E101: North Western waters (ICES areas Vb (only Union waters), VI and VII) | F101: ICES | G101: VIIe-k | H101: Age | I101: Survey | J101: 50 | K101: 0 | L101: As per IBTS Manual | M101: 63 | N101: 1.26 | O101: 28 | P101: As per IBTS Manual | Q101: Higher than anticipated numbers of Gadus morhua were encountered by the survey and were sampled at no extra cost to the DCF.
A102: IRL | B102: IRL | C102: 2021 | D102: Gadus morhua | E102: North Western waters (ICES areas Vb (only Union waters), VI and VII) | F102: ICES | G102: VIIe-k | H102: Weight | I102: Survey | J102: 50 | K102: 0 | L102: As per IBTS Manual | M102: 63 | N102: 1.26 | O102: 28 | P102: As per IBTS Manual | Q102: Higher than anticipated numbers of Gadus morhua were encountered by the survey and were sampled at no extra cost to the DCF.
A103: IRL | B103: IRL | C103: 2021 | D103: Gadus morhua | E103: North Western waters (ICES areas Vb (only Union waters), VI and VII) | F103: ICES | G103: VIIe-k | H103: Sex | I103: Survey | J103: 50 | K103: 0 | L103: As per IBTS Manual | M103: 63 | N103: 1.26 | O103: 28 | P103: As per IBTS Manual | Q103: Higher than anticipated numbers of Gadus morhua were encountered by the survey and were sampled at no extra cost to the DCF.
A104: IRL | B104: IRL | C104: 2021 | D104: Gadus morhua | E104: North Western waters (ICES areas Vb (only Union waters), VI and VII) | F104: ICES | G104: VIIe-k | H104: Maturity | I104: Survey | J104: 50 | K104: 0 | L104: As per IBTS Manual | M104: 63 | N104: 1.26 | O104: 28 | P104: As per IBTS Manual | Q104: Higher than anticipated numbers of Gadus morhua were encountered by the survey and were sampled at no extra cost to the DCF.
A105: IRL | B105: IRL | C105: 2021 | D105: Glyptocephalus cynoglossus | E105: North Western waters (ICES areas Vb (only Union waters), VI and VII) | F105: NA | G105: VI, VII | H105: Length | I105: Commercial | J105: 1000 | K105: 0 | M105: 5500 | N105: 5.5 | O105: 35 | P105: All individuals in a sample measured | Q105: Excess sampling intensity occurred at no additional expense to DCF
A106: IRL | B106: IRL | C106: 2021 | D106: Glyptocephalus cynoglossus | E106: North Western waters (ICES areas Vb (only Union waters), VI and VII) | F106: NA | G106: VI, VII | H106: Age | I106: Commercial | J106: 0 | K106: 0 | L106: Not selected for sampling | M106: 0 | O106: 0 | P106: NA | Q106: Not selected for sampling
A107: IRL | B107: IRL | C107: 2021 | D107: Glyptocephalus cynoglossus | E107: North Western waters (ICES areas Vb (only Union waters), VI and VII) | F107: NA | G107: VI, VII | H107: Weight | I107: Commercial | J107: 0 | K107: 0 | L107: Survey only | M107: 0 | O107: 0 | P107: NA | Q107: Not selected for sampling
A108: IRL | B108: IRL | C108: 2021 | D108: Glyptocephalus cynoglossus | E108: North Western waters (ICES areas Vb (only Union waters), VI and VII) | F108: NA | G108: VI, VII | H108: Sex | I108: Commercial | J108: 0 | K108: 0 | L108: Survey only | M108: 0 | O108: 0 | P108: NA | Q108: Not selected for sampling
A109: IRL | B109: IRL | C109: 2021 | D109: Glyptocephalus cynoglossus | E109: North Western waters (ICES areas Vb (only Union waters), VI and VII) | F109: NA | G109: VI, VII | H109: Maturity | I109: Commercial | J109: 0 | K109: 0 | L109: Not selected for sampling | M109: 0 | O109: 0 | P109: NA | Q109: Not selected for sampling
A110: IRL | B110: IRL | C110: 2021 | D110: Glyptocephalus cynoglossus | E110: North Western waters (ICES areas Vb (only Union waters), VI and VII) | F110: NA | G110: VI, VII | H110: Length | I110: Survey | J110: 1000 | K110: 0 | L110: Increased to reflect actual sampling on survey | M110: 736 | N110: 0.736 | O110: 105 | P110: As per IBTS Manual | Q110: Lower than expected numbers of Glyptocephalus cynoglossus were encountered during the survey
A111: IRL | B111: IRL | C111: 2021 | D111: Glyptocephalus cynoglossus | E111: North Western waters (ICES areas Vb (only Union waters), VI and VII) | F111: NA | G111: VI, VII | H111: Age | I111: Survey | J111: 800 | K111: 0 | L111: Increased to reflect actual sampling on survey | M111: 475 | N111: 0.59375 | O111: 106 | P111: As per IBTS Manual | Q111: Lower than expected numbers of Glyptocephalus cynoglossus were encountered during the survey
A112: IRL | B112: IRL | C112: 2021 | D112: Glyptocephalus cynoglossus | E112: North Western waters (ICES areas Vb (only Union waters), VI and VII) | F112: NA | G112: VI, VII | H112: Weight | I112: Survey | J112: 800 | K112: 0 | L112: Increased to reflect actual sampling on survey | M112: 475 | N112: 0.59375 | O112: 106 | P112: As per IBTS Manual | Q112: Lower than expected numbers of Glyptocephalus cynoglossus were encountered during the survey
A113: IRL | B113: IRL | C113: 2021 | D113: Glyptocephalus cynoglossus | E113: North Western waters (ICES areas Vb (only Union waters), VI and VII) | F113: NA | G113: VI, VII | H113: Sex | I113: Survey | J113: 800 | K113: 0 | L113: Increased to reflect actual sampling on survey | M113: 475 | N113: 0.59375 | O113: 106 | P113: As per IBTS Manual | Q113: Lower than expected numbers of Glyptocephalus cynoglossus were encountered during the survey
A114: IRL | B114: IRL | C114: 2021 | D114: Glyptocephalus cynoglossus | E114: North Western waters (ICES areas Vb (only Union waters), VI and VII) | F114: NA | G114: VI, VII | H114: Maturity | I114: Survey | J114: 800 | K114: 0 | L114: Increased to reflect actual sampling on survey | M114: 475 | N114: 0.59375 | O114: 106 | P114: As per IBTS Manual | Q114: Lower than expected numbers of Glyptocephalus cynoglossus were encountered during the survey
A115: IRL | B115: IRL | C115: 2021 | D115: Homarus gammarus | E115: North Western waters (ICES areas Vb (only Union waters), VI and VII) | F115: NA | G115: all areas | H115: Length | I115: Commercial | J115: 3000 | K115: 0 | M115: 20302 | N115: 6.767333333 | O115: 86 | P115: Total catch from all pots per string are measured or the catch from the first ten pots is measured. | Q115: Homarus gammurus measured by observers on board vessels targeting lobster and brown crab. Either the total catch from all pots per string are measured or the catch from the first ten pots is measured. Additional sampling in done at no cost to the DCF.
A116: IRL | B116: IRL | C116: 2021 | D116: Homarus gammarus | E116: North Western waters (ICES areas Vb (only Union waters), VI and VII) | F116: NA | G116: all areas | H116: Age | I116: Commercial | J116: 0 | K116: 0 | L116: Not selected for sampling | M116: 0 | O116: 0 | P116: NA | Q116: Not selected for sampling
A117: IRL | B117: IRL | C117: 2021 | D117: Homarus gammarus | E117: North Western waters (ICES areas Vb (only Union waters), VI and VII) | F117: NA | G117: all areas | H117: Weight | I117: Commercial | J117: 1000 | K117: 0 | M117: 2803 | N117: 2.803 | O117: 12 | P117: Up to 250 individuals are sampled per sampling event | Q117: Excess sampling intensity occurred at no additional expense to DCF
A118: IRL | B118: IRL | C118: 2021 | D118: Homarus gammarus | E118: North Western waters (ICES areas Vb (only Union waters), VI and VII) | F118: NA | G118: all areas | H118: Sex | I118: Commercial | J118: 3000 | K118: 0 | M118: 20302 | N118: 6.767333333 | O118: 86 | P118: Up to 250 individuals are sampled per sampling event | Q118: Excess sampling intensity occurred at no additional expense to DCF
A119: IRL | B119: IRL | C119: 2021 | D119: Homarus gammarus | E119: North Western waters (ICES areas Vb (only Union waters), VI and VII) | F119: NA | G119: all areas | H119: Maturity | I119: Commercial | J119: 0 | K119: 0 | L119: Not selected for sampling | M119: 0 | O119: 0 | P119: NA | Q119: Not selected for sampling
A120: IRL | B120: IRL | C120: 2021 | D120: Lepidorhombus whiffiagonis | E120: North Western waters (ICES areas Vb (only Union waters), VI and VII) | F120: ICES | G120: VI | H120: Length | I120: Commercial | J120: 10000 | K120: 0 | L120: Increase from 2000 to reflect actual sampling | M120: 2431 | N120: 0.2431 | O120: 85 | P120: All individuals in a sample measured | Q120: Samples were difficult to secure with limited access to sampling locations in area VI due to the on going Covid 19 global pandemic.
A121: IRL | B121: IRL | C121: 2021 | D121: Lepidorhombus whiffiagonis | E121: North Western waters (ICES areas Vb (only Union waters), VI and VII) | F121: ICES | G121: VI | H121: Age | I121: Commercial | J121: 1000 | K121: 0 | L121: target is two fish per 1 cm size class per sample | M121: 688 | N121: 0.688 | O121: 27 | P121: 1 per 1 cm per sample | Q121: Samples were difficult to secure with limited access to sampling locations in area VI due to the on going Covid 19 global pandemic.
A122: IRL | B122: IRL | C122: 2021 | D122: Lepidorhombus whiffiagonis | E122: North Western waters (ICES areas Vb (only Union waters), VI and VII) | F122: ICES | G122: VI | H122: Weight | I122: Commercial | J122: 1000 | K122: 0 | L122: target is two fish per 1 cm size class per sample | M122: 688 | N122: 0.688 | O122: 27 | P122: 1 per 1 cm per sample | Q122: Samples were difficult to secure with limited access to sampling locations in area VI due to the on going Covid 19 global pandemic.
A123: IRL | B123: IRL | C123: 2021 | D123: Lepidorhombus whiffiagonis | E123: North Western waters (ICES areas Vb (only Union waters), VI and VII) | F123: ICES | G123: VI | H123: Sex | I123: Commercial | J123: 750 | K123: 0 | L123: target is two fish per 1 cm size class per sample | M123: 641 | N123: 0.8546666667 | O123: 25 | P123: 1 per 1 cm per sample | Q123: Samples were difficult to secure with limited access to sampling locations in area VI due to the on going Covid 19 global pandemic.
A124: IRL | B124: IRL | C124: 2021 | D124: Lepidorhombus whiffiagonis | E124: North Western waters (ICES areas Vb (only Union waters), VI and VII) | F124: ICES | G124: VI | H124: Maturity | I124: Commercial | J124: 0 | K124: 0 | L124: Survey only | M124: 0 | O124: 0 | P124: NA | Q124: Not selected for sampling
A125: IRL | B125: IRL | C125: 2021 | D125: Lepidorhombus whiffiagonis | E125: North Western waters (ICES areas Vb (only Union waters), VI and VII) | F125: ICES | G125: VI | H125: Length | I125: Survey | J125: 500 | K125: 0 | L125: as per IBTS Manual Decreased to accurately reflect sampling | M125: 599 | N125: =M125/J125 -> 1.198 | O125: 44 | P125: As per IBTS Manual | Q125: Additional megrim were encountered and sampled on the survey to help bolster numbers of samples in this area.
A126: IRL | B126: IRL | C126: 2021 | D126: Lepidorhombus whiffiagonis | E126: North Western waters (ICES areas Vb (only Union waters), VI and VII) | F126: ICES | G126: VI | H126: Age | I126: Survey | J126: 400 | K126: 0 | L126: as per IBTS Manual Decreased to accurately reflect sampling | M126: 552 | N126: 1.38 | O126: 43 | P126: As per IBTS Manual | Q126: Additional megrim were encountered and sampled on the survey to help bolster numbers of samples in this area.
A127: IRL | B127: IRL | C127: 2021 | D127: Lepidorhombus whiffiagonis | E127: North Western waters (ICES areas Vb (only Union waters), VI and VII) | F127: ICES | G127: VI | H127: Weight | I127: Survey | J127: 400 | K127: 0 | L127: as per IBTS Manual Decreased to accurately reflect sampling | M127: 552 | N127: 1.38 | O127: 43 | P127: As per IBTS Manual | Q127: Additional megrim were encountered and sampled on the survey to help bolster numbers of samples in this area.
A128: IRL | B128: IRL | C128: 2021 | D128: Lepidorhombus whiffiagonis | E128: North Western waters (ICES areas Vb (only Union waters), VI and VII) | F128: ICES | G128: VI | H128: Sex | I128: Survey | J128: 400 | K128: 0 | L128: as per IBTS Manual Decreased to accurately reflect sampling | M128: 552 | N128: 1.38 | O128: 43 | P128: As per IBTS Manual | Q128: Additional megrim were encountered and sampled on the survey to help bolster numbers of samples in this area.
A129: IRL | B129: IRL | C129: 2021 | D129: Lepidorhombus whiffiagonis | E129: North Western waters (ICES areas Vb (only Union waters), VI and VII) | F129: ICES | G129: VI | H129: Maturity | I129: Survey | J129: 400 | K129: 0 | L129: as per IBTS Manual Decreased to accurately reflect sampling | M129: 552 | N129: 1.38 | O129: 43 | P129: As per IBTS Manual | Q129: Additional megrim were encountered and sampled on the survey to help bolster numbers of samples in this area.
A130: IRL | B130: IRL | C130: 2021 | D130: Lepidorhombus whiffiagonis | E130: North Western waters (ICES areas Vb (only Union waters), VI and VII) | F130: ICES | G130: VII, VIIIabd | H130: Length | I130: Commercial | J130: 10000 | K130: 0 | L130: Increase from 2000 to reflect actual sampling | M130: 16091 | N130: 1.6091 | O130: 281 | P130: All individuals in a sample measured | Q130: Excess sampling intensity occurred at no additional expense to DCF
A131: IRL | B131: IRL | C131: 2021 | D131: Lepidorhombus whiffiagonis | E131: North Western waters (ICES areas Vb (only Union waters), VI and VII) | F131: ICES | G131: VII, VIIIabd | H131: Age | I131: Commercial | J131: 1000 | K131: 0 | L131: target is two fish per 1 cm size class per sample | M131: 2206 | N131: 2.206 | O131: 72 | P131: 1 per 1 cm per sample | Q131: Excess sampling intensity occurred at no additional expense to DCF
A132: IRL | B132: IRL | C132: 2021 | D132: Lepidorhombus whiffiagonis | E132: North Western waters (ICES areas Vb (only Union waters), VI and VII) | F132: ICES | G132: VII, VIIIabd | H132: Weight | I132: Commercial | J132: 1000 | K132: 0 | L132: target is two fish per 1 cm size class per sample | M132: 2206 | N132: 2.206 | O132: 72 | P132: 1 per 1 cm per sample | Q132: Excess sampling intensity occurred at no additional expense to DCF
A133: IRL | B133: IRL | C133: 2021 | D133: Lepidorhombus whiffiagonis | E133: North Western waters (ICES areas Vb (only Union waters), VI and VII) | F133: ICES | G133: VII, VIIIabd | H133: Sex | I133: Commercial | J133: 750 | K133: 0 | L133: target is two fish per 1 cm size class per sample | M133: 2141 | N133: 2.854666667 | O133: 70 | P133: 1 per 1 cm per sample | Q133: Excess sampling intensity occurred at no additional expense to DCF
A134: IRL | B134: IRL | C134: 2021 | D134: Lepidorhombus whiffiagonis | E134: North Western waters (ICES areas Vb (only Union waters), VI and VII) | F134: ICES | G134: VII, VIIIabd | H134: Maturity | I134: Commercial | J134: 500 | K134: 0 | L134: target is two fish per 1 cm size class per sample | M134: 500 | N134: 1 | O134: 12 | P134: 1 per 1 cm per sample
A135: IRL | B135: IRL | C135: 2021 | D135: Lepidorhombus whiffiagonis | E135: North Western waters (ICES areas Vb (only Union waters), VI and VII) | F135: ICES | G135: VII, VIIIabd | H135: Length | I135: Survey | J135: 8000 | K135: 0 | L135: as per IBTS Manual Decreased to accurately reflect sampling | M135: 3244 | N135: 0.4055 | O135: 140 | P135: As per IBTS Manual | Q135: Survey catches of Lepidorhombus whiffiagonis were lower than expected.
A136: IRL | B136: IRL | C136: 2021 | D136: Lepidorhombus whiffiagonis | E136: North Western waters (ICES areas Vb (only Union waters), VI and VII) | F136: ICES | G136: VII, VIIIabd | H136: Age | I136: Survey | J136: 3000 | K136: 0 | L136: as per IBTS Manual Decreased to accurately reflect sampling | M136: 2165 | N136: 0.7216666667 | O136: 142 | P136: As per IBTS Manual | Q136: Survey catches of Lepidorhombus whiffiagonis were lower than expected.
A137: IRL | B137: IRL | C137: 2021 | D137: Lepidorhombus whiffiagonis | E137: North Western waters (ICES areas Vb (only Union waters), VI and VII) | F137: ICES | G137: VII, VIIIabd | H137: Weight | I137: Survey | J137: 3000 | K137: 0 | L137: as per IBTS Manual Decreased to accurately reflect sampling | M137: 2165 | N137: 0.7216666667 | O137: 142 | P137: As per IBTS Manual | Q137: Survey catches of Lepidorhombus whiffiagonis were lower than expected.
A138: IRL | B138: IRL | C138: 2021 | D138: Lepidorhombus whiffiagonis | E138: North Western waters (ICES areas Vb (only Union waters), VI and VII) | F138: ICES | G138: VII, VIIIabd | H138: Sex | I138: Survey | J138: 3000 | K138: 0 | L138: as per IBTS Manual Decreased to accurately reflect sampling | M138: 2165 | N138: 0.7216666667 | O138: 142 | P138: As per IBTS Manual | Q138: Survey catches of Lepidorhombus whiffiagonis were lower than expected.
A139: IRL | B139: IRL | C139: 2021 | D139: Lepidorhombus whiffiagonis | E139: North Western waters (ICES areas Vb (only Union waters), VI and VII) | F139: ICES | G139: VII, VIIIabd | H139: Maturity | I139: Survey | J139: 3000 | K139: 0 | L139: as per IBTS Manual Decreased to accurately reflect sampling | M139: 2165 | N139: 0.7216666667 | O139: 142 | P139: As per IBTS Manual | Q139: Survey catches of Lepidorhombus whiffiagonis were lower than expected.
A140: IRL | B140: IRL | C140: 2021 | D140: Loligo vulgaris | E140: North Western waters (ICES areas Vb (only Union waters), VI and VII) | F140: ICES | G140: IV, VI | H140: Length | I140: Commercial | J140: 2500 | K140: 0 | M140: 0 | O140: 0 | P140: All individuals in a sample measured | Q140: 0.04t of Loligo vulgaris was landed in 2021 but it was not possible to sample this negligible landing.
A141: IRL | B141: IRL | C141: 2021 | D141: Loligo vulgaris | E141: North Western waters (ICES areas Vb (only Union waters), VI and VII) | F141: ICES | G141: IV, VI | H141: Age | I141: Commercial | J141: 0 | K141: 0 | M141: 0 | O141: 0 | P141: NA | Q141: Not selected for sampling
A142: IRL | B142: IRL | C142: 2021 | D142: Loligo vulgaris | E142: North Western waters (ICES areas Vb (only Union waters), VI and VII) | F142: ICES | G142: IV, VI | H142: Weight | I142: Commercial | J142: 0 | K142: 0 | M142: 0 | O142: 0 | P142: NA | Q142: Not selected for sampling
A143: IRL | B143: IRL | C143: 2021 | D143: Loligo vulgaris | E143: North Western waters (ICES areas Vb (only Union waters), VI and VII) | F143: ICES | G143: IV, VI | H143: Sex | I143: Commercial | J143: 0 | K143: 0 | M143: 0 | O143: 0 | P143: NA | Q143: Not selected for sampling
A144: IRL | B144: IRL | C144: 2021 | D144: Loligo vulgaris | E144: North Western waters (ICES areas Vb (only Union waters), VI and VII) | F144: ICES | G144: IV, VI | H144: Maturity | I144: Commercial | J144: 0 | K144: 0 | M144: 0 | O144: 0 | P144: NA | Q144: Not selected for sampling
A145: IRL | B145: IRL | C145: 2021 | D145: Loligo vulgaris | E145: North Western waters (ICES areas Vb (only Union waters), VI and VII) | F145: ICES | G145: IV, VI | H145: Length | I145: Survey | J145: 2000 | K145: 0 | L145: as per IBTS Manual | M145: 1208 | N145: 0.604 | O145: 32 | P145: As per IBTS Manual | Q145: Survey catches were lower than expected, all Loligo vulgaris encountered during the survey were sampled.
A146: IRL | B146: IRL | C146: 2021 | D146: Loligo vulgaris | E146: North Western waters (ICES areas Vb (only Union waters), VI and VII) | F146: ICES | G146: IV, VI | H146: Age | I146: Survey | J146: 0 | K146: 0 | L146: as per IBTS Manual | M146: 0 | O146: 0 | P146: NA | Q146: Not selected for sampling
A147: IRL | B147: IRL | C147: 2021 | D147: Loligo vulgaris | E147: North Western waters (ICES areas Vb (only Union waters), VI and VII) | F147: ICES | G147: IV, VI | H147: Weight | I147: Survey | J147: 0 | K147: 0 | L147: as per IBTS Manual | M147: 0 | O147: 0 | P147: NA | Q147: Not selected for sampling
A148: IRL | B148: IRL | C148: 2021 | D148: Loligo vulgaris | E148: North Western waters (ICES areas Vb (only Union waters), VI and VII) | F148: ICES | G148: IV, VI | H148: Sex | I148: Survey | J148: 0 | K148: 0 | L148: as per IBTS Manual | M148: 0 | O148: 0 | P148: NA | Q148: Not selected for sampling
A149: IRL | B149: IRL | C149: 2021 | D149: Loligo vulgaris | E149: North Western waters (ICES areas Vb (only Union waters), VI and VII) | F149: ICES | G149: IV, VI | H149: Maturity | I149: Survey | J149: 0 | K149: 0 | L149: as per IBTS Manual | M149: 0 | O149: 0 | P149: NA | Q149: Not selected for sampling
A150: IRL | B150: IRL | C150: 2021 | D150: Lophius budegassa | E150: North Western waters (ICES areas Vb (only Union waters), VI and VII) | F150: ICES | G150: IV, VI | H150: Length | I150: Commercial | J150: 250 | K150: 0 | M150: 525 | N150: 2.1 | O150: 34 | P150: 1 per 1 cm per sample | Q150: Sampling in excess of planned targets of Lophius budegasa was done at no additional expense to the DCF.
A151: IRL | B151: IRL | C151: 2021 | D151: Lophius budegassa | E151: North Western waters (ICES areas Vb (only Union waters), VI and VII) | F151: ICES | G151: IV, VI | H151: Age | I151: Commercial | J151: 50 | K151: 0 | L151: target is one fish per 2 cm size class per sample | M151: 47 | N151: 0.94 | O151: 4 | P151: 1 per 1 cm per sample
A152: IRL | B152: IRL | C152: 2021 | D152: Lophius budegassa | E152: North Western waters (ICES areas Vb (only Union waters), VI and VII) | F152: ICES | G152: IV, VI | H152: Weight | I152: Commercial | J152: 50 | K152: 0 | L152: target is one fish per 2 cm size class per sample | M152: 47 | N152: 0.94 | O152: 4 | P152: 1 per 1 cm per sample
A153: IRL | B153: IRL | C153: 2021 | D153: Lophius budegassa | E153: North Western waters (ICES areas Vb (only Union waters), VI and VII) | F153: ICES | G153: IV, VI | H153: Sex | I153: Commercial | J153: 0 | K153: 0 | L153: Survey only | M153: 0 | O153: 0 | P153: NA | Q153: Not selected for sampling
A154: IRL | B154: IRL | C154: 2021 | D154: Lophius budegassa | E154: North Western waters (ICES areas Vb (only Union waters), VI and VII) | F154: ICES | G154: IV, VI | H154: Maturity | I154: Commercial | J154: 0 | K154: 0 | L154: Survey only | M154: 0 | O154: 0 | P154: NA | Q154: Not selected for sampling
A155: IRL | B155: IRL | C155: 2021 | D155: Lophius budegassa | E155: North Western waters (ICES areas Vb (only Union waters), VI and VII) | F155: ICES | G155: IV, VI | H155: Length | I155: Survey | J155: 150 | K155: 0 | L155: as per IBTS Manual | M155: 84 | N155: 0.56 | O155: 22 | P155: As per IBTS Manual | Q155: Survey catches were lower than expected
A156: IRL | B156: IRL | C156: 2021 | D156: Lophius budegassa | E156: North Western waters (ICES areas Vb (only Union waters), VI and VII) | F156: ICES | G156: IV, VI | H156: Age | I156: Survey | J156: 150 | K156: 0 | L156: as per IBTS Manual | M156: 82 | N156: 0.5466666667 | O156: 21 | P156: As per IBTS Manual | Q156: Survey catches were lower than expected
A157: IRL | B157: IRL | C157: 2021 | D157: Lophius budegassa | E157: North Western waters (ICES areas Vb (only Union waters), VI and VII) | F157: ICES | G157: IV, VI | H157: Weight | I157: Survey | J157: 150 | K157: 0 | L157: as per IBTS Manual | M157: 82 | N157: 0.5466666667 | O157: 21 | P157: As per IBTS Manual | Q157: Survey catches were lower than expected
A158: IRL | B158: IRL | C158: 2021 | D158: Lophius budegassa | E158: North Western waters (ICES areas Vb (only Union waters), VI and VII) | F158: ICES | G158: IV, VI | H158: Sex | I158: Survey | J158: 150 | K158: 0 | L158: as per IBTS Manual | M158: 82 | N158: 0.5466666667 | O158: 21 | P158: As per IBTS Manual | Q158: Survey catches were lower than expected
A159: IRL | B159: IRL | C159: 2021 | D159: Lophius budegassa | E159: North Western waters (ICES areas Vb (only Union waters), VI and VII) | F159: ICES | G159: IV, VI | H159: Maturity | I159: Survey | J159: 150 | K159: 0 | L159: as per IBTS Manual | M159: 82 | N159: 0.5466666667 | O159: 21 | P159: As per IBTS Manual | Q159: Survey catches were lower than expected
A160: IRL | B160: IRL | C160: 2021 | D160: Lophius budegassa | E160: North Western waters (ICES areas Vb (only Union waters), VI and VII) | F160: ICES | G160: VIIb-k, VIIIabd | H160: Length | I160: Commercial | J160: 2000 | K160: 0 | M160: 2937 | N160: 1.4685 | O160: 179 | P160: All individuals in a sample measured | Q160: Sampling in excess of planned targets of Lophius budegasa was done at no additional expense to the DCF.
A161: IRL | B161: IRL | C161: 2021 | D161: Lophius budegassa | E161: North Western waters (ICES areas Vb (only Union waters), VI and VII) | F161: ICES | G161: VIIb-k, VIIIabd | H161: Age | I161: Commercial | J161: 500 | K161: 0 | L161: target is one fish per 2 cm size class per sample | M161: 599 | N161: 1.198 | O161: 51 | P161: 1 per 1 cm per sample | Q161: Sampling in excess of planned targets of Lophius budegasa was done at no additional expense to the DCF.
A162: IRL | B162: IRL | C162: 2021 | D162: Lophius budegassa | E162: North Western waters (ICES areas Vb (only Union waters), VI and VII) | F162: ICES | G162: VIIb-k, VIIIabd | H162: Weight | I162: Commercial | J162: 500 | K162: 0 | L162: target is one fish per 2 cm size class per sample | M162: 599 | N162: 1.198 | O162: 51 | P162: 1 per 1 cm per sample | Q162: Sampling in excess of planned targets of Lophius budegasa was done at no additional expense to the DCF.
A163: IRL | B163: IRL | C163: 2021 | D163: Lophius budegassa | E163: North Western waters (ICES areas Vb (only Union waters), VI and VII) | F163: ICES | G163: VIIb-k, VIIIabd | H163: Sex | I163: Commercial | J163: 200 | K163: 0 | L163: target is one fish per 2 cm size class per sample | M163: 52 | N163: 0.26 | O163: 5 | P163: 1 per 1 cm per sample | Q163: L. budegassa is quite rare in area VI and VII, and is therefore hard to get samples generally. Sampling levels were reduced due to restricted access to the local fishermens co - op due to the Covid - 19 global pandemic.
A164: IRL | B164: IRL | C164: 2021 | D164: Lophius budegassa | E164: North Western waters (ICES areas Vb (only Union waters), VI and VII) | F164: ICES | G164: VIIb-k, VIIIabd | H164: Maturity | I164: Commercial | J164: 200 | K164: 0 | L164: target is one fish per 2 cm size class per sample | M164: 72 | N164: 0.36 | O164: 5 | P164: 1 per 1 cm per sample | Q164: L. budegassa is quite rare in area VI and VII, and is therefore hard to get samples generally. Sampling levels were reduced due to restricted access to the local fishermens co - op due to the Covid - 19 global pandemic.
A165: IRL | B165: IRL | C165: 2021 | D165: Lophius budegassa | E165: North Western waters (ICES areas Vb (only Union waters), VI and VII) | F165: ICES | G165: VIIb-k, VIIIabd | H165: Length | I165: Survey | J165: 1000 | K165: 0 | L165: as per IBTS Manual | M165: 651 | N165: 0.651 | O165: 101 | P165: As per IBTS Manual | Q165: Survey catches were lower than expected
A166: IRL | B166: IRL | C166: 2021 | D166: Lophius budegassa | E166: North Western waters (ICES areas Vb (only Union waters), VI and VII) | F166: ICES | G166: VIIb-k, VIIIabd | H166: Age | I166: Survey | J166: 1000 | K166: 0 | L166: as per IBTS Manual | M166: 544 | N166: 0.544 | O166: 102 | P166: As per IBTS Manual | Q166: Survey catches were lower than expected
A167: IRL | B167: IRL | C167: 2021 | D167: Lophius budegassa | E167: North Western waters (ICES areas Vb (only Union waters), VI and VII) | F167: ICES | G167: VIIb-k, VIIIabd | H167: Weight | I167: Survey | J167: 1000 | K167: 0 | L167: as per IBTS Manual | M167: 544 | N167: 0.544 | O167: 102 | P167: As per IBTS Manual | Q167: Survey catches were lower than expected
A168: IRL | B168: IRL | C168: 2021 | D168: Lophius budegassa | E168: North Western waters (ICES areas Vb (only Union waters), VI and VII) | F168: ICES | G168: VIIb-k, VIIIabd | H168: Sex | I168: Survey | J168: 1000 | K168: 0 | L168: as per IBTS Manual | M168: 544 | N168: 0.544 | O168: 102 | P168: As per IBTS Manual | Q168: Survey catches were lower than expected
A169: IRL | B169: IRL | C169: 2021 | D169: Lophius budegassa | E169: North Western waters (ICES areas Vb (only Union waters), VI and VII) | F169: ICES | G169: VIIb-k, VIIIabd | H169: Maturity | I169: Survey | J169: 1000 | K169: 0 | L169: as per IBTS Manual | M169: 544 | N169: 0.544 | O169: 102 | P169: As per IBTS Manual | Q169: Survey catches were lower than expected
A170: IRL | B170: IRL | C170: 2021 | D170: Lophius piscatorious | E170: North Western waters (ICES areas Vb (only Union waters), VI and VII) | F170: ICES | G170: IV, VI | H170: Length | I170: Commercial | J170: 2000 | K170: 0 | M170: 1253 | N170: 0.6265 | O170: 44 | P170: All individuals in a sample measured | Q170: Sampling levels were reduced due to restricted access to the local fishermens co - op due to the Covid - 19 global pandemic and a decrease in landings.
A171: IRL | B171: IRL | C171: 2021 | D171: Lophius piscatorious | E171: North Western waters (ICES areas Vb (only Union waters), VI and VII) | F171: ICES | G171: IV, VI | H171: Age | I171: Commercial | J171: 500 | K171: 0 | L171: target is one fish per 2 cm size class per sample | M171: 302 | N171: 0.604 | O171: 19 | P171: 1 per 1 cm per sample | Q171: Sampling levels were reduced due to restricted access to the local fishermens co - op due to the Covid - 19 global pandemic and a decrease in landings.
A172: IRL | B172: IRL | C172: 2021 | D172: Lophius piscatorious | E172: North Western waters (ICES areas Vb (only Union waters), VI and VII) | F172: ICES | G172: IV, VI | H172: Weight | I172: Commercial | J172: 500 | K172: 0 | L172: target is one fish per 2 cm size class per sample | M172: 302 | N172: 0.604 | O172: 19 | P172: 1 per 1 cm per sample | Q172: Sampling levels were reduced due to restricted access to the local fishermens co - op due to the Covid - 19 global pandemic and a decrease in landings.
A173: IRL | B173: IRL | C173: 2021 | D173: Lophius piscatorious | E173: North Western waters (ICES areas Vb (only Union waters), VI and VII) | F173: ICES | G173: IV, VI | H173: Sex | I173: Commercial | J173: 0 | K173: 0 | L173: Survey only | M173: 0 | O173: 0 | P173: NA | Q173: Not selected for sampling
A174: IRL | B174: IRL | C174: 2021 | D174: Lophius piscatorious | E174: North Western waters (ICES areas Vb (only Union waters), VI and VII) | F174: ICES | G174: IV, VI | H174: Maturity | I174: Commercial | J174: 0 | K174: 0 | L174: Survey only | M174: 0 | O174: 0 | P174: NA | Q174: Not selected for sampling
A175: IRL | B175: IRL | C175: 2021 | D175: Lophius piscatorious | E175: North Western waters (ICES areas Vb (only Union waters), VI and VII) | F175: ICES | G175: IV, VI | H175: Length | I175: Survey | J175: 750 | K175: 0 | L175: as per IBTS Manual | M175: 527 | N175: 0.7026666667 | O175: 45 | P175: As per IBTS Manual | Q175: Survey catches were lower than expected
A176: IRL | B176: IRL | C176: 2021 | D176: Lophius piscatorious | E176: North Western waters (ICES areas Vb (only Union waters), VI and VII) | F176: ICES | G176: IV, VI | H176: Age | I176: Survey | J176: 750 | K176: 0 | L176: as per IBTS Manual | M176: 527 | N176: 0.7026666667 | O176: 45 | P176: As per IBTS Manual | Q176: Survey catches were lower than expected
A177: IRL | B177: IRL | C177: 2021 | D177: Lophius piscatorious | E177: North Western waters (ICES areas Vb (only Union waters), VI and VII) | F177: ICES | G177: IV, VI | H177: Weight | I177: Survey | J177: 750 | K177: 0 | L177: as per IBTS Manual | M177: 527 | N177: 0.7026666667 | O177: 45 | P177: As per IBTS Manual | Q177: Survey catches were lower than expected
A178: IRL | B178: IRL | C178: 2021 | D178: Lophius piscatorious | E178: North Western waters (ICES areas Vb (only Union waters), VI and VII) | F178: ICES | G178: IV, VI | H178: Sex | I178: Survey | J178: 750 | K178: 0 | L178: as per IBTS Manual | M178: 527 | N178: 0.7026666667 | O178: 45 | P178: As per IBTS Manual | Q178: Survey catches were lower than expected
A179: IRL | B179: IRL | C179: 2021 | D179: Lophius piscatorious | E179: North Western waters (ICES areas Vb (only Union waters), VI and VII) | F179: ICES | G179: IV, VI | H179: Maturity | I179: Survey | J179: 750 | K179: 0 | L179: as per IBTS Manual | M179: 527 | N179: 0.7026666667 | O179: 45 | P179: As per IBTS Manual | Q179: Survey catches were lower than expected
A180: IRL | B180: IRL | C180: 2021 | D180: Lophius piscatorious | E180: North Western waters (ICES areas Vb (only Union waters), VI and VII) | F180: ICES | G180: VIIb-k, VIIIabd | H180: Length | I180: Commercial | J180: 2000 | K180: 0 | M180: 3849 | N180: 1.9245 | O180: 167 | P180: All individuals in a sample measured | Q180: Excess sampling intensity occurred at no additional expense to DCF
A181: IRL | B181: IRL | C181: 2021 | D181: Lophius piscatorious | E181: North Western waters (ICES areas Vb (only Union waters), VI and VII) | F181: ICES | G181: VIIb-k, VIIIabd | H181: Age | I181: Commercial | J181: 750 | K181: 0 | L181: target is one fish per 2 cm size class per sample | M181: 914 | N181: 1.218666667 | O181: 64 | P181: 1 per 1 cm per sample | Q181: Excess sampling intensity occurred at no additional expense to DCF
A182: IRL | B182: IRL | C182: 2021 | D182: Lophius piscatorious | E182: North Western waters (ICES areas Vb (only Union waters), VI and VII) | F182: ICES | G182: VIIb-k, VIIIabd | H182: Weight | I182: Commercial | J182: 750 | K182: 0 | L182: target is one fish per 2 cm size class per sample | M182: 914 | N182: 1.218666667 | O182: 64 | P182: 1 per 1 cm per sample | Q182: Excess sampling intensity occurred at no additional expense to DCF
A183: IRL | B183: IRL | C183: 2021 | D183: Lophius piscatorious | E183: North Western waters (ICES areas Vb (only Union waters), VI and VII) | F183: ICES | G183: VIIb-k, VIIIabd | H183: Sex | I183: Commercial | J183: 0 | K183: 0 | L183: Survey only | M183: 0 | O183: 0 | P183: NA | Q183: Not selected for sampling
A184: IRL | B184: IRL | C184: 2021 | D184: Lophius piscatorious | E184: North Western waters (ICES areas Vb (only Union waters), VI and VII) | F184: ICES | G184: VIIb-k, VIIIabd | H184: Maturity | I184: Commercial | J184: 0 | K184: 0 | L184: Survey only | M184: 0 | O184: 0 | P184: NA | Q184: Not selected for sampling
A185: IRL | B185: IRL | C185: 2021 | D185: Lophius piscatorious | E185: North Western waters (ICES areas Vb (only Union waters), VI and VII) | F185: ICES | G185: VIIb-k, VIIIabd | H185: Length | I185: Survey | J185: 750 | K185: 0 | L185: as per IBTS Manual | M185: 792 | N185: 1.056 | O185: 142 | P185: As per IBTS Manual
A186: IRL | B186: IRL | C186: 2021 | D186: Lophius piscatorious | E186: North Western waters (ICES areas Vb (only Union waters), VI and VII) | F186: ICES | G186: VIIb-k, VIIIabd | H186: Age | I186: Survey | J186: 750 | K186: 0 | L186: as per IBTS Manual | M186: 792 | N186: 1.056 | O186: 142 | P186: As per IBTS Manual
A187: IRL | B187: IRL | C187: 2021 | D187: Lophius piscatorious | E187: North Western waters (ICES areas Vb (only Union waters), VI and VII) | F187: ICES | G187: VIIb-k, VIIIabd | H187: Weight | I187: Survey | J187: 750 | K187: 0 | L187: as per IBTS Manual | M187: 792 | N187: 1.056 | O187: 142 | P187: As per IBTS Manual
A188: IRL | B188: IRL | C188: 2021 | D188: Lophius piscatorious | E188: North Western waters (ICES areas Vb (only Union waters), VI and VII) | F188: ICES | G188: VIIb-k, VIIIabd | H188: Sex | I188: Survey | J188: 750 | K188: 0 | L188: as per IBTS Manual | M188: 792 | N188: =M188/J188 -> 1.056 | O188: 142 | P188: As per IBTS Manual
A189: IRL | B189: IRL | C189: 2021 | D189: Lophius piscatorious | E189: North Western waters (ICES areas Vb (only Union waters), VI and VII) | F189: ICES | G189: VIIb-k, VIIIabd | H189: Maturity | I189: Survey | J189: 750 | K189: 0 | L189: as per IBTS Manual | M189: 792 | N189: 1.056 | O189: 142 | P189: As per IBTS Manual
A190: IRL | B190: IRL | C190: 2021 | D190: Melanogrammus aeglefinus | E190: North Western waters (ICES areas Vb (only Union waters), VI and VII) | F190: ICES | G190: VIa | H190: Length | I190: Commercial | J190: 5000 | K190: 0 | M190: 6759 | N190: 1.3518 | O190: 67 | P190: All individuals in a sample measured | Q190: Excess sampling intensity occurred at no additional expense to DCF
A191: IRL | B191: IRL | C191: 2021 | D191: Melanogrammus aeglefinus | E191: North Western waters (ICES areas Vb (only Union waters), VI and VII) | F191: ICES | G191: VIa | H191: Age | I191: Commercial | J191: 1000 | K191: 0 | L191: target is one fish per 1 cm size class per sample | M191: 914 | N191: 0.914 | O191: 28 | P191: 1 per 1 cm per sample
A192: IRL | B192: IRL | C192: 2021 | D192: Melanogrammus aeglefinus | E192: North Western waters (ICES areas Vb (only Union waters), VI and VII) | F192: ICES | G192: VIa | H192: Weight | I192: Commercial | J192: 1000 | K192: 0 | L192: target is one fish per 1 cm size class per sample | M192: 914 | N192: 0.914 | O192: 28 | P192: 1 per 1 cm per sample
A193: IRL | B193: IRL | C193: 2021 | D193: Melanogrammus aeglefinus | E193: North Western waters (ICES areas Vb (only Union waters), VI and VII) | F193: ICES | G193: VIa | H193: Sex | I193: Commercial | J193: 100 | K193: 0 | L193: target is one fish per 1 cm size class per sample | M193: 65 | N193: 0.65 | O193: 3 | P193: 1 per 1 cm per sample | Q193: Sampling levels were reduced due to restricted access to the local fishermens co - op due to the Covid - 19 global pandemic.
A194: IRL | B194: IRL | C194: 2021 | D194: Melanogrammus aeglefinus | E194: North Western waters (ICES areas Vb (only Union waters), VI and VII) | F194: ICES | G194: VIa | H194: Maturity | I194: Commercial | J194: 100 | K194: 0 | L194: target is one fish per 1 cm size class per sample | M194: 67 | N194: 0.67 | O194: 3 | P194: 1 per 1 cm per sample | Q194: Sampling levels were reduced due to restricted access to the local fishermens co - op due to the Covid - 19 global pandemic.
A195: IRL | B195: IRL | C195: 2021 | D195: Melanogrammus aeglefinus | E195: North Western waters (ICES areas Vb (only Union waters), VI and VII) | F195: ICES | G195: VIa | H195: Length | I195: Survey | J195: 5000 | K195: 0 | L195: as per IBTS Manual | M195: 7898 | N195: 1.5796 | O195: 60 | P195: As per IBTS Manual | Q195: Higher than anticipated catches of Melanogrammus aeglefinus were encountered on the survey and were sampled at no additional expense.
A196: IRL | B196: IRL | C196: 2021 | D196: Melanogrammus aeglefinus | E196: North Western waters (ICES areas Vb (only Union waters), VI and VII) | F196: ICES | G196: VIa | H196: Age | I196: Survey | J196: 500 | K196: 0 | L196: as per IBTS Manual | M196: 834 | N196: 1.668 | O196: 60 | P196: As per IBTS Manual | Q196: Higher than anticipated catches of Melanogrammus aeglefinus were encountered on the survey and were sampled at no additional expense.
A197: IRL | B197: IRL | C197: 2021 | D197: Melanogrammus aeglefinus | E197: North Western waters (ICES areas Vb (only Union waters), VI and VII) | F197: ICES | G197: VIa | H197: Weight | I197: Survey | J197: 500 | K197: 0 | L197: as per IBTS Manual | M197: 834 | N197: 1.668 | O197: 60 | P197: As per IBTS Manual | Q197: Higher than anticipated catches of Melanogrammus aeglefinus were encountered on the survey and were sampled at no additional expense.
A198: IRL | B198: IRL | C198: 2021 | D198: Melanogrammus aeglefinus | E198: North Western waters (ICES areas Vb (only Union waters), VI and VII) | F198: ICES | G198: VIa | H198: Sex | I198: Survey | J198: 100 | K198: 0 | L198: as per IBTS Manual | M198: 834 | N198: 8.34 | O198: 60 | P198: As per IBTS Manual | Q198: Higher than anticipated catches of Melanogrammus aeglefinus were encountered on the survey and were sampled at no additional expense.
A199: IRL | B199: IRL | C199: 2021 | D199: Melanogrammus aeglefinus | E199: North Western waters (ICES areas Vb (only Union waters), VI and VII) | F199: ICES | G199: VIa | H199: Maturity | I199: Survey | J199: 100 | K199: 0 | L199: as per IBTS Manual | M199: 834 | N199: 8.34 | O199: 60 | P199: As per IBTS Manual | Q199: Higher than anticipated catches of Melanogrammus aeglefinus were encountered on the survey and were sampled at no additional expense.
A200: IRL | B200: IRL | C200: 2021 | D200: Melanogrammus aeglefinus | E200: North Western waters (ICES areas Vb (only Union waters), VI and VII) | F200: ICES | G200: VIb | H200: Length | I200: Commercial | J200: 2500 | K200: 0 | M200: 5433 | N200: 2.1732 | O200: 39 | P200: All individuals in a sample measured | Q200: Excess sampling intensity occurred at no additional expense to DCF
... 279 more rows

Sheet Table1D Recreational Fisheries
A1: Table 1D: Recreational fisheries
X2: WP years | Y2: 2021
X3: AR year | Y3: 2021
A4: MS | B4: Sampling year | C4: Area/EMU | D4: RFMO/RFO/IO | E4: Species | F4: Applicable (Species present in the MS?) | G4: Reasons for not sampling | H4: Threshold (Y/N) | I4: Annual estimate of catch? (Y/N) | J4: Annual percentage of released catch? (Y/N) | K4: Collection of catch composition data? (Y/N) | L4: Type of Survey | M4: Comments | N4: Unique Survey ID or Name of sampling scheme (Linked to Table 5A) | O4: Is the survey part of a pilot study or part of an established programme? | P4: Frequency | Q4: Is the sampling design documented? (Linked to Table 5A) | R4: Are non-response and refusal recorded? (Linked to Table 5A) | S4: Are the editing and imputation methods documented? (Linked to Table 5A) | T4: Estimation of the yearly weight and numbers of catch (Y/N) | U4: Estimation of the yearly percentage release (Y/N) | V4: Collection of catch composition data (Y/N) | W4: Evaluated by external experts/bodies (Y/N) | X4: Conform with accepted standards Y/N | Y4: AR Comments
A5: IRL | B5: 2020-2021 | C5: North Atlantic | D5: ICES | E5: Salmon | F5: Y | G5: X | H5: N | I5: Y | J5: Y | K5: Y | L5: Recreational Survey | M5: Salmon Angling Catch Reports Burrishoole. | N5: Recreational Survey | O5: Established programme | P5: Annual | Q5: Y | R5: N | S5: Y | T5: Y | U5: Y | V5: Y | W5: Y | X5: Y | Y5: This recreational survey sampling programme was originally ommitted from the NWP in Table 1D but was highlighted in Table 5A, and has been added here to rectify that ommission.
A6: IRL | B6: 2020-2021 | C6: North Atlantic | D6: ICES | E6: Salmon | F6: Y | G6: X | H6: N | I6: Y | J6: Y | K6: Y | L6: National Coded Wire Tagging programme | M6: Catch estimates on selected rivers, see table 1E for detail on river locations | N6: Biological Sampling/Recreational catches Salmon | O6: Established programme | P6: Annual | Q6: Y | R6: N | S6: Y | T6: Y | U6: Y | V6: Y | W6: N | X6: Y
A7: IRL | B7: 2020-2021 | C7: North Atlantic | D7: ICES | E7: Sea Bass | F7: Y | G7: Historical derogation under Regualtion 199/2008 IRL WP 2011-2013 due to results of pilot programme presented at STECF EWG 12-02 (low levels of removals and a catch and release fishery); pilot study ongoing | H7: N | I7: N | J7: N | K7: N | L7: Pilot Study | M7: Pilot study sampling period extended to July 21 to capture full calendar year of angling activity | N7: Irish Marine Recreational Angling Programme | O7: Pilot Study | P7: One off | Q7: Y | R7: N | S7: Y | T7: Y | U7: Y | V7: Y | W7: Y | X7: Y | Y7: Due to the onset of the Covid19 global pandemic, pilot study reporting includes survey data collected between March 2020 and September 2021 to ensure data collection over a complete calendar year. Annual catch has been estimated for this period. However, as the main aims of the pilot study were sector characterisation and method testing, precision of catch estimates is poor.
A8: IRL | B8: 2020-2021 | C8: North Atlantic | D8: ICES | E8: Eel | F8: Y | G8: Historical derogation under Regualtion 199/2008 IRL WP 2011-2013 presented at STECF EWG 12-02 (catch and release fishery with minimal numbers), no recreational fishery- eel protected under byelaw 319,2015 | H8: N | I8: N | J8: N | K8: N | L8: Pilot study in the marine only | M8: Under bye law 319,2015 it is prohibited to take/fish or attempt to fish for eel in any district in Ireland. This law also prohibits the sale or attempt to sell ell in any fishery. Marine recreational pilot study will monitor any bycatch | N8: Irish Marine Recreational Angling Programme | O8: Pilot Study | P8: One off | Q8: Y | R8: N | S8: Y | T8: Y | U8: Y | V8: Y | W8: Y | X8: Y | Y8: Due to the onset of the Covid19 global pandemic, pilot study reporting includes survey data collected between March 2020 and September 2021 to ensure data collection over a complete calendar year. No Eel by - catch was observed during this survey.
A9: IRL | B9: 2020-2021 | C9: North Atlantic | D9: ICES | E9: Cod | F9: Y | G9: New sampling requirement: Pilot study ongoing | H9: N | I9: N | J9: N | K9: N | L9: Pilot Study | M9: Pilot study sampling period extended to July 21 to capture full calendar year of angling activity | N9: Irish Marine Recreational Angling Programme | O9: Pilot Study | P9: One off | Q9: Y | R9: N | S9: Y | T9: Y | U9: Y | V9: Y | W9: Y | X9: Y | Y9: Due to the onset of the Covid19 global pandemic, pilot study reporting includes survey data collected between March 2020 and September 2021 to ensure data collection over a complete calendar year. Annual catch has been estimated for this period. However, as the main aims of the pilot study were sector characterisation and method testing, precision of catch estimates is poor.
A10: IRL | B10: 2020-2021 | C10: North Atlantic | D10: ICES | E10: Pollack | F10: Y | G10: New sampling requirement: Pilot study ongoing | H10: N | I10: N | J10: N | K10: N | L10: Pilot Study | M10: Pilot study sampling period extended to July 21 to capture full calendar year of angling activity | N10: Irish Marine Recreational Angling Programme | O10: Pilot Study | P10: One off | Q10: Y | R10: N | S10: Y | T10: Y | U10: Y | V10: Y | W10: Y | X10: Y | Y10: Due to the onset of the Covid19 global pandemic, pilot study reporting includes survey data collected between March 2020 and September 2021 to ensure data collection over a complete calendar year. Annual catch has been estimated for this period. However, as the main aims of the pilot study were sector characterisation and method testing, precision of catch estimates is poor.
A11: IRL | B11: 2020-2021 | C11: North Atlantic | D11: ICES | E11: Elasmobranchs | F11: Y | G11: Historical derogation under Regualtion 199/2008 IRL WP 2011-2013 presented at STECF EWG 12-02 ( catch and release fishery); pilot study ongoing | H11: N | I11: N | J11: N | K11: N | L11: Pilot Study | M11: Pilot study sampling period extended to July 21 to capture full calendar year of angling activity | N11: Irish Marine Recreational Angling Programme | O11: Pilot Study | P11: One off | Q11: Y | R11: N | S11: Y | T11: Y | U11: Y | V11: Y | W11: Y | X11: Y | Y11: Due to the onset of the Covid19 global pandemic, pilot study reporting includes survey data collected between March 2020 and September 2021 to ensure data collection over a complete calendar year. Annual catch has been estimated for this period. However, as the main aims of the pilot study were sector characterisation and method testing, precision of catch estimates is poor.
A12: IRL | B12: 2020-2021 | C12: North Atlantic | D12: ICES | E12: Highly Migratory Species | F12: Y | G12: New sampling requirement: Pilot study ongoing | H12: N | I12: N | J12: N | K12: N | L12: Pilot Study | M12: Pilot study sampling period extended to July 21 to capture full calendar year of angling activity | N12: Irish Marine Recreational Angling Programme | O12: Pilot Study | P12: One off | Q12: Y | R12: N | S12: Y | T12: Y | U12: Y | V12: Y | W12: Y | X12: Y | Y12: Atlantic Bluefin Tuna (ABFT) Scientific Data Collection Pilot Study continued in 2021. Limited number of authorised charter vessels permitted to catch, tag and release ABFT by angling.

Sheet Table1E Anadromous catadromous
A1: Table 1E: Anadromous and catadromous species data collection in fresh water
T2: WP years | U2: 2021
T3: AR year | U3: 2021
A4: MS | B4: Sampling period | C4: Area | D4: RFMO/RFO/IO | E4: Species | F4: Applicable (Y/N) | G4: Reasons for not sampling | H4: Water Body | I4: Life stage | J4: Fishery / Independent data collection | K4: Method | L4: Unit | M4: Planned nos | N4: Frequency | O4: Comments | P4: Achieved numbers | Q4: % of achievement (100*P/M) | R4: Reasons for non-conformity | S4: Survey ID | T4: Agreed at RCG level? | U4: AR Comments
A6: IRL | B6: 2020-2021 | C6: Northeast Atlantic | D6: ICES | E6: Salmo salar | F6: y | H6: BUNDORRAGHA RIVER | I6: adult | J6: F/I | K6: Salmon National Coded Wire Tagging Programme | L6: n. release sites | M6: 1 | N6: A | O6: National Coded Wire Tagging programme | P6: 1 | Q6: =P6/M6*100 -> 100 | S6: IRL-SAL-FRW-Fishery independent | T6: Y
A7: IRL | B7: 2020-2021 | C7: Northeast Atlantic | D7: ICES | E7: Salmo salar | F7: y | H7: BURRISHOOLE RIVER | I7: adult | J7: F/I | K7: Salmon National Coded Wire Tagging Programme | L7: n. release sites | M7: 1 | N7: A | O7: National Coded Wire Tagging programme | P7: 1 | Q7: =P7/M7*100 -> 100 | S7: IRL-SAL-FRW-Fishery independent | T7: Y
A8: IRL | B8: 2020-2021 | C8: Northeast Atlantic | D8: ICES | E8: Salmo salar | F8: y | H8: CONG RIVER | I8: adult | J8: F/I | K8: Salmon National Coded Wire Tagging Programme | L8: n. release sites | M8: 1 | N8: A | O8: National Coded Wire Tagging programme | P8: 1 | Q8: 100 | S8: IRL-SAL-FRW-Fishery independent | T8: Y
A9: IRL | B9: 2020-2021 | C9: Northeast Atlantic | D9: ICES | E9: Salmo salar | F9: y | H9: CORRIB RIVER | I9: adult | J9: F/I | K9: Salmon National Coded Wire Tagging Programme | L9: n. release sites | M9: 1 | N9: A | O9: National Coded Wire Tagging programme | P9: 1 | Q9: 100 | S9: IRL-SAL-FRW-Fishery independent | T9: Y
A10: IRL | B10: 2020-2021 | C10: Northeast Atlantic | D10: ICES | E10: Salmo salar | F10: y | H10: ERNE RIVER | I10: adult | J10: F/I | K10: Salmon National Coded Wire Tagging Programme | L10: n. release sites | M10: 1 | N10: A | O10: National Coded Wire Tagging programme | P10: 1 | Q10: 100 | S10: IRL-SAL-FRW-Fishery independent | T10: Y
A11: IRL | B11: 2020-2021 | C11: Northeast Atlantic | D11: ICES | E11: Salmo salar | F11: y | H11: LEE RIVER | I11: adult | J11: F/I | K11: Salmon National Coded Wire Tagging Programme | L11: n. release sites | M11: 1 | N11: A | O11: National Coded Wire Tagging programme | P11: 1 | Q11: 100 | S11: IRL-SAL-FRW-Fishery independent | T11: Y
A12: IRL | B12: 2020-2021 | C12: Northeast Atlantic | D12: ICES | E12: Salmo salar | F12: y | H12: SHANNON RIVER | I12: adult | J12: F/I | K12: Salmon National Coded Wire Tagging Programme | L12: n. release sites | M12: 1 | N12: A | O12: National Coded Wire Tagging programme | P12: 1 | Q12: 100 | S12: IRL-SAL-FRW-Fishery independent | T12: Y
A13: IRL | B13: 2020-2021 | C13: Northeast Atlantic | D13: ICES | E13: Salmo salar | F13: Y | H13: Erne | I13: adult | J13: I | K13: Biological sampling Salmon/Eel | L13: n. counter | M13: 1 | N13: A | O13: ESB operated, not funded under the EMFF programme | P13: 1 | Q13: 100 | S13: IRL-SAL-FRW-Fishery independent | T13: N
A14: IRL | B14: 2020-2021 | C14: Northeast Atlantic | D14: ICES | E14: Salmo salar | F14: Y | H14: Clady | I14: adult | J14: I | K14: Biological sampling Salmon/Eel | L14: n. counter | M14: 1 | N14: A | O14: ESB operated, not funded under the EMFF programme | P14: 0 | Q14: 0 | R14: Stopped the counter due to continuous malfunction. | S14: IRL-SAL-FRW-Fishery independent | T14: N
A15: IRL | B15: 2020-2021 | C15: Northeast Atlantic | D15: ICES | E15: Salmo salar | F15: Y | H15: Shannon | I15: adult | J15: I | K15: Biological sampling Salmon/Eel | L15: n. counter | M15: 1 | N15: A | O15: ESB operated, not funded under the EMFF programme | P15: 1 | Q15: 100 | S15: IRL-SAL-FRW-Fishery independent | T15: N
A16: IRL | B16: 2020-2021 | C16: Northeast Atlantic | D16: ICES | E16: Salmo salar | F16: Y | H16: Lee | I16: adult | J16: I | K16: Biological sampling Salmon/Eel | L16: n. counter | M16: 1 | N16: A | O16: ESB operated, not funded under the EMFF programme | P16: 1 | Q16: 100 | S16: IRL-SAL-FRW-Fishery independent | T16: N
A17: IRL | B17: 2020-2021 | C17: IE_NorW | D17: ICES | E17: Anguilla anguilla | F17: Y | H17: Erne | I17: glass eels or elvers | J17: I | K17: Biological sampling Salmon/Eel | L17: n. trap | M17: 3 | N17: A | O17: ESB operated Cathaleens Fall 3 traps, not funded under the EMFF programme | P17: 3 | Q17: 100 | S17: IRL-ELE-FRW-FWR-Fishery independent | T17: N | U17: Technical Expert Group on Eel, with representatives from both Irish and Northern Irish agencies (Inland Fisheries Ireland, The Marine Institute, Agri-Food and Biosciences Institute (AFBI), The Loughs Agency and the ESB (incl NUIG)) coordinate eel research across the island of Ireland but no formal bilateral has been agreed.
A18: IRL | B18: 2020-2021 | C18: IE_Shan | D18: ICES | E18: Anguilla anguilla | F18: Y | H18: Shannon | I18: glass eels or elvers & young yellow | J18: I | K18: Biological sampling Salmon/Eel | L18: n. trap | M18: 6 | N18: A | O18: ESB operated Ardnacrusha 1 trap; Parteen 3 traps, not funded under the EMFF programme | P18: 6 | Q18: 100 | S18: IRL-ELE-FRW-FWR-Fishery independent | T18: N | U18: A new additional trap installed at Ardnacrusha, so 6 traps in total
A19: IRL | B19: 2020-2021 | C19: IE_SouW | D19: ICES | E19: Anguilla anguilla | F19: Y | H19: Lee | I19: glass eels or elvers & young yellow | J19: I | K19: Biological sampling Salmon/Eel | L19: n. trap | M19: 1 | N19: A | O19: ESB operated, not funded under the EMFF programme | P19: 1 | Q19: 100 | S19: IRL-ELE-FRW-FWR-Fishery independent | T19: N
A20: IRL | B20: 2020-2021 | C20: IE_NorW | D20: ICES | E20: Anguilla anguilla | F20: Y | H20: Erne | I20: silver eel | J20: I | K20: Mark recapture Escapement Coghill Nets | L20: monitoring site | M20: 1 | N20: A | O20: ESB operated - monitoring site Roscor for escapement estimate, not funded under the EMFF programme | P20: 1 | Q20: 100 | S20: IRL-ELE-FWR-FSN-Fishery independent | T20: N
A21: IRL | B21: 2020-2021 | C21: IE_Shan | D21: ICES | E21: Anguilla anguilla | F21: Y | H21: Shannon | I21: silver eel | J21: I | K21: Mark recapture Escapement Coghill Nets | L21: monitoring site | M21: 1 | N21: A | O21: ESB operated - monitoring site Killaloe for escapement estimate, not funded under the EMFF programme | P21: 1 | Q21: 100 | S21: IRL-ELE-FWR-FSN-Fishery independent | T21: N
A22: IRL | B22: 2020-2021 | C22: IE_NorW | D22: ICES | E22: Anguilla anguilla | F22: Y | H22: Erne | I22: silver eel | J22: I | K22: transport capture sites Coghills and Vwing Fykes | L22: n. capture site | M22: 6 | N22: A | O22: ESB operated- T&T management measure, part of escapement estimate & biological sampling, not funded under the EMFF programme | P22: 5 | Q22: 83.33333333 | R22: Access to one fishing location denied | S22: IRL-ELE-FWR-FSN-Fishery independent | T22: N | U22: Programme reduced to 5 locations; programme exceeded target set in EMP: One location at Roscor has problems with local permission for access; however the trap and transport target was met as per National Eel Management Plan with the 5 locations.
A23: IRL | B23: 2020-2021 | C23: IE_Shan | D23: ICES | E23: Anguilla anguilla | F23: Y | H23: Shannon | I23: silver eel | J23: I | K23: transport capture sites Coghills and Vwing Fykes | L23: n. capture site | M23: 3 | N23: A | O23: ESB operated- T&T management measure, part of escapement estimate & biological sampling, not funded under the EMFF programme | P23: 3 | Q23: 100 | S23: IRL-ELE-FWR-FSN-Fishery independent | T23: N
A24: IRL | B24: 2020-2021 | C24: Atlantic | D24: ICES | E24: Anguilla anguilla | F24: Y | H24: Lee | I24: silver eel | J24: I | K24: transport capture sites Fykes | L24: n. capture site | M24: 1 | N24: A | O24: ESB operated- T&T management measure, part of escapement estimate & biological sampling, not funded under the EMFF programme | P24: 1 | Q24: 100 | S24: IRL-ELE-FRW-FYK-Fishery independent | T24: N
A25: IRL | B25: 2020-2021 | C25: IE_West | D25: ICES | E25: Anguilla anguilla | F25: Y | H25: Burrishoole 3 lakes per year | I25: yellow eel | J25: I | K25: Fyke net survey | L25: n. net nights | M25: 170 | N25: A | O25: MI operated- Burishoole yellow monitoring | P25: 230 | Q25: 135.2941176 | S25: IRL-ELE-FRW-FYK-Fishery independent | T25: N | U25: Some additional sites fished in 2021, including transitional waters.
A26: IRL | B26: 2020-2021 | C26: IE_West | D26: ICES | E26: Anguilla anguilla | F26: Y | H26: Burrishoole rivers | I26: yellow eel | J26: I | K26: Eel - Electrofishing Surveys | L26: n.survey sites | M26: 30 | N26: A | O26: MI operated- Burishoole yellow monitoring | P26: 13 | Q26: 43.33333333 | R26: Reduced electrofishing programme due to COVID-19 | S26: IRL-ELE-FRW-MEL-Fishery independent | T26: N | U26: Inaccessible sites, or sites requiring more than 3 staff were not completed in 2021, because of the risk of Covid - 19.
A27: IRL | B27: 2020-2021 | C27: IE_West | D27: ICES | E27: Anguilla anguilla | F27: Y | H27: Burrishoole | I27: silver eel | J27: I | K27: Trap: Daily Number, Size, weight and sex ratio of emigrating silver eels | L27: n .trap | M27: 2 | N27: A | O27: MI operated | P27: 2 | Q27: 100 | S27: IRL-ELE-FRW-FWR-Fishery independent | T27: N
A28: IRL | B28: 2020-2021 | C28: NA | D28: NA | E28: Anguilla anguilla | F28: N | G28: No Commercia/recreational Fishery | H28: NA | I28: NA | J28: F | K28: NA | L28: NA | M28: NA | N28: NA | O28: NA | P28: NA | Q28: NA | R28: No Commercial or Recreational Fishery | S28: NA | T28: Y | U28: Ireland does not have a commercial fishery for Eel. Eel is now protected in Ireland by legislation. In May of 2009 Eamon Ryan, Minister for Communications, Energy and Natural Resources passed two Bye laws closing the commercial and recreational eel fishery in Ireland. RCM NA 2012 Comment: Irelands request for an exemption to sample commercial eel catches was supported by the RCM North Atlantic in 2012 “RCM NA supports the request under the assumption that the laws are respected”.
A29: IRL | B29: 2020-2021 | C29: IE_West | D29: ICES | E29: Salmo salar | F29: Y | H29: Burrishoole rivers | I29: parr | J29: I | K29: Biological sampling salmon | L29: n.survey sites | M29: 30 | N29: A | O29: MI operated | P29: 13 | Q29: 43.33333333 | R29: Reduced electrofishing programme due to COVID-19 | S29: IRL-SAL-FRW-MEL-Fishery independent | T29: N | U29: Inaccessible sites, or sites requiring more than 3 staff were not completed in 2021, because of the risk of Covid - 19.
A30: IRL | B30: 2020-2021 | C30: IE_West | D30: ICES | E30: Salmo salar | F30: Y | H30: Burrishoole | I30: smolt & adult | J30: I | K30: Biological sampling salmon | L30: n .trap | M30: 4 | N30: A | O30: MI operated | P30: 4 | Q30: 100 | S30: IRL-SAL-FRW-FWR-Fishery independent | T30: N

Sheet Table1F Incidental by catch
A1: Table 1F: Incidental by-catch of birds, mammals, reptiles and fish
V2: WP years | W2: 2021
V3: AR year | W3: 2021
P4: Has there been occurrence of bycatch?
A5: MS | B5: Sampling period/year(s) | C5: Region | D5: RFMO/RFO/IO | E5: Sub-area / Fishing ground | F5: Scheme | G5: Stratum ID code / Name of the survey | H5: Group of vulnerable species | I5: Expected occurence of recordings | J5: Comments | K5: Total number of PSU in the sampling year | L5: Achieved number of PSU in the sampling year | M5: Number of PSU sampled in which observers have been instructed to look for bycatch | N5: Does your sampling protocol allow for the calculation of observation effort “at haul level” (Y/N) | O5: Is there any mitigation device? (Y/N) | P5: Fish (Y/N/NA) | Q5: Mammals (Y/N/NA) | R5: Birds (Y/N/NA) | S5: Reptiles (Y/N/NA) | T5: Other (Y/N/NA) | U5: Are data stored in a national database? | V5: Are data stored in international database(s)? | W5: AR Comments
A7: IRL | B7: 2020-2021 | C7: North Atlantic | D7: ICES | E7: All Areas | F7: Demersal at-sea | G7: IRL DS6ab, IRL DS7a, IRL DS7bk | H7: Birds | I7: x | J7: Protocols for observation of incidental bycatch are currently in place in off shore catch observer programme, collection protocols as per WGBYC. Species list will be extended to cover those applicable under Table 1D (EUMAP) and relevant databases updated Trammel, tangle and gill nets in the W, NW and SW will have an additional dedicated bycatch study under the EMFF Marine Biodiversity Scheme ( see text box pilot study 2 ) | K7: 6280 | L7: 64 | M7: 64 | N7: Y | O7: N | P7: Y | Q7: Y | R7: Y | S7: Y | T7: Y | U7: Y | V7: Y | W7: Data are uploaded on an annual basis to the WGBYC bycatch database, hosted by ICES. Also in 2021 lower that expected PSU's were achieved at sea due to the continued suspension of the Catch Sampling programme and the inability to send observers to sea on commercial vessels due to the Covid - 19 global pandemic.
A8: IRL | B8: 2020-2021 | C8: North Atlantic | D8: ICES | E8: All Areas | F8: Crustacean at -sea | G8: IRL E 6, IRL SE 8,IRL WSW 8 IRL N3, IRL NE3, IRL NW3, | H8: Birds | I8: x | J8: Protocols for observation of incidental bycatch are currently in place in off shore catch observer programme, collection protocols as per WGBYC. Species list will be extended to cover those applicable under Table 1D (EUMAP) and relevant databases updated | K8: 6208 | L8: 192 | M8: 63 | N8: Y | O8: N | P8: Y | Q8: Y | R8: Y | S8: Y | T8: Y | U8: Y | V8: Y | W8: Data are uploaded on an annual basis to the WGBYC bycatch database, hosted by ICES. Also in 2021 lower that expected PSU's were achieved at sea due to the continued suspension of the Catch Sampling programme and the inability to send observers to sea on commercial vessels due to the Covid - 19 global pandemic.
A9: IRL | B9: 2020-2021 | C9: North Atlantic | D9: ICES | E9: All Areas | F9: Pelagic at-sea | G9: IRL E 2,IRL SE 4,IRL WSW 5,IRL WSW 6, IRL NW2 | H9: Birds | I9: x | J9: Protocols for observation of incidental bycatch are currently in place in off shore catch observer programme, collection protocols as per WGBYC. Species list will be extended to cover those applicable under Table 1D (EUMAP) and relevant databases updated Fisheries targetting Horse mackerel in the W, NW and SW will have an additional dedicated bycatch study under the EMFF Marine Biodiversity Scheme ( see text box pilot study 2 ) | K9: 1158 | L9: 14 | M9: 14 | N9: Y | O9: N | P9: Y | Q9: Y | R9: Y | S9: Y | T9: Y | U9: Y | V9: Y | W9: Data are uploaded on an annual basis to the WGBYC bycatch database, hosted by ICES. Also in 2021 lower that expected PSU's were achieved at sea due to the continued suspension of the Catch Sampling programme and the inability to send observers to sea on commercial vessels due to the Covid - 19 global pandemic.
A10: IRL | B10: 2020-2021 | C10: North Atlantic | D10: ICES | E10: All Areas | F10: Mollusc at-sea | G10: IRL E 4,IRL E 5,IRL SE 7 | H10: Birds | I10: x | J10: Protocols for observation of incidental bycatch are currently in place in off shore catch observer programme, collection protocols as per WGBYC. Species list will be extended to cover those applicable under Table 1D (EUMAP) and relevant databases updated | K10: 5639 | L10: 0 | M10: 0 | N10: Y | O10: N | P10: Y | Q10: Y | R10: Y | S10: Y | T10: Y | U10: Y | V10: Y | W10: Data are uploaded on an annual basis to the WGBYC bycatch database, hosted by ICES. Also in 2021 lower that expected PSU's were achieved at sea due to the continued suspension of the Catch Sampling programme and the inability to send observers to sea on commercial vessels due to the Covid - 19 global pandemic.
A11: IRL | B11: 2020-2021 | C11: North Sea and Eastern Arctic | D11: ICES | E11: All Areas | F11: Pelagic at-sea | G11: IRL NE 1, IRL N 1 | H11: Birds | I11: x | J11: Protocols for observation of incidental bycatch are currently in place in off shore catch observer programme, collection protocols as per WGBYC. Species list will be extended to cover those applicable under Table 1D (EUMAP) and relevant databases updated | K11: 39 | L11: 0 | M11: 0 | N11: Y | O11: N | P11: Y | Q11: Y | R11: Y | S11: Y | T11: Y | U11: Y | V11: Y | W11: Data are uploaded on an annual basis to the WGBYC bycatch database, hosted by ICES. Also in 2021 lower that expected PSU's were achieved at sea due to the continued suspension of the Catch Sampling programme and the inability to send observers to sea on commercial vessels due to the Covid - 19 global pandemic.
A12: IRL | B12: 2020-2021 | C12: North Atlantic | D12: ICES | E12: All Areas | F12: Sampling on shore | G12: All | H12: Birds | I12: x | J12: Protocols for observation of incidental bycatch are currently in place in all sampling on shore schemes Species list will be extended to cover those applicable under Table 1D (EUMAP) and relevant databases updated | K12: 20824 | L12: 798 | M12: 798 | N12: Y | O12: N | P12: Y | Q12: Y | R12: Y | S12: Y | T12: Y | U12: Y | V12: Y | W12: Data are uploaded on an annual basis to the WGBYC bycatch database, hosted by ICES. Also in 2021 lower that expected PSU's were achieved at sea due to the continued suspension of the Catch Sampling programme and the inability to send observers to sea on commercial vessels due to the Covid - 19 global pandemic.
A13: IRL | B13: 2020-2021 | C13: North Sea and Eastern Arctic | D13: ICES | E13: All Areas | F13: Sampling on shore | G13: All | H13: Birds | I13: x | J13: Protocols for observation of incidental bycatch are currently in place in all sampling on shore schemes Species list will be extended to cover those applicable under Table 1D (EUMAP) and relevant databases updated | K13: 30 | L13: 13 | M13: 13 | N13: Y | O13: N | P13: Y | Q13: Y | R13: Y | S13: Y | T13: Y | U13: Y | V13: Y | W13: Data are uploaded on an annual basis to the WGBYC bycatch database, hosted by ICES. Also in 2021 lower that expected PSU's were achieved at sea due to the continued suspension of the Catch Sampling programme and the inability to send observers to sea on commercial vessels due to the Covid - 19 global pandemic.
A14: IRL | B14: 2020-2021 | C14: North Atlantic | D14: ICES | E14: All Areas | F14: Demersal at-sea | G14: IRL DS6ab, IRL DS7a, IRL DS7bk | H14: Bony Fishes | I14: x | J14: Protocols for observation of incidental bycatch are currently in place in off shore catch observer programme, collection protocols as per WGBYC. Species list will be extended to cover those applicable under Table 1D (EUMAP) and relevant databases updated Trammel, tangle and gill nets in the W, NW and SW will have an additional dedicated bycatch study under the EMFF Marine Biodiversity Scheme ( see text box pilot study 2 ) | K14: 6280 | L14: 64 | M14: 64 | N14: Y | O14: N | P14: Y | Q14: Y | R14: Y | S14: Y | T14: Y | U14: Y | V14: Y | W14: Data are uploaded on an annual basis to the WGBYC bycatch database, hosted by ICES. Also in 2021 lower that expected PSU's were achieved at sea due to the continued suspension of the Catch Sampling programme and the inability to send observers to sea on commercial vessels due to the Covid - 19 global pandemic.
A15: IRL | B15: 2020-2021 | C15: North Atlantic | D15: ICES | E15: All Areas | F15: Crustacean at -sea | G15: IRL E 6, IRL SE 8,IRL WSW 8 IRL N3, IRL NE3, IRL NW3, | H15: Bony Fishes | I15: x | J15: Protocols for observation of incidental bycatch are currently in place in off shore catch observer programme, collection protocols as per WGBYC. Species list will be extended to cover those applicable under Table 1D (EUMAP) and relevant databases updated | K15: 6208 | L15: 192 | M15: 63 | N15: Y | O15: N | P15: Y | Q15: Y | R15: Y | S15: Y | T15: Y | U15: Y | V15: Y | W15: Data are uploaded on an annual basis to the WGBYC bycatch database, hosted by ICES. Also in 2021 lower that expected PSU's were achieved at sea due to the continued suspension of the Catch Sampling programme and the inability to send observers to sea on commercial vessels due to the Covid - 19 global pandemic.
A16: IRL | B16: 2020-2021 | C16: North Atlantic | D16: ICES | E16: All Areas | F16: Pelagic at-sea | G16: IRL E 2,IRL SE 4,IRL WSW 5,IRL WSW 6, IRL NW2 | H16: Bony Fishes | I16: x | J16: Protocols for observation of incidental bycatch are currently in place in off shore catch observer programme, collection protocols as per WGBYC. Species list will be extended to cover those applicable under Table 1D (EUMAP) and relevant databases updated Fisheries targetting Horse mackerel in the W, NW and SW will have an additional dedicated bycatch study under the EMFF Marine Biodiversity Scheme ( see text box pilot study 2 ) | K16: 1158 | L16: 14 | M16: 14 | N16: Y | O16: N | P16: Y | Q16: Y | R16: Y | S16: Y | T16: Y | U16: Y | V16: Y | W16: Data are uploaded on an annual basis to the WGBYC bycatch database, hosted by ICES. Also in 2021 lower that expected PSU's were achieved at sea due to the continued suspension of the Catch Sampling programme and the inability to send observers to sea on commercial vessels due to the Covid - 19 global pandemic.
A17: IRL | B17: 2020-2021 | C17: North Atlantic | D17: ICES | E17: All Areas | F17: Mollusc at-sea | G17: IRL E 4,IRL E 5,IRL SE 7 | H17: Bony Fishes | I17: x | J17: Protocols for observation of incidental bycatch are currently in place in off shore catch observer programme, collection protocols as per WGBYC. Species list will be extended to cover those applicable under Table 1D (EUMAP) and relevant databases updated | K17: 5639 | L17: 0 | M17: 0 | N17: Y | O17: N | P17: Y | Q17: Y | R17: Y | S17: Y | T17: Y | U17: Y | V17: Y | W17: Data are uploaded on an annual basis to the WGBYC bycatch database, hosted by ICES. Also in 2021 lower that expected PSU's were achieved at sea due to the continued suspension of the Catch Sampling programme and the inability to send observers to sea on commercial vessels due to the Covid - 19 global pandemic.
A18: IRL | B18: 2020-2021 | C18: North Sea and Eastern Arctic | D18: ICES | E18: All Areas | F18: Pelagic at-sea | G18: IRL NE 1, IRL N 1 | H18: Bony Fishes | I18: x | J18: Protocols for observation of incidental bycatch are currently in place in off shore catch observer programme, collection protocols as per WGBYC. Species list will be extended to cover those applicable under Table 1D (EUMAP) and relevant databases updated | L18: 0 | M18: 0 | N18: Y | O18: N | P18: Y | Q18: Y | R18: Y | S18: Y | T18: Y | U18: Y | V18: Y | W18: Data are uploaded on an annual basis to the WGBYC bycatch database, hosted by ICES. Also in 2021 lower that expected PSU's were achieved at sea due to the continued suspension of the Catch Sampling programme and the inability to send observers to sea on commercial vessels due to the Covid - 19 global pandemic.
A19: IRL | B19: 2020-2021 | C19: North Sea and Eastern Arctic | D19: ICES | E19: All Areas | F19: Sampling on shore | G19: All | H19: Bony Fishes | I19: x | J19: Protocols for observation of incidental bycatch are currently in place in all sampling on shore schemes Species list will be extended to cover those applicable under Table 1D (EUMAP) and relevant databases updated | K19: 30 | L19: 13 | M19: 13 | N19: Y | O19: N | P19: Y | Q19: Y | R19: Y | S19: Y | T19: Y | U19: Y | V19: Y | W19: Data are uploaded on an annual basis to the WGBYC bycatch database, hosted by ICES. Also in 2021 lower that expected PSU's were achieved at sea due to the continued suspension of the Catch Sampling programme and the inability to send observers to sea on commercial vessels due to the Covid - 19 global pandemic.
A20: IRL | B20: 2020-2022 | C20: North Atlantic | D20: ICES | E20: All Areas | F20: Sampling on shore | G20: All | H20: Bony fishes | I20: x | J20: Protocols for observation of incidental bycatch are currently in place in all sampling on shore schemes Species list will be extended to cover those applicable under Table 1D (EUMAP) and relevant databases updated | K20: 20824 | L20: 798 | M20: 798 | N20: Y | O20: N | P20: Y | Q20: Y | R20: Y | S20: Y | T20: Y | U20: Y | V20: Y | W20: Data are uploaded on an annual basis to the WGBYC bycatch database, hosted by ICES. Also in 2021 lower that expected PSU's were achieved at sea due to the continued suspension of the Catch Sampling programme and the inability to send observers to sea on commercial vessels due to the Covid - 19 global pandemic.
A21: IRL | B21: 2020-2021 | C21: North Atlantic | D21: ICES | E21: All Areas | F21: Demersal at-sea | G21: IRL DS6ab, IRL DS7a, IRL DS7bk | H21: Cartilaginous fishes | I21: x | J21: Protocols for observation of incidental bycatch are currently in place in off shore catch observer programme, collection protocols as per WGBYC. Species list will be extended to cover those applicable under Table 1D (EUMAP) and relevant databases updated Trammel, tangle and gill nets in the W, NW and SW will have an additional dedicated bycatch study under the EMFF Marine Biodiversity Scheme ( see text box pilot study 2 ) | K21: 6280 | L21: 64 | M21: 64 | N21: Y | O21: N | P21: Y | Q21: Y | R21: Y | S21: Y | T21: Y | U21: Y | V21: Y | W21: Data are uploaded on an annual basis to the WGBYC bycatch database, hosted by ICES. Also in 2021 lower that expected PSU's were achieved at sea due to the continued suspension of the Catch Sampling programme and the inability to send observers to sea on commercial vessels due to the Covid - 19 global pandemic.
A22: IRL | B22: 2020-2021 | C22: North Atlantic | D22: ICES | E22: All Areas | F22: Crustacean at -sea | G22: IRL E 6, IRL SE 8,IRL WSW 8 IRL N3, IRL NE3, IRL NW3, | H22: Cartilaginous fishes | I22: x | J22: Protocols for observation of incidental bycatch are currently in place in off shore catch observer programme, collection protocols as per WGBYC. Species list will be extended to cover those applicable under Table 1D (EUMAP) and relevant databases updated | K22: 6208 | L22: 192 | M22: 63 | N22: Y | O22: N | P22: Y | Q22: Y | R22: Y | S22: Y | T22: Y | U22: Y | V22: Y | W22: Data are uploaded on an annual basis to the WGBYC bycatch database, hosted by ICES. Also in 2021 lower that expected PSU's were achieved at sea due to the continued suspension of the Catch Sampling programme and the inability to send observers to sea on commercial vessels due to the Covid - 19 global pandemic.
A23: IRL | B23: 2020-2021 | C23: North Atlantic | D23: ICES | E23: All Areas | F23: Pelagic at-sea | G23: IRL E 2,IRL SE 4,IRL WSW 5,IRL WSW 6, IRL NW2 | H23: Cartilaginous fishes | I23: x | J23: Protocols for observation of incidental bycatch are currently in place in off shore catch observer programme, collection protocols as per WGBYC. Species list will be extended to cover those applicable under Table 1D (EUMAP) and relevant databases updated Fisheries targetting Horse mackerel in the W, NW and SW will have an additional dedicated bycatch study under the EMFF Marine Biodiversity Scheme ( see text box pilot study 2 ) | K23: 1158 | L23: 14 | M23: 14 | N23: Y | O23: N | P23: Y | Q23: Y | R23: Y | S23: Y | T23: Y | U23: Y | V23: Y | W23: Data are uploaded on an annual basis to the WGBYC bycatch database, hosted by ICES. Also in 2021 lower that expected PSU's were achieved at sea due to the continued suspension of the Catch Sampling programme and the inability to send observers to sea on commercial vessels due to the Covid - 19 global pandemic.
A24: IRL | B24: 2020-2021 | C24: North Atlantic | D24: ICES | E24: All Areas | F24: Mollusc at-sea | G24: IRL E 4,IRL E 5,IRL SE 7 | H24: Cartilaginous fishes | I24: x | J24: Protocols for observation of incidental bycatch are currently in place in off shore catch observer programme, collection protocols as per WGBYC. Species list will be extended to cover those applicable under Table 1D (EUMAP) and relevant databases updated | K24: 5639 | L24: 0 | M24: 0 | N24: Y | O24: N | P24: Y | Q24: Y | R24: Y | S24: Y | T24: Y | U24: Y | V24: Y | W24: Data are uploaded on an annual basis to the WGBYC bycatch database, hosted by ICES. Also in 2021 lower that expected PSU's were achieved at sea due to the continued suspension of the Catch Sampling programme and the inability to send observers to sea on commercial vessels due to the Covid - 19 global pandemic.
A25: IRL | B25: 2020-2021 | C25: North Sea and Eastern Arctic | D25: ICES | E25: All Areas | F25: Pelagic at-sea | G25: IRL NE 1, IRL N 1 | H25: Cartilaginous fishes | I25: x | J25: Protocols for observation of incidental bycatch are currently in place in off shore catch observer programme, collection protocols as per WGBYC. Species list will be extended to cover those applicable under Table 1D (EUMAP) and relevant databases updated | L25: 0 | M25: 0 | N25: Y | O25: N | P25: Y | Q25: Y | R25: Y | S25: Y | T25: Y | U25: Y | V25: Y | W25: Data are uploaded on an annual basis to the WGBYC bycatch database, hosted by ICES. Also in 2021 lower that expected PSU's were achieved at sea due to the continued suspension of the Catch Sampling programme and the inability to send observers to sea on commercial vessels due to the Covid - 19 global pandemic.
A26: IRL | B26: 2020-2021 | C26: North Atlantic | D26: ICES | E26: All Areas | F26: Sampling on shore | G26: All | H26: Cartilaginous fishes | I26: x | J26: Protocols for observation of incidental bycatch are currently in place in all sampling on shore schemes Species list will be extended to cover those applicable under Table 1D (EUMAP) and relevant databases updated | K26: 20824 | L26: 798 | M26: 798 | N26: Y | O26: N | P26: Y | Q26: Y | R26: Y | S26: Y | T26: Y | U26: Y | V26: Y | W26: Data are uploaded on an annual basis to the WGBYC bycatch database, hosted by ICES. Also in 2021 lower that expected PSU's were achieved at sea due to the continued suspension of the Catch Sampling programme and the inability to send observers to sea on commercial vessels due to the Covid - 19 global pandemic.
A27: IRL | B27: 2020-2021 | C27: North Sea and Eastern Arctic | D27: ICES | E27: All Areas | F27: Sampling on shore | G27: All | H27: Cartilaginous fishes | I27: x | J27: Protocols for observation of incidental bycatch are currently in place in all sampling on shore schemes Species list will be extended to cover those applicable under Table 1D (EUMAP) and relevant databases updated | K27: 30 | L27: 13 | M27: 13 | N27: Y | O27: N | P27: Y | Q27: Y | R27: Y | S27: Y | T27: Y | U27: Y | V27: Y | W27: Data are uploaded on an annual basis to the WGBYC bycatch database, hosted by ICES. Also in 2021 lower that expected PSU's were achieved at sea due to the continued suspension of the Catch Sampling programme and the inability to send observers to sea on commercial vessels due to the Covid - 19 global pandemic.
A28: IRL | B28: 2020-2021 | C28: North Atlantic | D28: ICES | E28: All Areas | F28: Demersal at-sea | G28: IRL DS6ab, IRL DS7a, IRL DS7bk | H28: Crustaceans | I28: Zero | J28: MS has no directed Deep water fishery. Protocols for observation of incidental bycatch are currently in place in off shore catch observer programme, collection protocols as per WGBYC. Species list will be extended to cover those applicable under Table 1D (EUMAP) and relevant databases updated Trammel, tangle and gill nets in the W, NW and SW will have an additional dedicated bycatch study under the EMFF Marine Biodiversity Scheme ( see text box pilot study 2 ) | K28: 6280 | L28: 64 | M28: 64 | N28: Y | O28: N | P28: Y | Q28: Y | R28: Y | S28: Y | T28: Y | U28: Y | V28: Y | W28: Data are uploaded on an annual basis to the WGBYC bycatch database, hosted by ICES. Also in 2021 lower that expected PSU's were achieved at sea due to the continued suspension of the Catch Sampling programme and the inability to send observers to sea on commercial vessels due to the Covid - 19 global pandemic.
A29: IRL | B29: 2020-2021 | C29: North Atlantic | D29: ICES | E29: All Areas | F29: Crustacean at -sea | G29: IRL E 6, IRL SE 8,IRL WSW 8 IRL N3, IRL NE3, IRL NW3, | H29: Crustaceans | I29: x | J29: Protocols for observation of incidental bycatch are currently in place in off shore catch observer programme, collection protocols as per WGBYC. Species list will be extended to cover those applicable under Table 1D (EUMAP) and relevant databases updated | K29: 6208 | L29: 192 | M29: 63 | N29: Y | O29: N | P29: Y | Q29: Y | R29: Y | S29: Y | T29: Y | U29: Y | V29: Y | W29: Data are uploaded on an annual basis to the WGBYC bycatch database, hosted by ICES. Also in 2021 lower that expected PSU's were achieved at sea due to the continued suspension of the Catch Sampling programme and the inability to send observers to sea on commercial vessels due to the Covid - 19 global pandemic.
A30: IRL | B30: 2020-2021 | C30: North Sea and Eastern Arctic | D30: ICES | E30: All Areas | F30: Sampling on shore | G30: All | H30: Crustaceans | I30: x | J30: Protocols for observation of incidental bycatch are currently in place in all sampling on shore schemes Species list will be extended to cover those applicable under Table 1D (EUMAP) and relevant databases updated | K30: 30 | L30: 13 | M30: 13 | N30: Y | O30: N | P30: Y | Q30: Y | R30: Y | S30: Y | T30: Y | U30: Y | V30: Y | W30: Data are uploaded on an annual basis to the WGBYC bycatch database, hosted by ICES. Also in 2021 lower that expected PSU's were achieved at sea due to the continued suspension of the Catch Sampling programme and the inability to send observers to sea on commercial vessels due to the Covid - 19 global pandemic.
A31: IRL | B31: 2020-2021 | C31: North Atlantic | D31: ICES | E31: All Areas | F31: Pelagic at-sea | G31: IRL E 2,IRL SE 4,IRL WSW 5,IRL WSW 6, IRL NW2 | H31: Crustaceans | I31: x | J31: Protocols for observation of incidental bycatch are currently in place in off shore catch observer programme, collection protocols as per WGBYC. Species list will be extended to cover those applicable under Table 1D (EUMAP) and relevant databases updated Fisheries targetting Horse mackerel in the W, NW and SW will have an additional dedicated bycatch study under the EMFF Marine Biodiversity Scheme ( see text box pilot study 2 ) | K31: 1158 | L31: 14 | M31: 14 | N31: Y | O31: N | P31: Y | Q31: Y | R31: Y | S31: Y | T31: Y | U31: Y | V31: Y | W31: Data are uploaded on an annual basis to the WGBYC bycatch database, hosted by ICES. Also in 2021 lower that expected PSU's were achieved at sea due to the continued suspension of the Catch Sampling programme and the inability to send observers to sea on commercial vessels due to the Covid - 19 global pandemic.
A32: IRL | B32: 2020-2021 | C32: North Atlantic | D32: ICES | E32: All Areas | F32: Mollusc at-sea | G32: IRL E 4,IRL E 5,IRL SE 7 | H32: Crustaceans | I32: x | J32: Protocols for observation of incidental bycatch are currently in place in off shore catch observer programme, collection protocols as per WGBYC. Species list will be extended to cover those applicable under Table 1D (EUMAP) and relevant databases updated | K32: 5639 | L32: 0 | M32: 0 | N32: Y | O32: N | P32: Y | Q32: Y | R32: Y | S32: Y | T32: Y | U32: Y | V32: Y | W32: Data are uploaded on an annual basis to the WGBYC bycatch database, hosted by ICES. Also in 2021 lower that expected PSU's were achieved at sea due to the continued suspension of the Catch Sampling programme and the inability to send observers to sea on commercial vessels due to the Covid - 19 global pandemic.
A33: IRL | B33: 2020-2021 | C33: North Atlantic | D33: ICES | E33: All Areas | F33: Sampling on shore | G33: All | H33: Crustaceans | I33: x | J33: Protocols for observation of incidental bycatch are currently in place in all sampling on shore schemes Species list will be extended to cover those applicable under Table 1D (EUMAP) and relevant databases updated | K33: 20824 | L33: 798 | M33: 798 | N33: Y | O33: N | P33: Y | Q33: Y | R33: Y | S33: Y | T33: Y | U33: Y | V33: Y | W33: Data are uploaded on an annual basis to the WGBYC bycatch database, hosted by ICES. Also in 2021 lower that expected PSU's were achieved at sea due to the continued suspension of the Catch Sampling programme and the inability to send observers to sea on commercial vessels due to the Covid - 19 global pandemic.
A34: IRL | B34: 2020-2021 | C34: North Atlantic | D34: ICES | E34: All Areas | F34: Demersal at-sea | G34: IRL DS6ab, IRL DS7a, IRL DS7bk | H34: Mammals | I34: x | J34: Protocols for observation of incidental bycatch are currently in place in off shore catch observer programme, collection protocols as per WGBYC. Species list will be extended to cover those applicable under Table 1D (EUMAP) and relevant databases updated Trammel, tangle and gill nets in the W, NW and SW will have an additional dedicated bycatch study under the EMFF Marine Biodiversity Scheme ( see text box pilot study 2 ) | K34: 6280 | L34: 64 | M34: 64 | N34: Y | O34: N | P34: Y | Q34: Y | R34: Y | S34: Y | T34: Y | U34: Y | V34: Y | W34: Data are uploaded on an annual basis to the WGBYC bycatch database, hosted by ICES. Also in 2021 lower that expected PSU's were achieved at sea due to the continued suspension of the Catch Sampling programme and the inability to send observers to sea on commercial vessels due to the Covid - 19 global pandemic.
A35: IRL | B35: 2020-2021 | C35: North Atlantic | D35: ICES | E35: All Areas | F35: Crustacean at -sea | G35: IRL E 6, IRL SE 8,IRL WSW 8 IRL N3, IRL NE3, IRL NW3, | H35: Mammals | I35: x | J35: Protocols for observation of incidental bycatch are currently in place in off shore catch observer programme, collection protocols as per WGBYC. Species list will be extended to cover those applicable under Table 1D (EUMAP) and relevant databases updated | K35: 6208 | L35: 192 | M35: 63 | N35: Y | O35: N | P35: Y | Q35: Y | R35: Y | S35: Y | T35: Y | U35: Y | V35: Y | W35: Data are uploaded on an annual basis to the WGBYC bycatch database, hosted by ICES. Also in 2021 lower that expected PSU's were achieved at sea due to the continued suspension of the Catch Sampling programme and the inability to send observers to sea on commercial vessels due to the Covid - 19 global pandemic.
A36: IRL | B36: 2020-2021 | C36: North Atlantic | D36: ICES | E36: All Areas | F36: Pelagic at-sea | G36: IRL E 2,IRL SE 4,IRL WSW 5,IRL WSW 6, IRL NW2 | H36: Mammals | I36: x | J36: Protocols for observation of incidental bycatch are currently in place in off shore catch observer programme, collection protocols as per WGBYC. Species list will be extended to cover those applicable under Table 1D (EUMAP) and relevant databases updated Fisheries targetting Horse mackerel in the W, NW and SW will have an additional dedicated bycatch study under the EMFF Marine Biodiversity Scheme ( see text box pilot study 2 ) | K36: 1158 | L36: 14 | M36: 14 | N36: Y | O36: N | P36: Y | Q36: Y | R36: Y | S36: Y | T36: Y | U36: Y | V36: Y | W36: Data are uploaded on an annual basis to the WGBYC bycatch database, hosted by ICES. Also in 2021 lower that expected PSU's were achieved at sea due to the continued suspension of the Catch Sampling programme and the inability to send observers to sea on commercial vessels due to the Covid - 19 global pandemic.
A37: IRL | B37: 2020-2021 | C37: North Sea and Eastern Arctic | D37: ICES | E37: All Areas | F37: Pelagic at-sea | G37: IRL NE 1, IRL N 1 | H37: Mammals | I37: x | J37: Protocols for observation of incidental bycatch are currently in place in off shore catch observer programme, collection protocols as per WGBYC. Species list will be extended to cover those applicaple under Table 1D and relevant databases updated | L37: 0 | M37: 0 | N37: Y | O37: N | P37: Y | Q37: Y | R37: Y | S37: Y | T37: Y | U37: Y | V37: Y | W37: Data are uploaded on an annual basis to the WGBYC bycatch database, hosted by ICES. Also in 2021 lower that expected PSU's were achieved at sea due to the continued suspension of the Catch Sampling programme and the inability to send observers to sea on commercial vessels due to the Covid - 19 global pandemic.
A38: IRL | B38: 2020-2021 | C38: North Atlantic | D38: ICES | E38: All Areas | F38: Mollusc at-sea | G38: IRL E 4,IRL E 5,IRL SE 7 | H38: Mammals | I38: x | J38: Protocols for observation of incidental bycatch are currently in place in off shore catch observer programme, collection protocols as per WGBYC. Species list will be extended to cover those applicable under Table 1D (EUMAP) and relevant databases updated | K38: 5639 | L38: 0 | M38: 0 | N38: Y | O38: N | P38: Y | Q38: Y | R38: Y | S38: Y | T38: Y | U38: Y | V38: Y | W38: Data are uploaded on an annual basis to the WGBYC bycatch database, hosted by ICES. Also in 2021 lower that expected PSU's were achieved at sea due to the continued suspension of the Catch Sampling programme and the inability to send observers to sea on commercial vessels due to the Covid - 19 global pandemic.
A39: IRL | B39: 2020-2021 | C39: North Sea and Eastern Arctic | D39: ICES | E39: All Areas | F39: Sampling on shore | G39: All | H39: Mammals | I39: x | J39: Protocols for observation of incidental bycatch are currently in place in all sampling on shore schemes Species list will be extended to cover those applicable under Table 1D (EUMAP) and relevant databases updated | K39: 30 | L39: 13 | M39: 13 | N39: Y | O39: N | P39: Y | Q39: Y | R39: Y | S39: Y | T39: Y | U39: Y | V39: Y | W39: Data are uploaded on an annual basis to the WGBYC bycatch database, hosted by ICES. Also in 2021 lower that expected PSU's were achieved at sea due to the continued suspension of the Catch Sampling programme and the inability to send observers to sea on commercial vessels due to the Covid - 19 global pandemic.
A40: IRL | B40: 2020-2021 | C40: North Atlantic | D40: ICES | E40: All Areas | F40: Sampling on shore | G40: All | H40: Mammals | I40: x | J40: Protocols for observation of incidental bycatch are currently in place in all sampling on shore schemes Species list will be extended to cover those applicable under Table 1D (EUMAP) and relevant databases updated | K40: 20824 | L40: 798 | M40: 798 | N40: Y | O40: N | P40: Y | Q40: Y | R40: Y | S40: Y | T40: Y | U40: Y | V40: Y | W40: Data are uploaded on an annual basis to the WGBYC bycatch database, hosted by ICES. Also in 2021 lower that expected PSU's were achieved at sea due to the continued suspension of the Catch Sampling programme and the inability to send observers to sea on commercial vessels due to the Covid - 19 global pandemic.
A41: IRL | B41: 2020-2021 | C41: North Atlantic | D41: ICES | E41: All Areas | F41: Demersal at-sea | G41: IRL DS6ab, IRL DS7a, IRL DS7bk | H41: Molluscs | I41: x | J41: Protocols for observation of incidental bycatch are currently in place in off shore catch observer programme, collection protocols as per WGBYC. Species list will be extended to cover those applicable under Table 1D (EUMAP) and relevant databases updated Trammel, tangle and gill nets in the W, NW and SW will have an additional dedicated bycatch study under the EMFF Marine Biodiversity Scheme ( see text box pilot study 2 ) | K41: 6280 | L41: 64 | M41: 64 | N41: Y | O41: N | P41: Y | Q41: Y | R41: Y | S41: Y | T41: Y | U41: Y | V41: Y | W41: Data are uploaded on an annual basis to the WGBYC bycatch database, hosted by ICES. Also in 2021 lower that expected PSU's were achieved at sea due to the continued suspension of the Catch Sampling programme and the inability to send observers to sea on commercial vessels due to the Covid - 19 global pandemic.
A42: IRL | B42: 2020-2021 | C42: North Atlantic | D42: ICES | E42: All Areas | F42: Crustacean at -sea | G42: IRL E 6, IRL SE 8,IRL WSW 8 IRL N3, IRL NE3, IRL NW3, | H42: Molluscs | I42: x | J42: Protocols for observation of incidental bycatch are currently in place in off shore catch observer programme, collection protocols as per WGBYC. Species list will be extended to cover those applicable under Table 1D (EUMAP) and relevant databases updated | K42: 6208 | L42: 192 | M42: 63 | N42: Y | O42: N | P42: Y | Q42: Y | R42: Y | S42: Y | T42: Y | U42: Y | V42: Y | W42: Data are uploaded on an annual basis to the WGBYC bycatch database, hosted by ICES. Also in 2021 lower that expected PSU's were achieved at sea due to the continued suspension of the Catch Sampling programme and the inability to send observers to sea on commercial vessels due to the Covid - 19 global pandemic.
A43: IRL | B43: 2020-2021 | C43: North Atlantic | D43: ICES | E43: All Areas | F43: Pelagic at-sea | G43: IRL E 2,IRL SE 4,IRL WSW 5,IRL WSW 6, IRL NW2 | H43: Molluscs | I43: x | J43: Protocols for observation of incidental bycatch are currently in place in off shore catch observer programme, collection protocols as per WGBYC. Species list will be extended to cover those applicable under Table 1D (EUMAP) and relevant databases updated Fisheries targetting Horse mackerel in the W, NW and SW will have an additional dedicated bycatch study under the EMFF Marine Biodiversity Scheme ( see text box pilot study 2 ) | K43: 1158 | L43: 14 | M43: 14 | N43: Y | O43: N | P43: Y | Q43: Y | R43: Y | S43: Y | T43: Y | U43: Y | V43: Y | W43: Data are uploaded on an annual basis to the WGBYC bycatch database, hosted by ICES. Also in 2021 lower that expected PSU's were achieved at sea due to the continued suspension of the Catch Sampling programme and the inability to send observers to sea on commercial vessels due to the Covid - 19 global pandemic.
A44: IRL | B44: 2020-2021 | C44: North Atlantic | D44: ICES | E44: All Areas | F44: Mollusc at-sea | G44: IRL E 4,IRL E 5,IRL SE 7 | H44: Molluscs | I44: x | J44: Protocols for observation of incidental bycatch are currently in place in off shore catch observer programme, collection protocols as per WGBYC. Species list will be extended to cover those applicable under Table 1D (EUMAP) and relevant databases updated | K44: 5639 | L44: 0 | M44: 0 | N44: Y | O44: N | P44: Y | Q44: Y | R44: Y | S44: Y | T44: Y | U44: Y | V44: Y | W44: Data are uploaded on an annual basis to the WGBYC bycatch database, hosted by ICES. Also in 2021 lower that expected PSU's were achieved at sea due to the continued suspension of the Catch Sampling programme and the inability to send observers to sea on commercial vessels due to the Covid - 19 global pandemic.
A45: IRL | B45: 2020-2021 | C45: North Sea and Eastern Arctic | D45: ICES | E45: All Areas | F45: Sampling on shore | G45: All | H45: Molluscs | I45: x | J45: Protocols for observation of incidental bycatch are currently in place in all sampling on shore schemes Species list will be extended to cover those applicable under Table 1D (EUMAP) and relevant databases updated | K45: 30 | L45: 13 | M45: 13 | N45: Y | O45: N | P45: Y | Q45: Y | R45: Y | S45: Y | T45: Y | U45: Y | V45: Y | W45: Data are uploaded on an annual basis to the WGBYC bycatch database, hosted by ICES. Also in 2021 lower that expected PSU's were achieved at sea due to the continued suspension of the Catch Sampling programme and the inability to send observers to sea on commercial vessels due to the Covid - 19 global pandemic.
A46: IRL | B46: 2020-2021 | C46: North Atlantic | D46: ICES | E46: All Areas | F46: Sampling on shore | G46: All | H46: Molluscs | I46: x | J46: Protocols for observation of incidental bycatch are currently in place in all sampling on shore schemes Species list will be extended to cover those applicable under Table 1D (EUMAP) and relevant databases updated | K46: 20824 | L46: 798 | M46: 798 | N46: Y | O46: N | P46: Y | Q46: Y | R46: Y | S46: Y | T46: Y | U46: Y | V46: Y | W46: Data are uploaded on an annual basis to the WGBYC bycatch database, hosted by ICES. Also in 2021 lower that expected PSU's were achieved at sea due to the continued suspension of the Catch Sampling programme and the inability to send observers to sea on commercial vessels due to the Covid - 19 global pandemic.
A47: IRL | B47: 2020-2021 | C47: North Atlantic | D47: ICES | E47: All Areas | F47: Demersal at-sea | G47: IRL DS6ab, IRL DS7a, IRL DS7bk | H47: Reptiles | I47: x | J47: Protocols for observation of incidental bycatch are currently in place in off shore catch observer programme, collection protocols as per WGBYC. Species list will be extended to cover those applicable under Table 1D (EUMAP) and relevant databases updated Trammel, tangle and gill nets in the W, NW and SW will have an additional dedicated bycatch study under the EMFF Marine Biodiversity Scheme ( see text box pilot study 2 ) | K47: 6280 | L47: 64 | M47: 64 | N47: Y | O47: N | P47: Y | Q47: Y | R47: Y | S47: Y | T47: Y | U47: Y | V47: Y | W47: Data are uploaded on an annual basis to the WGBYC bycatch database, hosted by ICES. Also in 2021 lower that expected PSU's were achieved at sea due to the continued suspension of the Catch Sampling programme and the inability to send observers to sea on commercial vessels due to the Covid - 19 global pandemic.
A48: IRL | B48: 2020-2021 | C48: North Atlantic | D48: ICES | E48: All Areas | F48: Crustacean at -sea | G48: IRL E 6, IRL SE 8,IRL WSW 8 IRL N3, IRL NE3, IRL NW3, | H48: Reptiles | I48: x | J48: Protocols for observation of incidental bycatch are currently in place in off shore catch observer programme, collection protocols as per WGBYC. Species list will be extended to cover those applicable under Table 1D (EUMAP) and relevant databases updated | K48: 6208 | L48: 192 | M48: 63 | N48: Y | O48: N | P48: Y | Q48: Y | R48: Y | S48: Y | T48: Y | U48: Y | V48: Y | W48: Data are uploaded on an annual basis to the WGBYC bycatch database, hosted by ICES. Also in 2021 lower that expected PSU's were achieved at sea due to the continued suspension of the Catch Sampling programme and the inability to send observers to sea on commercial vessels due to the Covid - 19 global pandemic.
A49: IRL | B49: 2020-2021 | C49: North Atlantic | D49: ICES | E49: All Areas | F49: Pelagic at-sea | G49: IRL E 2,IRL SE 4,IRL WSW 5,IRL WSW 6, IRL NW2 | H49: Reptiles | I49: x | J49: Protocols for observation of incidental bycatch are currently in place in off shore catch observer programme, collection protocols as per WGBYC. Species list will be extended to cover those applicable under Table 1D (EUMAP) and relevant databases updated Fisheries targetting Horse mackerel in the W, NW and SW will have an additional dedicated bycatch study under the EMFF Marine Biodiversity Scheme ( see text box pilot study 2 ) | K49: 1158 | L49: 14 | M49: 14 | N49: Y | O49: N | P49: Y | Q49: Y | R49: Y | S49: Y | T49: Y | U49: Y | V49: Y | W49: Data are uploaded on an annual basis to the WGBYC bycatch database, hosted by ICES. Also in 2021 lower that expected PSU's were achieved at sea due to the continued suspension of the Catch Sampling programme and the inability to send observers to sea on commercial vessels due to the Covid - 19 global pandemic.
A50: IRL | B50: 2020-2021 | C50: North Sea and Eastern Arctic | D50: ICES | E50: All Areas | F50: Pelagic at-sea | G50: IRL NE 1, IRL N 1 | H50: Reptiles | I50: x | J50: Protocols for observation of incidental bycatch are currently in place in off shore catch observer programme, collection protocols as per WGBYC. Species list will be extended to cover those applicable under Table 1D (EUMAP) and relevant databases updated | K50: 39 | L50: 0 | M50: 0 | N50: Y | O50: N | P50: Y | Q50: Y | R50: Y | S50: Y | T50: Y | U50: Y | V50: Y | W50: Data are uploaded on an annual basis to the WGBYC bycatch database, hosted by ICES. Also in 2021 lower that expected PSU's were achieved at sea due to the continued suspension of the Catch Sampling programme and the inability to send observers to sea on commercial vessels due to the Covid - 19 global pandemic.
A51: IRL | B51: 2020-2021 | C51: North Atlantic | D51: ICES | E51: All Areas | F51: Mollusc at-sea | G51: IRL E 4,IRL E 5,IRL SE 7 | H51: Reptiles | I51: x | J51: Protocols for observation of incidental bycatch are currently in place in off shore catch observer programme, collection protocols as per WGBYC. Species list will be extended to cover those applicable under Table 1D (EUMAP) and relevant databases updated | K51: 5639 | L51: 0 | M51: 0 | N51: Y | O51: N | P51: Y | Q51: Y | R51: Y | S51: Y | T51: Y | U51: Y | V51: Y | W51: Data are uploaded on an annual basis to the WGBYC bycatch database, hosted by ICES. Also in 2021 lower that expected PSU's were achieved at sea due to the continued suspension of the Catch Sampling programme and the inability to send observers to sea on commercial vessels due to the Covid - 19 global pandemic.
A52: IRL | B52: 2020-2021 | C52: North Atlantic | D52: ICES | E52: All Areas | F52: Sampling on shore | G52: All | H52: Reptiles | I52: x | J52: Protocols for observation of incidental bycatch are currently in place in all sampling on shore schemes Species list will be extended to cover those applicable under Table 1D (EUMAP) and relevant databases updated | K52: 20824 | L52: 798 | M52: 798 | N52: Y | O52: N | P52: Y | Q52: Y | R52: Y | S52: Y | T52: Y | U52: Y | V52: Y | W52: Data are uploaded on an annual basis to the WGBYC bycatch database, hosted by ICES. Also in 2021 lower that expected PSU's were achieved at sea due to the continued suspension of the Catch Sampling programme and the inability to send observers to sea on commercial vessels due to the Covid - 19 global pandemic.
A53: IRL | B53: 2020-2021 | C53: North Sea and Eastern Arctic | D53: ICES | E53: All Areas | F53: Pelagic at-sea | G53: IRL NE 1, IRL N 1 | H53: Molluscs | I53: x | J53: Protocols for observation of incidental bycatch are currently in place in off shore catch observer programme, collection protocols as per WGBYC. Species list will be extended to cover those applicable under Table 1D (EUMAP) and relevant databases updated | K53: 39 | L53: 0 | M53: 0 | N53: Y | O53: N | P53: Y | Q53: Y | R53: Y | S53: Y | T53: Y | U53: Y | V53: Y | W53: Data are uploaded on an annual basis to the WGBYC bycatch database, hosted by ICES. Also in 2021 lower that expected PSU's were achieved at sea due to the continued suspension of the Catch Sampling programme and the inability to send observers to sea on commercial vessels due to the Covid - 19 global pandemic.
A54: IRL | B54: 2020-2021 | C54: North Sea and Eastern Arctic | D54: ICES | E54: All Areas | F54: Pelagic at-sea | G54: IRL NE 1, IRL N 1 | H54: Crustaceans | I54: x | J54: Protocols for observation of incidental bycatch are currently in place in off shore catch observer programme, collection protocols as per WGBYC. Species list will be extended to cover those applicable under Table 1D (EUMAP) and relevant databases updated | K54: 39 | L54: 0 | M54: 0 | N54: Y | O54: N | P54: Y | Q54: Y | R54: Y | S54: Y | T54: Y | U54: Y | V54: Y | W54: Data are uploaded on an annual basis to the WGBYC bycatch database, hosted by ICES. Also in 2021 lower that expected PSU's were achieved at sea due to the continued suspension of the Catch Sampling programme and the inability to send observers to sea on commercial vessels due to the Covid - 19 global pandemic.
A55: IRL | B55: 2020-2021 | C55: North Sea and Eastern Arctic | D55: ICES | E55: All Areas | F55: Sampling on shore | G55: All | H55: Reptiles | I55: Zero | J55: Protocols for observation of incidental bycatch are currently in place in all sampling on shore schemes Species list will be extended to cover those applicable under Table 1D (EUMAP) and relevant databases updated | K55: 30 | L55: 13 | M55: 13 | N55: Y | O55: N | P55: Y | Q55: Y | R55: Y | S55: Y | T55: Y | U55: Y | V55: Y | W55: Data are uploaded on an annual basis to the WGBYC bycatch database, hosted by ICES. Also in 2021 lower that expected PSU's were achieved at sea due to the continued suspension of the Catch Sampling programme and the inability to send observers to sea on commercial vessels due to the Covid - 19 global pandemic.

Sheet Table1G List of research survey
A1: Table 1G: List of research surveys at sea
Z2: WP years | AA2: 2021
Z3: AR year | AA3: 2021
A4: MS | B4: Name of survey | C4: Acronym | D4: Mandatory (Y/N) | E4: Threshold (Y/N) | F4: Agreed at RCG level | G4: MS participation | H4: Area(s) covered | I4: Period (Month) | J4: Frequency | K4: Days at sea planned | L4: Type of sampling activities | M4: Planned target | N4: Map | O4: Relevant international planning group - RFMO/RFO/IO | P4: International database | Q4: Comments | R4: Type of MS participation | S4: In case of financial participation, is payment done? (Y/N) | T4: Days at sea achieved | U4: Achieved target | V4: Other data assimilations (Y/N) | W4: Was the survey carried out within the official time period? (Y/N) | X4: Was the survey carried out within the official survey area? (Y/N) | Y4: Indication if AR comments by MS are required concerning effort achieved | Z4: Indication if AR comments by MS are required concerning temporal and spatial coverage | AA4: AR Comments
A5: IRL | B5: International Ecosystem Survey in the Nordic Seas | C5: ASH | D5: Y | E5: N | F5: Y | G5: C | H5: II a | I5: May | J5: Annual | L5: Acoustic Tracks | Q5: See other MS for full description of this survey, IRL participtates by sending personnell and cost sharing as per RCM 2016 agreement | R5: F | S5: Y | W5: Y | X5: Y | AA5: Please see the Danish DCF Annual Report for Survey details. No physical participation by an Irish scientist was possible in 2021 due to the Covid - 19 global pandemic.
A6: IRL | B6: Western IBTS 4th quarter(including Porcupine survey) | C6: IBTS Q4 | D6: Y | E6: N | F6: Y | G6: C | H6: VIaS, VIIb, VIIg, VIIj | I6: 4th Quarter | J6: Annual | K6: 47 | L6: Fishing Hauls | M6: 170 | N6: Fig 1 | O6: WGIBTS | P6: DATRAS | R6: T | S6: NA | T6: 47 | U6: 126 | V6: Y | W6: Y | X6: Y | Y6: X | AA6: in 2021 it was not possible to achieve all targets due to adverse weather downtime, however, spatial and temporal coverage was achieved, albeit with a slightly lower density of stations per stratum.
A7: IRL | B7: Western IBTS 4th quarter(including Porcupine survey) | C7: IBTS Q4 | D7: Y | E7: N | F7: Y | G7: C | H7: VIaS, VIIb, VIIg, VIIj | I7: 4th Quarter | J7: Annual | L7: CTD | M7: 170 | R7: T | S7: NA | T7: 47 | U7: 126 | V7: Y | W7: Y | X7: Y | Y7: X | AA7: Refer to comment above
A8: IRL | B8: Western IBTS 4th quarter(including Porcupine survey) | C8: IBTS Q4 | D8: Y | E8: N | F8: Y | G8: C | H8: VIaS, VIIb, VIIg, VIIj | I8: 4th Quarter | J8: Annual | L8: Litter | M8: 170 | R8: T | S8: NA | T8: 47 | U8: 126 | V8: Y | W8: Y | X8: Y | Y8: X | AA8: Refer to comment above
A9: IRL | B9: Blue whiting survey | D9: Y | E9: N | F9: Y | G9: C | H9: VI VII | I9: 1st and 2nd Quarter | J9: Annual | K9: 20 | L9: Acoustic miles | M9: 1800 | N9: Fig 2 | O9: WGIPS | P9: PGNAPES/ICES acoustic Data Base | Q9: International data exchange between IRL, FO, NO, RU, NL, NO No acronym in Table 10 Takes place in VIIk, VIIc, Vib Acoustic miles reduced from 2000, fishing hauls from 12 and CTD from 25 due to modified survey track | R9: T | S9: NA | T9: 20 | U9: 2123 | V9: N | W9: N | X9: N
A10: IRL | B10: Blue whiting survey | D10: Y | E10: N | F10: Y | G10: C | H10: VI VII | I10: 1st and 2nd Quarter | J10: Annual | L10: Fishing Hauls | M10: 10 | R10: T | S10: NA | T10: 20 | U10: 15 | V10: N | W10: N | X10: N
A11: IRL | B11: Blue whiting survey | D11: Y | E11: N | F11: Y | G11: C | H11: VI VII | I11: 1st and 2nd Quarter | J11: Annual | L11: CTD | M11: 20 | R11: T | S11: NA | T11: 20 | U11: 19 | V11: N | W11: N | X11: N
A12: IRL | B12: International Mackerel and Horse Mackerel Egg Survey ( Triennial) | C12: MEGS | D12: Y | E12: N | F12: Y | G12: C | H12: VI, VII, VIII, | I12: Jan-July | J12: Triennial | K12: 40 | L12: Plankton hauls | M12: 240 | N12: Fig 3 | O12: WGMEGS | P12: ICES egg and larval database | Q12: Year of next survey 2022 | R12: T | S12: NA | T12: 20 | U12: 253 | V12: Y | W12: Y | X12: Y | AA12: Survey taking place in 2022 (March and June)
A13: IRL | B13: International mackerel and horse mackerel egg survey | C13: MEGS | D13: Y | E13: N | F13: Y | G13: C | H13: VI, VII, VIII, | I13: Jan-July | J13: Triennial | L13: Fishing hauls | M13: 10 | R13: T | S13: NA | T13: 20 | U13: 7 | V13: Y | W13: Y | X13: Y | AA13: Survey taking place in 2022 (March and June)
A14: IRL | B14: Spawning/Pre spawning Herring/Boarfish acoustic survey | D14: Y | E14: N | F14: Y | G14: C | H14: VIa, VIIa-g | I14: July,Sept,Nov,Mar,Jan | J14: Annual | K14: 40 | L14: Acoustic miles | M14: 5000 | N14: Fig 4 | O14: WGIPS | P14: ICES Acoustic DB | Q14: This survey split in to two componennt :WESPAS Spawning/Boarfish component of the survey taking place in VIIh, VIIj, VIIk,VIIg, VIIc, VIIb, VIa Acoustic miles reduced from 2500, fishing hauls from 20 and CTD from 25 due to modified survey track | R14: T | S14: NA | T14: 40 | U14: 4986 | V14: Y | W14: Y | X14: Y
A15: IRL | B15: Spawning/Pre spawning Herring/Boarfish acoustic survey | D15: Y | E15: N | F15: Y | G15: C | H15: VIa, VIIa-g | I15: July,Sept,Nov,Mar,Jan | J15: Annual | L15: Fishing Hauls | M15: 30 | R15: T | S15: NA | T15: 40 | U15: 65 | V15: Y | W15: Y | X15: Y | Y15: X | AA15: Increased trawling capacity achieved due to favourable weather conditions
A16: IRL | B16: Spawning/Pre spawning Herring/Boarfish acoustic survey | D16: Y | E16: N | F16: Y | G16: C | H16: VIa, VIIa-g | I16: July,Sept,Nov,Mar,Jan | J16: Annual | L16: CTD | M16: 60 | R16: T | S16: NA | T16: 40 | U16: 60 | V16: Y | W16: Y | X16: Y
A17: IRL | B17: Spawning/Pre spawning Herring/Boarfish acoustic survey | D17: Y | E17: N | F17: Y | G17: C | H17: VIa, VIIa-g | I17: July,Sept,Nov,Mar,Jan | J17: Annual | K17: 20 | L17: Acoustic miles | M17: 2000 | N17: Fig 5 | O17: WGIPS | P17: ICES Acoustic DB | Q17: 2nd Component : CSHAS Pre spawning compenent of the survey taking place in VIIg, VIIj, VIIaS | R17: T | S17: NA | T17: 20 | U17: 2780 | V17: Y | W17: Y | X17: Y | Y17: X | AA17: In total the core surveys accounted for 1,989 nmi of transects covering an area of over 14,000 nmi² . Six adaptive surveys were carried out (four inshore and two offshore) and accounted for 791 nmi of transects and an area coverage of 2,191 nmi² The increase in adaptive survey effort was achieved due to good weather conditions.
A18: IRL | B18: Spawning/Pre spawning Herring/Boarfish acoustic survey | D18: Y | E18: N | F18: Y | G18: C | H18: VIa, VIIa-g | I18: July,Sept,Nov,Mar,Jan | J18: Annual | L18: Fishing Hauls | M18: 10 | R18: T | S18: NA | T18: 20 | U18: 27 | V18: Y | W18: Y | X18: Y | Y18: X | AA18: Increased trawling capacity achieved due to favourable weather conditions
A19: IRL | B19: Spawning/Pre spawning Herring/Boarfish acoustic survey | D19: Y | E19: N | F19: Y | G19: C | H19: VIa, VIIa-g | I19: July,Sept,Nov,Mar,Jan | J19: Annual | L19: CTD | M19: 20 | R19: T | S19: NA | T19: 20 | U19: 43 | V19: Y | W19: Y | X19: Y | Y19: X | AA19: Increased CTD sampling achieved due to favourable weather conditions
A20: IRL | B20: Nephrops UWTV Irish Sea | C20: UWTV (FU15) | D20: Y | E20: N | F20: Y | G20: T | H20: VIIa | I20: June | J20: Annual | K20: 32 | L20: TV tracks & CTD | M20: 280 | N20: Fig 6 | O20: ICES WGNEPS | P20: Under development | Q20: Actual areas covered by UWTV are (FU16, 17, 19, 20-21 & 22 in ICES Areas VIIb,c,g,h,j,k ) Ireland collaborates with France and the UK by sharing personnel across this and other UWTV surveys in FU 14, 15 and 23. See text file and link on the rearranging/renaming etc of this survey | R20: T | S20: NA | T20: 32 | U20: 296 | V20: Y | W20: Y | X20: Y | Y20: X | AA20: Extended comment on survey adaptation to Covid - 19 available in Text Box 1G: List of research surveys at sea, under the relevant UWTV Survey section.
A21: IRL | B21: Nephrops UWTV survey Aran Grounds | C21: UWTV (FU17) | D21: Y | E21: N | F21: Y | G21: C | H21: VIIb | R21: T | S21: NA | T21: 32 | U21: 296 | V21: Y | W21: Y | X21: Y | Y21: X
A22: IRL | B22: Nephrops UWTV survey Celtic Sea | C22: UWTV (FU20-22) | D22: Y | E22: N | F22: Y | G22: C | H22: VIIg,h,j | R22: T | S22: NA | T22: 32 | U22: 296 | V22: Y | W22: Y | X22: Y | Y22: X
A23: IRL | B23: Nephrops UWTV survey Celtic Sea | C23: UWTV (FU20-22) | D23: Y | E23: N | F23: Y | G23: C | H23: VIIg,h,j | I23: July | J23: Annual | L23: Trawl mark observations | R23: T | S23: NA | T23: 32 | U23: 296 | V23: Y | W23: Y | X23: Y | Y23: X
A24: IRL | B24: Nephrops UWTV survey Celtic Sea | C24: UWTV (FU20-22) | D24: Y | E24: N | F24: Y | G24: C | H24: VIIg,h,j | I24: July | J24: Annual | L24: Sea pen observations | R24: T | S24: NA | T24: 32 | U24: 296 | V24: Y | W24: Y | X24: Y | Y24: X
A25: IRL | B25: Irish Anglerfish and Megrim Survey | C25: IAMS | D25: N | E25: N | F25: N | G25: C | H25: VIa and VII | I25: Jan-Mar | J25: Annual | K25: 32 | L25: Fishing hauls (trawl) | M25: 115 | N25: Fig 7 | O25: ICES WGBIE & WGCSE | Q25: See Word file for detail of this survey. Survey Commenced in 2016 EMFF funding used under UP3 data collection scheme | R25: T | S25: NA | T25: 29 | U25: 80 | V25: Y | W25: Y | X25: Y | Y25: X | AA25: As a result of Covid-19 restrictions on staff numbers, due to the need for single cabin occupancy, fishing operations were reduced from 24 to 12 hours per day. This meant that the maximum number of stations achievable was approximately four per fishing day. The target number of stations for area 7bcjk was 65 stations and for area 6a it was 40 stations with an additional 10 deep water stations and 8 Marine Scotland stations. In addition 3 days were lost due to bad weather and there were two tows with substantial damage to gear on leg three which took 16 hours to mend, whcih resulted in additional lost time.
A26: IRL | B26: Irish Anglerfish and Megrim Survey | C26: IAMS | D26: N | E26: N | F26: N | G26: C | H26: VIa and VII | I26: Jan-Mar | J26: Annual | L26: CTD | M26: 115 | O26: ICES WGBIE & WGCSE | R26: T | S26: NA | T26: 29 | U26: 80 | V26: Y | W26: Y | X26: Y | Y26: X | AA26: Refer to the comment above
A27: IRL | B27: Irish Anglerfish and Megrim Survey | C27: IAMS | D27: N | E27: N | F27: N | G27: C | H27: VIa and VII | I27: Jan-Mar | J27: Annual | L27: Litter | M27: 115 | O27: ICES WGBIE & WGCSE | R27: T | S27: NA | T27: 29 | U27: 80 | V27: Y | W27: Y | X27: Y | Y27: X | AA27: Refer to the comment above
A28: IRL | B28: Razor clam irish sea | C28: RCIS | D28: N | E28: N | F28: N | G28: N | H28: VIIa | I28: June | J28: Annual | K28: 10 | L28: Fish haul | M28: 200 | N28: Fig 8,9 | O28: None | P28: None | Q28: See Word file Survey time series from 2016 | R28: T | S28: NA | T28: 20 | U28: 868 | V28: N | W28: Y | X28: Y | Y28: x | AA28: 800 sampling stations are set annually for the North Irish Sea survey each year with a further 100 stations in the South Irish Sea survey. 96% of targets were achieved. The planned target of 200 stations and 10 days in the NWP are an error. The correct targets are 20 days and 900 statioons.
A29: IRL | B29: Razor clam west Ireland | C29: RCWI | D29: N | E29: N | F29: N | G29: N | H29: VIIj | I29: Mar | J29: Annual | K29: 10 | L29: Fish haul | M29: 200 | N29: No map | O29: None | P29: None | Q29: See Word file Survey time series from 2016 | R29: T | S29: NA | T29: 0 | U29: 0 | V29: N | W29: N | X29: N | Y29: x | Z29: x | AA29: Most fisheries did not open so sampling was not required and spatial coverage was thus reduced. Covid restrictions also impacted on surveying some areas.
A30: IRL | B30: Scallop Inshore | C30: SIS | D30: N | E30: N | F30: N | G30: N | H30: VIIb | I30: May | J30: Annual | K30: 6 | L30: Fish haul | M30: 90 | N30: No map | O30: ICES | P30: None | Q30: See Word file Survey time series from 2011 | R30: T | S30: NA | T30: 3 | U30: 87 | V30: N | W30: N | X30: Y | Y30: x | Z30: x | AA30: Inshore Scallop surveys were undertaken in two scallop beds off the west coast in 2021. Inshore Scallop surveys were not undertaken in other areas as the total fishery outtake since the previous survey was very low.
A31: IRL | B31: Cockle Irish Sea | C31: CNIS | D31: N | E31: N | F31: N | G31: N | H31: VIIa | I31: June,Nov | J31: Bi-annual | K31: 6 | L31: Quadrat and core | M31: 400 | N31: Fig 10 | O31: None | P31: None | Q31: See Word file Survey time series from 2007 | R31: T | S31: NA | T31: 6 | U31: 400 | V31: N | W31: Y | X31: Y
A32: IRL | B32: Oyster west Ireland | C32: OWI | D32: N | E32: N | F32: N | G32: N | H32: VIIb VIIj Via | I32: Sep-Dec | J32: Annual | K32: 6 | L32: Fish haul | M32: 120 | N32: No map | O32: None | P32: None | Q32: OSPAR species. See word file Survey time series from 2011 | R32: T | S32: NA | T32: 12 | U32: 536 | V32: Y | W32: Y | X32: Y | Y32: x | Z32: x | AA32: By-catch data was assimilated. Some surveys were expanded to investigate the full extent of current oyster beds and extra surveys were undertaken thus the achieved numbers of days and stations are higher than planned.

Sheet Table1H Research survey data
A1: Table 1H: Research survey data collection and dissemination
L2: WP years | M2: 2021
L3: AR year | M3: 2021
A4: MS | B4: Name of survey | C4: Acronym | D4: Type of data collected | E4: Core/ Additional variable | F4: Used as basis for advice (Y/N) | G4: Comments | H4: Was the sampling carried out? (Y/N/P) | I4: Relevant International database | J4: Was the data uploaded to the relevant database? (Y/N) | K4: Other data assimilations? (Y/N) | L4: Indication if AR comments are required by MS | M4: AR comments
A5: IRL | B5: International Mackerel and Horse Mackerel Egg Survey ( Triennial) | C5: MEGS | D5: Mackerel biological data VI, VII, VIII, | E5: C | F5: Y | G5: Next MEGS survey not until 2022 | I5: ICES egg and larval database | L5: =IF(OR(H5="Y",H5=""),"","x") ->  | M5: Triennial MEGS Survey scheduled for March and June 2022
A6: IRL | B6: International Mackerel and Horse Mackerel Egg Survey ( Triennial) | C6: MEGS | D6: Horse mackerel biological data, VIa, VIIa-c, e-k, VIIIabde | E6: C | F6: Y | I6: ICES egg and larval database | L6: =IF(OR(H6="Y",H6=""),"","x") -> 
A7: IRL | B7: International Mackerel and Horse Mackerel Egg Survey ( Triennial) | C7: MEGS | D7: Horse mackerel biological data, VIa, VIIa-c, e-k, VIIIabde | E7: C | F7: Y | I7: ICES egg and larval database
A8: IRL | B8: International Mackerel and Horse Mackerel Egg Survey ( Triennial) | C8: MEGS | D8: Mackerel egg production VI, VII, VIII, | E8: C | F8: Y | I8: ICES egg and larval database
A9: IRL | B9: International Mackerel and Horse Mackerel Egg Survey ( Triennial) | C9: MEGS | D9: Horse mackerel egg production VIa, VIIa-c, e-k, VIIIabde | E9: C | F9: Y | I9: ICES egg and larval database
A10: IRL | B10: International Mackerel and Horse Mackerel Egg Survey ( Triennial) | C10: MEGS | D10: CTD by Haul | E10: A | F10: N
A11: IRL | B11: International Mackerel and Horse Mackerel Egg Survey ( Triennial) | C11: MEGS | D11: Marine Mammal observations | E11: A | F11: N
A12: IRL | B12: Western IBTS 4th quarter(including Porcupine survey) | C12: IBTS-Q4 | D12: Standardized relative indices of abundance at age for assessment: Whiting VIIe-k, Haddock VIIb-k, Cod VIIe-k, Cod VIa, Megrim VI, PlaiceVIIbc,VIIh-k Clupea harengus VI VII, Trachurus trachurus VI VII, Scomber scrombrus VI VII | E12: C | F12: Y | H12: Y | I12: DATRAS | J12: Y | K12: N
A13: IRL | B13: Western IBTS 4th quarter(including Porcupine survey) | C13: IBTS-Q4 | D13: Standardized relative indices of numbers at length for assessment: Lophius piscatorious [sic] IV, VI Lophius piscatorious [sic] VIIb-k, VIIIabd Lophius budegassa VIIb-k, VIIIabd Lepidorhombus whiffiagonis,VI Lepidorhombus whiffiagonis, VII, VIIIabd Lepidorhombus boscii, VII, VIIIabd (not in annex) Merluccius merluccius VI, VII | E13: C | F13: Y | H13: Y | I13: DATRAS | J13: Y | K13: N
A14: IRL | B14: Western IBTS 4th quarter(including Porcupine survey) | C14: IBTS-Q4 | D14: Standardized relative indices of total No and total biomass for elasmobranch assessment:Dipturus spp. VI and VII (includes D. batis, flossada, intermedia and oxyrhincus and nidarosiensis), Cuckoo ray – VI and VII, Blonde ray VI, Blonde ray VIIafg, Thornback ray VIIafg, Thornback ray VI, Spotted ray VIIa,e-h, Spotted ray VI,VIIbj, Leucoraja fullonica VI and VII, Leucoraja circularis VI and VII, Raja microocellata VIIfg, Raja undulata VIIbj, Spurdog VI and VII | E14: C | F14: Y | H14: Y | I14: DATRAS | J14: Y | K14: N
A15: IRL | B15: Western IBTS 4th quarter(including Porcupine survey) | C15: IBTS-Q4 | D15: Standardized relative indices of total No and total biomass for cephalopod assessment: Eledone Cirrhosa Illex Coindetti Loligo (Alloteuthis) Subulata Loligo Forbesi Octopus vulgaris Rossia macrosoma Sepia elegans Sepia officinalis Sepiola atlantica Todarodes Sagittatus Todaropsis eblane | E15: C | F15: Y | H15: Y | I15: DATRAS | J15: Y | K15: N
A16: IRL | B16: Western IBTS 4th quarter(including Porcupine survey) | C16: IBTS-Q4 | D16: Biological data for stocks: age, length, sex and maturity for Chelidonichthys (aspitrigla) cuculus**, Clupea harengus, Conger conger**, Dicentrarchus labrax, Gadus morhua, Glyptocephalus cynoglossus**, Lepidorhombus whiffiagonis, Leucoraja naevus*, Lophius budegassa, Lophius piscatorius, Melanogrammus aeglefinus, Merlangius merlangus, Merluccius merluccius, Micromesistius poutassou, Microstomus kitt, Molva molva, Pleuronectes platessa, Pollachius pollachius**, Pollachius virens, Raja brachyura*, Raja clavata*, Raja montagui*, Scomber scombrus, Scophthalmus maximus (psetta maxima)**, Scophthalmus rhombus**, Solea solea, Squalus acanthias*, Trachurus trachurus, Zeus faber** [* indicates no otoliths taken for age, ** indicates individual length and weight data only, no sex/maturity dissection if alive] | E16: C | F16: Y | H16: Y | I16: DATRAS | J16: Y | K16: N
A17: IRL | B17: Western IBTS 4th quarter(including Porcupine survey) | C17: IBTS-Q4 | D17: Nephrops VII ( functional Unit) Length weight sex maturity | E17: C | F17: Y | H17: Y | I17: No existing database | J17: Y | K17: N
A18: IRL | B18: Western IBTS 4th quarter(including Porcupine survey) | C18: IBTS-Q4 | D18: CTD by Haul | E18: A | F18: N | G18: CTD data goes to EUROGOOS. | H18: Y | I18: EuroGOOS ROOS regional data portals | J18: Y | K18: N
A19: IRL | B19: Western IBTS 4th quarter(including Porcupine survey) | C19: IBTS-Q4 | D19: Litter by haul | E19: A | F19: N | H19: Y | I19: DATRAS | J19: Y | K19: N
A20: IRL | B20: Western IBTS 4th quarter(including Porcupine survey) | C20: IBTS-Q4 | D20: Benthos in the Haul | E20: A | F20: N | H20: Y | I20: EmodNet | J20: Y | K20: Y | M20: www.biodiversityireland.ie
A21: IRL | B21: Western IBTS 4th quarter(including Porcupine survey) | C21: IBTS-Q4 | D21: Annually all Seapens sent to London museum for Population genetics; all sepeolids sent to Belgian Museum for ID and catalog of distribution; pollan/smelt/shad etc migratory spp sent to IFI for catalog. Periodic multibeam data goes to INFOMAR. | E21: A | F21: N | H21: Y | I21: No existing international database | J21: Y | K21: N
A22: IRL | B22: Nephrops UWTV survey Celtic Sea | C22: UWTV (FU16, 17, 19, 20-21 & 22) | D22: Absolute abundance estimates Nephrops Area VII functional unit | E22: C | F22: Y | G22: Data grouped for the three Irish Surveys | H22: Y | I22: Under development | J22: Y | K22: N
A23: IRL | B23: Nephrops UWTV survey Celtic Sea | C23: UWTV (FU16, 17, 19, 20-21 & 22) | D23: CTD by station | E23: A | F23: N | H23: Y | I23: N | J23: Y | K23: N
A24: IRL | B24: Nephrops UWTV survey Celtic Sea | C24: UWTV (FU16, 17, 19, 20-21 & 22) | D24: Trawl marks by station | E24: A | F24: N | H24: Y | I24: N | J24: Y | K24: N
A25: IRL | B25: Nephrops UWTV survey Celtic Sea | C25: UWTV (FU16, 17, 19, 20-21 & 22) | D25: Sea pen abundance by station | E25: A | F25: N | H25: Y | I25: N | J25: Y | K25: Y | M25: Seapen data provided to ICES/NAFO Joint Working Group on Deep-water Ecology (WGDEC)
A26: IRL | B26: Nephrops UWTV survey Celtic Sea | C26: UWTV (FU 17, 22) | D26: Nephrops VII ( functional Unit) Length weight sex maturity if trawling occurs | E26: A | F26: N | H26: N | I26: N | J26: N | K26: N | L26: X | M26: Due to the COVID 19 global pandemic there were reduced staff numbers at sea on UWTV surveys in 2021. This resulted in trawling operations being dropped from the survey plan. However, trawling operations are not a priority on UWTV surveys.
A27: IRL | B27: Blue whiting survey | D27: Multi frequency acoustic data | E27: C | F27: Y | H27: N | I27: ICES Acoustic Database | J27: N | K27: N
A28: IRL | B28: Blue whiting survey | D28: Biological data -blue whiting (Div V, VI, VII) | E28: C | F28: Y | H28: N | I28: ICES Acoustic Database | J28: N | K28: N
A29: IRL | B29: Blue whiting survey | D29: CTD (vertical, dedicated station) | E29: C | F29: N | H29: N | I29: ICES Oceanographic Database | J29: N | K29: N
A30: IRL | B30: Blue whiting survey | D30: Marine mammal observations | E30: A | F30: N | H30: N | I30: N | J30: N | K30: N
A31: IRL | B31: Blue whiting survey | D31: Seabird observations | E31: A | F31: N | H31: N | I31: N | J31: N | K31: N
A32: IRL | B32: Spawning/Pre spawning Herring/Boarfish acoustic survey | D32: Multi frequency acoustic data | E32: C | F32: Y | G32: Spawning Herring and boarfish component WESPAS | H32: Y | I32: ICES Acoustic Database | J32: Y | K32: N | L32: =IF(OR(H32="Y",H32=""),"","X") -> 
A33: IRL | B33: Spawning/Pre spawning Herring/Boarfish acoustic survey | D33: Biological data -herring (Div VIa, VIIb,c) | E33: C | F33: Y | G33: Spawning Herring and boarfish component WESPAS | H33: Y | I33: ICES Acoustic Database | J33: Y | K33: N
A34: IRL | B34: Spawning/Pre spawning Herring/Boarfish acoustic survey | D34: Biological data -boarfish (Div VIa, VIIb,c, j, g, h) | E34: C | F34: Y | G34: Spawning Herring and boarfish component WESPAS | H34: Y | I34: ICES Acoustic Database | J34: Y | K34: N
A35: IRL | B35: Spawning/Pre spawning Herring/Boarfish acoustic survey | D35: Biological data -horse mackerel (Div VIa, VIIb,c, j, g, h) | E35: A | F35: N | G35: Spawning Herring and boarfish component WESPAS | H35: Y | I35: ICES Acoustic Database | J35: Y | K35: N
A36: IRL | B36: Spawning/Pre spawning Herring/Boarfish acoustic survey | D36: CTD (vertical, dedicated station) | E36: C | F36: N | G36: Spawning Herring and boarfish component WESPAS | H36: Y | I36: ICES Oceanographic Database | J36: Y | K36: N
A37: IRL | B37: Spawning/Pre spawning Herring/Boarfish acoustic survey | D37: Marine mammal observations | E37: A | F37: N | G37: Spawning Herring and boarfish component WESPAS | H37: Y | I37: N | J37: N | K37: N
A38: IRL | B38: Spawning/Pre spawning Herring/Boarfish acoustic survey | D38: Seabird observations | E38: A | F38: N | G38: Spawning Herring and boarfish component WESPAS | H38: Y | I38: N | J38: N | K38: N
A39: IRL | B39: Spawning/Pre spawning Herring/Boarfish acoustic survey | D39: Zooplankton sampling | E39: A | F39: N | G39: Spawning Herring and boarfish component WESPAS | H39: Y | I39: N | J39: N | K39: N
A40: IRL | B40: Spawning/Pre spawning Herring/Boarfish acoustic survey | D40: Multi frequency acoustic data | E40: C | F40: Y | G40: Pre spawning Herring component CSHAS | H40: Y | I40: ICES Acoustic Database | J40: Y | K40: N
A41: IRL | B41: Spawning/Pre spawning Herring/Boarfish acoustic survey | D41: Biological data -herring (VIIg,j,VIIa ) | E41: C | F41: Y | G41: Pre spawning Herring component CSHAS | H41: Y | I41: ICES Acoustic Database | J41: Y | K41: N
A42: IRL | B42: Spawning/Pre spawning Herring/Boarfish acoustic survey | D42: Biological data -sprat (VIIg,j,VIIa ) | E42: C | F42: N | G42: Pre spawning Herring component CSHAS | H42: Y | I42: ICES Acoustic Database | J42: Y | K42: N
A43: IRL | B43: Spawning/Pre spawning Herring/Boarfish acoustic survey | D43: CTD (vertical, dedicated station) | E43: C | F43: N | G43: Pre spawning Herring component CSHAS | H43: Y | I43: ICES Oceanographic Database | J43: Y | K43: N
A44: IRL | B44: Spawning/Pre spawning Herring/Boarfish acoustic survey | D44: Marine mammal observations | E44: A | F44: N | G44: Pre spawning Herring component CSHAS | H44: Y | I44: N | J44: N | K44: N
A45: IRL | B45: Spawning/Pre spawning Herring/Boarfish acoustic survey | D45: Seabird observations | E45: A | F45: N | G45: Pre spawning Herring component CSHAS | H45: Y | I45: N | J45: N | K45: N | L45: =IF(OR(H45="Y",H45=""),"","X") -> 
A46: IRL | B46: Irish Anglerfish and Megrim Survey | C46: IAMS | D46: Relative index of abundance trawl data: Lophius piscatorious [sic] IV, VI Lophius piscatorious [sic] VIIb-k, VIIIabd Lophius budegassa VIIb-k, VIIIabd Lepidorhombus whiffiagonis,VI Lepidorhombus whiffiagonis, VII, VIIIabd Lepidorhombus boscii, VII, VIIIabd (not in annex | E46: C | F46: Y | G46: Target Stocks | I46: DATRAS | J46: Y | K46: N
A47: IRL | B47: Irish Anglerfish and Megrim Survey | C47: IAMS | D47: Biological data( L,W, S, M) on any demersal stocks that occur in VI and VII | E47: C | F47: Y | G47: Additional Stocks | I47: DATRAS | J47: Y | K47: N
A48: IRL | B48: Irish Anglerfish and Megrim Survey | C48: IAMS | D48: CTD by Haul | E48: A | F48: N | G48: From 2017 | I48: EuroGOOS ROOS regional data portals | J48: Y | K48: N
A49: IRL | B49: Irish Anglerfish and Megrim Survey | C49: IAMS | D49: Litter by haul | E49: A | F49: N | G49: From 2017 | I49: DATRAS | J49: Y | K49: N
A50: IRL | B50: Razor clam Irish sea | C50: RCIS | D50: Abundance, biological data for clams VIIa | E50: C | F50: Y | H50: Y | I50: NA | J50: Y | M50: Data uploaded the the Marine Institute Inshore Database.
A51: IRL | B51: Razor clam Irish sea | C51: RCIS | D51: Abundance of non target species | E51: A | F51: Y | H51: Y | I51: NA | J51: Y | M51: Data uploaded the the Marine Institute Inshore Database.
A52: IRL | B52: Razor clam west coast | C52: RCWC | D52: Abundance, biological data for clams VIIb | E52: C | F52: Y | H52: N | I52: NA | J52: N | L52: X | M52: Most fisheries did not open so sampling was not required and spatial coverage was thus reduced. Covid restrictions also impacted on surveying some areas.
A53: IRL | B53: Razor clam west coast | C53: RCWC | D53: Abundance of non target species | E53: A | F53: Y | H53: N | I53: NA | J53: N | L53: X | M53: Most fisheries did not open so sampling was not required and spatial coverage was thus reduced. Covid restrictions also impacted on surveying some areas.
A54: IRL | B54: Oyster west coast | C54: OWC | D54: Abundance, biological data for oysters VIIb | E54: C | F54: Y | H54: Y | I54: NA | J54: Y | M54: Data uploaded the the Marine Institute Inshore Database. Some surveys were expanded to investigate the full extent of current oyster beds and extra surveys were undertaken thus the achieved numbers of days and stations are higher than planned.
A55: IRL | B55: Oyster west coast | C55: OWC | D55: Abundance of non target species | E55: A | F55: N | H55: Y | I55: NA | J55: Y | M55: By-catch data was assimilated.
A56: IRL | B56: Cockle Irish Sea | C56: CIS | D56: Abundance, biological data for cockles VIIa | E56: C | F56: Y | H56: Y | I56: NA | J56: Y | M56: Data uploaded the the Marine Institute Inshore Database.
A57: IRL | B57: Cockle Irish Sea | C57: CIS | D57: Abundance of non target species | E57: C | F57: Y | H57: Y | I57: NA | J57: Y | M57: Data uploaded the the Marine Institute Inshore Database.
A58: IRL | B58: Cockle Irish Sea | C58: CIS | D58: Sediment cores | E58: C | F58: Y | H58: N | I58: NA | J58: N | L58: X | M58: No sediment cores required during the 2021 survey
A59: IRL | B59: Scallop Inshore | C59: SIS | D59: Abundance, biological data for scallop VIIa, VIIg | E59: C | F59: Y | H59: Y | I59: NA | J59: Y | L59: X | M59: Inshore Scallop surveys were not undertaken in areas as the total fishery outtake since the previous survey was very low.
A60: IRL | B60: Scallop Inshore | C60: SIS | D60: Abundance of non target species | E60: A | F60: N | H60: Y | I60: NA | J60: Y

Sheet Table2A Fishing activity variab
A1: Table 2A: Fishing activity variables data collection strategy
S2: WP years | T2: 2021
S3: AR year | T3: 2021
A4: MS | B4: Supra region | C4: Region | D4: Variable Group | E4: Variable | F4: Fishing technique | G4: Length class | H4: Metiers (level 6) | I4: Data collected under control regulation appropriate for scientific use (Y/N/I) | J4: Type of data collected under control regulation used to calculate the estimates | K4: Expected coverage of data collected under control regulation (% of fishing trips) | L4: Additional data collection (Y/N) | M4: Data collection scheme | N4: Planned coverage of data collected under complementary data collection (% of fishing trips) | O4: Comments | P4: Data collected under control regulation accessible for scientific use (Y/N/I) | Q4: Data source for complementary data collection | R4: Achieved coverage of data collected under complementary data collection | S4: Response Rate (%) | T4: AR comments
A5: IRL | B5: Baltic Sea; North Sea; Eastern Arctic; NAFO; Extended North- Western waters (Ices areas V, VI and VII) and Southern Western waters | C5: North - Western waters (ICES area Vb (only Union waters), VI and VII) | D5: Capacity | E5: No. of Vessels, Gt, Kw, Vessel age | F5: all fleets | G5: all | H5: All metiers | I5: Y | J5: Vessel register | K5: 100 | L5: N | M5: NA | N5: NA | P5: Y | Q5: NA | R5: NA | S5: NA
A6: IRL | B6: Baltic Sea; North Sea; Eastern Arctic; NAFO; Extended North- Western waters (Ices areas V, VI and VII) and Southern Western waters | C6: North - Western waters (ICES area Vb (only Union waters), VI and VII) | D6: Capacity | E6: No. of Vessels, Gt, Kw, Vessel age | F6: Inactive vessels | G6: all | H6: All metiers | I6: Y | J6: Vessel register | K6: 100 | L6: N | M6: NA | N6: NA | P6: Y | Q6: NA | R6: NA | S6: NA
A7: IRL | B7: Baltic Sea; North Sea; Eastern Arctic; NAFO; Extended North- Western waters (Ices areas V, VI and VII) and Southern Western waters | C7: North - Western waters (ICES area Vb (only Union waters), VI and VII) | D7: Effort | E7: Days at sea, fishing days, Kw*fishing days, Gt*fishing days, no. of trips, no. of fishing operations, no. of nets/length, no. of hooks/lines, no. of pots/traps. | F7: all fleets | G7: 0-< 10 m | H7: All metiers | I7: Y | J7: Sales Notes/Sentinel Vessel Programme | K7: 100 | L7: Y | M7: Non-Probability Sample Survey | N7: 0.08 | P7: Y | Q7: Sales Notes/Sentinel Vessel Programme | R7: 0.08 | S7: 1
A8: IRL | B8: Baltic Sea; North Sea; Eastern Arctic; NAFO; Extended North- Western waters (Ices areas V, VI and VII) and Southern Western waters | C8: North - Western waters (ICES area Vb (only Union waters), VI and VII) | D8: Effort | E8: Days at sea, fishing days, Kw*fishing days, Gt*fishing days, no. of trips, no. of fishing operations, no. of nets/length, no. of hooks/lines, no. of pots/traps. | F8: all fleets | G8: 10-< 12 m | H8: All metiers | I8: Y | J8: Sales Notes/Sentinel Vessel Programme | K8: 100 | L8: Y | M8: Non-Probability Sample Survey | N8: 0.08 | P8: Y | Q8: Sales Notes/Sentinel Vessel Programme | R8: 0.08 | S8: 1
A9: IRL | B9: Baltic Sea; North Sea; Eastern Arctic; NAFO; Extended North- Western waters (Ices areas V, VI and VII) and Southern Western waters | C9: North - Western waters (ICES area Vb (only Union waters), VI and VII) | D9: Effort | E9: Days at sea, fishing days, Kw*fishing days, Gt*fishing days, no. of trips, no. of fishing operations, no. of nets/length, no. of hooks/lines, no. of pots/traps. | F9: all fleets | G9: 12 m or larger | H9: All metiers | I9: Y | J9: Logbook/Register/VMS | K9: 100 | L9: N | M9: NA | N9: NA | P9: Y | Q9: NA | R9: NA | S9: NA
A10: IRL | B10: Baltic Sea; North Sea; Eastern Arctic; NAFO; Extended North- Western waters (Ices areas V, VI and VII) and Southern Western waters | C10: North - Western waters (ICES area Vb (only Union waters), VI and VII) | D10: Landings | E10: Value of landings (total and per species), live weight of landings (total and per species), prices by commercial species. | F10: all fleets | G10: 0-<10m | H10: All metiers | I10: Y | J10: Sales Notes/Sentinel Vessel Programme | K10: 100 | L10: Y | M10: Non-Probability Sample Survey | N10: 0.08 | P10: Y | Q10: Sales Notes/Sentinel Vessel Programme | R10: 0.08 | S10: 1
A11: IRL | B11: Baltic Sea; North Sea; Eastern Arctic; NAFO; Extended North- Western waters (Ices areas V, VI and VII) and Southern Western waters | C11: North - Western waters (ICES area Vb (only Union waters), VI and VII) | D11: Landings | E11: Value of landings (total and per species), live weight of landings (total and per species), prices by commercial species. | F11: all fleets | G11: 8-< 12 m | H11: All metiers | I11: Y | J11: Sales Notes/Sentinel Vessel Programme | K11: 100 | L11: Y | M11: Non-Probability Sample Survey | N11: 0.08 | P11: Y | Q11: Sales Notes/Sentinel Vessel Programme | R11: 0.08 | S11: 1
A12: IRL | B12: Baltic Sea; North Sea; Eastern Arctic; NAFO; Extended North- Western waters (Ices areas V, VI and VII) and Southern Western waters | C12: North - Western waters (ICES area Vb (only Union waters), VI and VII) | D12: Landings | E12: Value of landings (total and per species), live weight of landings (total and per species), prices by commercial species. | F12: all fleets | G12: 12 m or larger | H12: All metiers | I12: Y | J12: Logbook/Register/VMS | K12: 100 | L12: N | M12: NA | N12: NA | P12: Y | Q12: NA | R12: NA | S12: NA
A13: IRL | B13: Baltic Sea; North Sea; Eastern Arctic; NAFO; Extended North- Western waters (Ices areas V, VI and VII) and Southern Western waters | C13: North Sea (ICES Areas IIIa & IV) | D13: Capacity | E13: No. of Vessels, Gt, Kw, Vessel age | F13: all fleets | G13: 40 m or larger | H13: All metiers | I13: Y | J13: Vessel register | K13: 100 | L13: N | M13: NA | N13: NA | P13: Y | Q13: NA | R13: NA | S13: NA
A14: IRL | B14: Baltic Sea; North Sea; Eastern Arctic; NAFO; Extended North- Western waters (Ices areas V, VI and VII) and Southern Western waters | C14: North Sea (ICES Areas IIIa & IV) | D14: Effort | E14: Days at sea, fishing days, Kw*fishing days, Gt*fishing days, no. of trips, no. of fishing operations, no. of nets/length, no. of hooks/lines, no. of pots/traps. | F14: all fleets | G14: 40 m or larger | H14: All metiers | I14: Y | J14: Logbook/Register/VMS | K14: 100 | L14: N | M14: NA | N14: NA | P14: Y | Q14: NA | R14: NA | S14: NA
A15: IRL | B15: Baltic Sea; North Sea; Eastern Arctic; NAFO; Extended North- Western waters (Ices areas V, VI and VII) and Southern Western waters | C15: North Sea (ICES Areas IIIa & IV) | D15: Landings | E15: Value of landings (total and per species), live weight of landings (total and per species), prices by commercial species. | F15: all fleets | G15: 40 m or larger | H15: All metiers | I15: Y | J15: Logbook/Register/VMS | K15: 100 | L15: N | M15: NA | N15: NA | P15: Y | Q15: NA | R15: NA | S15: NA

Sheet 3A Pop segment fisheries
A1: Table 3A: Population segments for collection of economic and social data for fisheries
Q2: WP years | R2: 2021
Q3: AR Year | R3: 2021
A4: MS | B4: Supra region | C4: Fishing technique | D4: Length class | E4: Cluster Name | F4: Type of variables (E/S) | G4: Variable | H4: Data Source | I4: Type of data collection scheme | J4: Frequency | K4: Planned sample rate % | L4: Comments | M4: Frame population | N4: Achieved sample number | O4: Achieved Sample Rate % | P4: Response Rate % | Q4: Achieved Sample no/Planned sample no. | R4: AR Comments
A5: IRL | B5: Baltic Sea, North Sea and Eastern Arctic, and North Atlantic | C5: Beam trawlers | D5: 18-< 24 m | E5: AREA27TBBVL2440 | F5: E | G5: Gross value of landings | H5: Logbook | I5: A - Census | J5: Annual | K5: 100 | M5: 5 | N5: =M5 -> 5 | O5: 1 | P5: 1 | Q5: 1
A6: IRL | B6: Baltic Sea, North Sea and Eastern Arctic, and North Atlantic | C6: Beam trawlers | D6: 24-< 40 m | E6: AREA27TBBVL2440 | F6: E | G6: Gross value of landings | H6: Logbook | I6: A - Census | J6: Annual | K6: 100 | M6: 9 | N6: =M6 -> 9 | O6: 1 | P6: 1 | Q6: 1
A7: IRL | B7: Baltic Sea, North Sea and Eastern Arctic, and North Atlantic | C7: Demersal trawlers and/or demersal seiners | D7: 0-< 10 m | F7: E | G7: Gross value of landings | H7: Sales Notes | I7: A - Census | J7: Annual | K7: 100 | M7: 45 | N7: 45 | O7: 1 | P7: 1 | Q7: 1
A8: IRL | B8: Baltic Sea, North Sea and Eastern Arctic, and North Atlantic | C8: Demersal trawlers and/or demersal seiners | D8: 10-< 12 m | F8: E | G8: Gross value of landings | H8: Logbook | I8: A - Census | J8: Annual | K8: 100 | M8: 12 | N8: 12 | O8: 1 | P8: 1 | Q8: 1
A9: IRL | B9: Baltic Sea, North Sea and Eastern Arctic, and North Atlantic | C9: Demersal trawlers and/or demersal seiners | D9: 12-< 18 m | F9: E | G9: Gross value of landings | H9: Logbook | I9: A - Census | J9: Annual | K9: 100 | M9: 31 | N9: 31 | O9: 1 | P9: 1 | Q9: 1
A10: IRL | B10: Baltic Sea, North Sea and Eastern Arctic, and North Atlantic | C10: Demersal trawlers and/or demersal seiners | D10: 18-< 24 m | F10: E | G10: Gross value of landings | H10: Logbook | I10: A - Census | J10: Annual | K10: 100 | M10: 58 | N10: 58 | O10: 1 | P10: 1 | Q10: 1
A11: IRL | B11: Baltic Sea, North Sea and Eastern Arctic, and North Atlantic | C11: Demersal trawlers and/or demersal seiners | D11: 24-< 40 m | F11: E | G11: Gross value of landings | H11: Logbook | I11: A - Census | J11: Annual | K11: 100 | M11: 44 | N11: 44 | O11: 1 | P11: 1 | Q11: 1
A12: IRL | B12: Baltic Sea, North Sea and Eastern Arctic, and North Atlantic | C12: Dredgers | D12: 0-< 10 m | F12: E | G12: Gross value of landings | H12: Sales Notes | I12: A - Census | J12: Annual | K12: 100 | M12: 130 | N12: 130 | O12: 1 | P12: 1 | Q12: 1
A13: IRL | B13: Baltic Sea, North Sea and Eastern Arctic, and North Atlantic | C13: Dredgers | D13: 10-< 12 m | E13: AREA27TBBVL2440 | F13: E | G13: Gross value of landings | H13: Logbook | I13: A - Census | J13: Annual | K13: 100 | M13: 31 | N13: 31 | O13: 1 | P13: 1 | Q13: 1
A14: IRL | B14: Baltic Sea, North Sea and Eastern Arctic, and North Atlantic | C14: Dredgers | D14: 12-< 18 m | E14: AREA27TBBVL2440 | F14: E | G14: Gross value of landings | H14: Logbook | I14: A - Census | J14: Annual | K14: 100 | M14: 6 | N14: 6 | O14: 1 | P14: 1 | Q14: 1
A15: IRL | B15: Baltic Sea, North Sea and Eastern Arctic, and North Atlantic | C15: Dredgers | D15: 18-< 24 m | E15: AREA27TBBVL2440 | F15: E | G15: Gross value of landings | H15: Logbook | I15: A - Census | J15: Annual | K15: 100 | M15: 2 | N15: 2 | O15: 1 | P15: 1 | Q15: 1
A16: IRL | B16: Baltic Sea, North Sea and Eastern Arctic, and North Atlantic | C16: Dredgers | D16: 24-< 40 m | E16: AREA27TBBVL2440 | F16: E | G16: Gross value of landings | H16: Logbook | I16: A - Census | J16: Annual | K16: 100 | M16: 5 | N16: 5 | O16: 1 | P16: 1 | Q16: 1
A17: IRL | B17: Baltic Sea, North Sea and Eastern Arctic, and North Atlantic | C17: Drift and/or fixed netters | D17: 0-< 10 m | F17: E | G17: Gross value of landings | H17: Sales Notes | I17: A - Census | J17: Annual | K17: 100 | M17: 192 | N17: 192 | O17: 1 | P17: 1 | Q17: 1
A18: IRL | B18: Baltic Sea, North Sea and Eastern Arctic, and North Atlantic | C18: Drift and/or fixed netters | D18: 10-< 12 m | F18: E | G18: Gross value of landings | H18: Logbook | I18: A - Census | J18: Annual | K18: 100 | M18: 10 | N18: 10 | O18: 1 | P18: 1 | Q18: 1
A19: IRL | B19: Baltic Sea, North Sea and Eastern Arctic, and North Atlantic | C19: Drift and/or fixed netters | D19: 12-< 18 m | E19: AREA27TBBVL2440 | F19: E | G19: Gross value of landings | H19: Logbook | I19: A - Census | J19: Annual | K19: 100 | L19: sample frame too low for sampling - clustered for reporting | M19: 7 | N19: 7 | O19: 1 | P19: 1 | Q19: 1 | R19: sample frame too low for sampling - clustered for reporting
A20: IRL | B20: Baltic Sea, North Sea and Eastern Arctic, and North Atlantic | C20: Drift and/or fixed netters | D20: 18-< 24 m | E20: AREA27DFNVL1824 | F20: E | G20: Gross value of landings | H20: Logbook | I20: A - Census | J20: Annual | K20: 100 | L20: sample frame too low for sampling - clustered for reporting | M20: 7 | N20: 7 | O20: 1 | P20: 1 | Q20: 1 | R20: sample frame too low for sampling - clustered for reporting
A21: IRL | B21: Baltic Sea, North Sea and Eastern Arctic, and North Atlantic | C21: Drift and/or fixed netters | D21: 24-< 40 m | E21: AREA27DFNVL1824 | F21: E | G21: Gross value of landings | H21: Logbook | I21: A - Census | J21: Annual | K21: 100 | L21: sample frame too low for sampling - clustered for reporting | M21: 1 | N21: 1 | O21: 1 | P21: 1 | Q21: 1 | R21: sample frame too low for sampling - clustered for reporting
A22: IRL | B22: Baltic Sea, North Sea and Eastern Arctic, and North Atlantic | C22: Pelagic trawlers | D22: 0-< 10 m | F22: E | G22: Gross value of landings | H22: Sales Notes | I22: A - Census | J22: Annual | K22: 100 | M22: 0 | N22: 0 | O22: 0 | P22: 0 | Q22: 0 | R22: No vessel in this segment for 2020
A23: IRL | B23: Baltic Sea, North Sea and Eastern Arctic, and North Atlantic | C23: Pelagic trawlers | D23: 10-< 12 m | E23: AREA27DFNVL1824 | F23: E | G23: Gross value of landings | H23: Logbook | I23: A - Census | J23: Annual | K23: 100 | L23: sample frame too low for sampling - clustered for reporting | M23: 5 | N23: 5 | O23: 1 | P23: 1 | Q23: 1 | R23: sample frame too low for sampling - clustered for reporting
A24: IRL | B24: Baltic Sea, North Sea and Eastern Arctic, and North Atlantic | C24: Pelagic trawlers | D24: 12-< 18 m | E24: AREA27TMVL1218 | F24: E | G24: Gross value of landings | H24: Logbook | I24: A - Census | J24: Annual | K24: 100 | L24: sample frame too low for sampling - clustered for reporting | M24: 5 | N24: 5 | O24: 1 | P24: 1 | Q24: 1
A25: IRL | B25: Baltic Sea, North Sea and Eastern Arctic, and North Atlantic | C25: Pelagic trawlers | D25: 18-< 24 m | E25: AREA27TMVL1218 | F25: E | G25: Gross value of landings | H25: Logbook | I25: A - Census | J25: Annual | K25: 100 | L25: sample frame too low for sampling - clustered for reporting | M25: 3 | N25: 3 | O25: 1 | P25: 1 | Q25: 1 | R25: sample frame too low for sampling - clustered for reporting
A26: IRL | B26: Baltic Sea, North Sea and Eastern Arctic, and North Atlantic | C26: Pelagic trawlers | D26: 24-< 40 m | E26: AREA27TMVL1218 | F26: E | G26: Gross value of landings | H26: Logbook | I26: A - Census | J26: Annual | K26: N | L26: sample frame too low for sampling - clustered for reporting | M26: 14 | N26: 14 | O26: 1 | P26: 0 | Q26: 0
A27: IRL | B27: Baltic Sea, North Sea and Eastern Arctic, and North Atlantic | C27: Pelagic trawlers | D27: 40 m or larger | F27: E | G27: Gross value of landings | H27: Logbook | I27: A - Census | J27: Annual | K27: N | L27: sample frame too low for sampling - clustered for reporting | M27: 20 | N27: 20 | O27: 1 | P27: 0 | Q27: 0
A28: IRL | B28: Baltic Sea, North Sea and Eastern Arctic, and North Atlantic | C28: Vessels using active and passive gears | D28: 10-< 12 m | F28: E | G28: Gross value of landings | H28: Logbook | I28: A - Census | J28: Annual | K28: N | M28: 0 | N28: 0 | O28: 0 | P28: 0 | Q28: 0 | R28: Not relevant for Ireland
A29: IRL | B29: Baltic Sea, North Sea and Eastern Arctic, and North Atlantic | C29: Vessels using active and passive gears | D29: 12-< 18 m | F29: E | G29: Gross value of landings | H29: Logbook | I29: A - Census | J29: Annual | K29: N | M29: 0 | N29: 0 | O29: 0 | P29: 0 | Q29: 0 | R29: Not relevant for Ireland
A30: IRL | B30: Baltic Sea, North Sea and Eastern Arctic, and North Atlantic | C30: Vessels using hooks | D30: 0-< 10 m | F30: E | G30: Gross value of landings | H30: Sales Notes | I30: A - Census | J30: Annual | K30: 100 | M30: 57 | N30: 57 | O30: 1 | P30: 1 | Q30: 1
A31: IRL | B31: Baltic Sea, North Sea and Eastern Arctic, and North Atlantic | C31: Vessels using hooks | D31: 10-< 12 m | E31: AREA27HOKVL1012 | F31: E | G31: Gross value of landings | H31: Logbook | I31: A - Census | J31: Annual | K31: 38 | L31: sample frame too low for sampling - clustered for reporting | M31: 10 | N31: 10 | O31: 1 | P31: 2.631578947 | Q31: 2.631578947 | R31: As part of the MS's new Inshore Fisheries Strategy, work has commenced to establish a comprehensive profile of the inshore sector. A complete census of the sector will be conducted in 2022 and repeated on a periodic basis (e.g. every 5 years). This census will enhance the baseline quality of inshore data for DCF/ EU MAP purposes going forward.
A32: IRL | B32: Baltic Sea, North Sea and Eastern Arctic, and North Atlantic | C32: Vessels using hooks | D32: 12-< 18 m | E32: AREA27HOKVL1012 | F32: E | G32: Gross value of landings | H32: Logbook | I32: A - Census | J32: Annual | K32: 38 | L32: sample frame too low for sampling - clustered for reporting | M32: 1 | N32: 1 | O32: 1 | P32: 2.631578947 | Q32: 2.631578947 | R32: sample frame too low for sampling - clustered for reporting
A33: IRL | B33: Baltic Sea, North Sea and Eastern Arctic, and North Atlantic | C33: Vessels using Pots and/or traps | D33: 0-< 10 m | F33: E | G33: Gross value of landings | H33: Sales Notes | I33: A - Census | J33: Annual | K33: 38 | L33: sample frame too low for sampling - clustered for reporting | M33: 577 | N33: 577 | O33: 1 | P33: 2.631578947 | Q33: 2.631578947 | R33: As part of the MS's new Inshore Fisheries Strategy, work has commenced to establish a comprehensive profile of the inshore sector. A complete census of the sector will be conducted in 2022 and repeated on a periodic basis (e.g. every 5 years). This census will enhance the baseline quality of inshore data for DCF/ EU MAP purposes going forward.
A34: IRL | B34: Baltic Sea, North Sea and Eastern Arctic, and North Atlantic | C34: Vessels using Pots and/or traps | D34: 10-< 12 m | F34: E | G34: Gross value of landings | H34: Logbook | I34: A - Census | J34: Annual | K34: 38 | L34: sample frame too low for sampling - clustered for reporting | M34: 80 | N34: 80 | O34: 1 | P34: 2.631578947 | Q34: 2.631578947
A35: IRL | B35: Baltic Sea, North Sea and Eastern Arctic, and North Atlantic | C35: Vessels using Pots and/or traps | D35: 12-< 18 m | E35: AREA27FPO1218 | F35: E | G35: Gross value of landings | H35: Logbook | I35: A - Census | J35: Annual | K35: 38 | L35: sample frame too low for sampling - clustered for reporting | M35: 21 | N35: 21 | O35: 1 | P35: 2.631578947 | Q35: 2.631578947
A36: IRL | B36: Baltic Sea, North Sea and Eastern Arctic, and North Atlantic | C36: Vessels using Pots and/or traps | D36: 24-< 40 m | E36: AREA27FPO1218 | F36: E | G36: Gross value of landings | H36: Logbook | I36: A - Census | J36: Annual | K36: 38 | L36: sample frame too low for sampling - clustered for reporting | M36: 2 | N36: 2 | O36: 1 | P36: 2.631578947 | Q36: 2.631578947
A37: IRL | B37: Baltic Sea, North Sea and Eastern Arctic, and North Atlantic | C37: All | D37: All | F37: E | G37: Income from leasing out quota or other fishing rights | H37: NA | I37: NA | J37: NA | K37: 38 | L37: sample frame too low for sampling - clustered for reporting | N37: 0 | O37: 0 | P37: 0 | Q37: 0
A38: IRL | B38: Baltic Sea, North Sea and Eastern Arctic, and North Atlantic | C38: Beam trawlers | D38: 18-< 24 m | E38: AREA27HOKVL1012 | F38: E | G38: Other Income | H38: Questionaire | I38: C - Non-Probability Sample Survey | J38: Annual | K38: 38 | L38: sample frame too low for sampling - clustered for reporting | M38: 5 | N38: 0 | O38: 0 | P38: 0 | Q38: 0
A39: IRL | B39: Baltic Sea, North Sea and Eastern Arctic, and North Atlantic | C39: Beam trawlers | D39: 24-< 40 m | E39: AREA27HOKVL1012 | F39: E | G39: Other Income | H39: Questionaire | I39: C - Non-Probability Sample Survey | J39: Annual | K39: 38 | L39: sample frame too low for sampling - clustered for reporting | M39: 9 | N39: =VLOOKUP(T39,Econ,3,FALSE) ->  | O39: 0 | P39: 0 | Q39: 0 | R39: As part of the MS's new Inshore Fisheries Strategy, work has commenced to establish a comprehensive profile of the inshore sector. A complete census of the sector will be conducted in 2022 and repeated on a periodic basis (e.g. every 5 years). This census will enhance the baseline quality of inshore data for DCF/ EU MAP purposes going forward.
A40: IRL | B40: Baltic Sea, North Sea and Eastern Arctic, and North Atlantic | C40: Demersal trawlers and/or demersal seiners | D40: 0-< 10 m | F40: E | G40: Other Income | H40: Questionaire/Sentinel Logbook | I40: C - Non-Probability Sample Survey | J40: Annual | K40: 38 | L40: sample frame too low for sampling - clustered for reporting | M40: 45 | O40: 0 | P40: 0 | Q40: 0
A41: IRL | B41: Baltic Sea, North Sea and Eastern Arctic, and North Atlantic | C41: Demersal trawlers and/or demersal seiners | D41: 10-< 12 m | F41: E | G41: Other Income | H41: Questionaire | I41: C - Non-Probability Sample Survey | J41: Annual | K41: 38 | L41: sample frame too low for sampling - clustered for reporting | M41: 12 | O41: 0 | P41: 0 | Q41: 0 | R41: As part of the MS's new Inshore Fisheries Strategy, work has commenced to establish a comprehensive profile of the inshore sector. A complete census of the sector will be conducted in 2022 and repeated on a periodic basis (e.g. every 5 years). This census will enhance the baseline quality of inshore data for DCF/ EU MAP purposes going forward.
A42: IRL | B42: Baltic Sea, North Sea and Eastern Arctic, and North Atlantic | C42: Demersal trawlers and/or demersal seiners | D42: 12-< 18 m | F42: E | G42: Other Income | H42: Questionaire | I42: C - Non-Probability Sample Survey | J42: Annual | K42: 38 | L42: sample frame too low for sampling - clustered for reporting | M42: 31 | O42: 0 | P42: 0 | Q42: 0
A43: IRL | B43: Baltic Sea, North Sea and Eastern Arctic, and North Atlantic | C43: Demersal trawlers and/or demersal seiners | D43: 18-< 24 m | F43: E | G43: Other Income | H43: Questionaire | I43: C - Non-Probability Sample Survey | J43: Annual | K43: 38 | L43: sample frame too low for sampling - clustered for reporting | M43: 58 | O43: 0 | P43: 0 | Q43: 0
A44: IRL | B44: Baltic Sea, North Sea and Eastern Arctic, and North Atlantic | C44: Demersal trawlers and/or demersal seiners | D44: 24-< 40 m | F44: E | G44: Other Income | H44: Questionaire | I44: C - Non-Probability Sample Survey | J44: Annual | K44: 38 | L44: sample frame too low for sampling - clustered for reporting | M44: 44 | O44: 0 | P44: 0 | Q44: 0
A45: IRL | B45: Baltic Sea, North Sea and Eastern Arctic, and North Atlantic | C45: Dredgers | D45: 0-< 10 m | F45: E | G45: Other Income | H45: Questionaire/Sentinel Logbook | I45: C - Non-Probability Sample Survey | J45: Annual | K45: 38 | L45: sample frame too low for sampling - clustered for reporting | M45: 130 | O45: 0 | P45: 0 | Q45: 0 | R45: As part of the MS's new Inshore Fisheries Strategy, work has commenced to establish a comprehensive profile of the inshore sector. A complete census of the sector will be conducted in 2022 and repeated on a periodic basis (e.g. every 5 years). This census will enhance the baseline quality of inshore data for DCF/ EU MAP purposes going forward.
A46: IRL | B46: Baltic Sea, North Sea and Eastern Arctic, and North Atlantic | C46: Dredgers | D46: 10-< 12 m | E46: AREA27HOKVL1012 | F46: E | G46: Other Income | H46: Questionaire | I46: C - Non-Probability Sample Survey | J46: Annual | K46: 38 | L46: sample frame too low for sampling - clustered for reporting | M46: 31 | O46: 0 | P46: 0 | Q46: 0
A47: IRL | B47: Baltic Sea, North Sea and Eastern Arctic, and North Atlantic | C47: Dredgers | D47: 12-< 18 m | E47: AREA27HOKVL1012 | F47: E | G47: Other Income | H47: Questionaire | I47: C - Non-Probability Sample Survey | J47: Annual | K47: 38 | L47: sample frame too low for sampling - clustered for reporting | M47: 6 | N47: 0 | O47: 0 | P47: 0 | Q47: 0 | R47: As part of the MS's new Inshore Fisheries Strategy, work has commenced to establish a comprehensive profile of the inshore sector. A complete census of the sector will be conducted in 2022 and repeated on a periodic basis (e.g. every 5 years). This census will enhance the baseline quality of inshore data for DCF/ EU MAP purposes going forward.
A48: IRL | B48: Baltic Sea, North Sea and Eastern Arctic, and North Atlantic | C48: Dredgers | D48: 18-< 24 m | E48: AREA27HOKVL1012 | F48: E | G48: Other Income | H48: Questionaire | I48: C - Non-Probability Sample Survey | J48: Annual | K48: 38 | L48: sample frame too low for sampling - clustered for reporting | M48: 2 | N48: 0 | O48: 0 | P48: 0 | Q48: 0
A49: IRL | B49: Baltic Sea, North Sea and Eastern Arctic, and North Atlantic | C49: Dredgers | D49: 24-< 40 m | E49: AREA27HOKVL1012 | F49: E | G49: Other Income | H49: Questionaire | I49: C - Non-Probability Sample Survey | J49: Annual | K49: 38 | L49: sample frame too low for sampling - clustered for reporting | M49: 5 | N49: =VLOOKUP(T49,Econ,3,FALSE) ->  | O49: 0 | P49: 0 | Q49: 0
A50: IRL | B50: Baltic Sea, North Sea and Eastern Arctic, and North Atlantic | C50: Drift and/or fixed netters | D50: 0-< 10 m | F50: E | G50: Other Income | H50: Questionaire/Sentinel Logbook | I50: C - Non-Probability Sample Survey | J50: Annual | K50: 38 | L50: sample frame too low for sampling - clustered for reporting | M50: 192 | N50: =VLOOKUP(T50,Econ,3,FALSE) ->  | O50: 0 | P50: 0 | Q50: 0
A51: IRL | B51: Baltic Sea, North Sea and Eastern Arctic, and North Atlantic | C51: Drift and/or fixed netters | D51: 10-< 12 m | F51: E | G51: Other Income | H51: Questionaire | I51: C - Non-Probability Sample Survey | J51: Annual | K51: 38 | L51: sample frame too low for sampling - clustered for reporting | M51: 10 | N51: =VLOOKUP(T51,Econ,3,FALSE) ->  | O51: 0 | P51: 0 | Q51: 0
A52: IRL | B52: Baltic Sea, North Sea and Eastern Arctic, and North Atlantic | C52: Drift and/or fixed netters | D52: 12-< 18 m | E52: AREA27HOKVL1012 | F52: E | G52: Other Income | H52: Questionaire | I52: C - Non-Probability Sample Survey | J52: Annual | K52: 38 | L52: sample frame too low for sampling - clustered for reporting | M52: 7 | N52: 0 | O52: 0 | P52: 0 | Q52: 0
A53: IRL | B53: Baltic Sea, North Sea and Eastern Arctic, and North Atlantic | C53: Drift and/or fixed netters | D53: 18-< 24 m | E53: AREA27HOKVL1012 | F53: E | G53: Other Income | H53: Questionaire | I53: C - Non-Probability Sample Survey | J53: Annual | K53: 38 | L53: sample frame too low for sampling - clustered for reporting | M53: 7 | N53: =VLOOKUP(T53,Econ,3,FALSE) ->  | O53: 0 | P53: 0 | Q53: 0
A54: IRL | B54: Baltic Sea, North Sea and Eastern Arctic, and North Atlantic | C54: Drift and/or fixed netters | D54: 24-< 40 m | E54: AREA27HOKVL1012 | F54: E | G54: Other Income | H54: Questionaire | I54: C - Non-Probability Sample Survey | J54: Annual | K54: 38 | L54: sample frame too low for sampling - clustered for reporting | M54: 1 | N54: 0 | O54: 0 | P54: 0 | Q54: 0
A55: IRL | B55: Baltic Sea, North Sea and Eastern Arctic, and North Atlantic | C55: Pelagic trawlers | D55: 0-< 10 m | F55: E | G55: Other Income | H55: Questionaire/Sentinel Logbook | I55: C - Non-Probability Sample Survey | J55: Annual | K55: 38 | M55: 0 | N55: 0 | O55: 0 | P55: 0 | Q55: 0 | R55: No vessel in this segment for 2020
A56: IRL | B56: Baltic Sea, North Sea and Eastern Arctic, and North Atlantic | C56: Pelagic trawlers | D56: 10-< 12 m | E56: AREA27HOKVL1012 | F56: E | G56: Other Income | H56: Questionaire | I56: C - Non-Probability Sample Survey | J56: Annual | K56: 38 | L56: sample frame too low for sampling - clustered for reporting | M56: 5 | N56: =VLOOKUP(T56,Econ,3,FALSE) ->  | O56: 0 | P56: 0 | Q56: 0 | R56: NA
A57: IRL | B57: Baltic Sea, North Sea and Eastern Arctic, and North Atlantic | C57: Pelagic trawlers | D57: 12-< 18 m | E57: AREA27HOKVL1012 | F57: E | G57: Other Income | H57: Questionaire | I57: C - Non-Probability Sample Survey | J57: Annual | K57: 38 | L57: sample frame too low for sampling - clustered for reporting | M57: 5 | N57: =VLOOKUP(T57,Econ,3,FALSE) ->  | O57: 0 | P57: 0 | Q57: 0 | R57: As part of the MS's new Inshore Fisheries Strategy, work has commenced to establish a comprehensive profile of the inshore sector. A complete census of the sector will be conducted in 2022 and repeated on a periodic basis (e.g. every 5 years). This census will enhance the baseline quality of inshore data for DCF/ EU MAP purposes going forward.
A58: IRL | B58: Baltic Sea, North Sea and Eastern Arctic, and North Atlantic | C58: Pelagic trawlers | D58: 18-< 24 m | E58: AREA27HOKVL1012 | F58: E | G58: Other Income | H58: Questionaire | I58: C - Non-Probability Sample Survey | J58: Annual | K58: 100 | L58: sample frame too low for sampling - clustered for reporting | M58: 3 | N58: 0 | O58: 0 | P58: 0 | Q58: 0
A59: IRL | B59: Baltic Sea, North Sea and Eastern Arctic, and North Atlantic | C59: Pelagic trawlers | D59: 24-< 40 m | E59: AREA27HOKVL1012 | F59: E | G59: Other Income | H59: Questionaire | I59: C - Non-Probability Sample Survey | J59: Annual | K59: 100 | L59: sample frame too low for sampling - clustered for reporting | M59: 14 | N59: =VLOOKUP(T59,Econ,3,FALSE) ->  | O59: 0 | P59: 0 | Q59: 0
A60: IRL | B60: Baltic Sea, North Sea and Eastern Arctic, and North Atlantic | C60: Pelagic trawlers | D60: 40 m or larger | F60: E | G60: Other Income | H60: Questionaire | I60: C - Non-Probability Sample Survey | J60: Annual | K60: 100 | L60: sample frame too low for sampling - clustered for reporting | M60: 20 | N60: =VLOOKUP(T60,Econ,3,FALSE) ->  | O60: 0 | P60: 0 | Q60: 0
A61: IRL | B61: Baltic Sea, North Sea and Eastern Arctic, and North Atlantic | C61: Vessels using active and passive gears | D61: 10-< 12 m | F61: E | G61: Other Income | H61: Questionaire | I61: C - Non-Probability Sample Survey | J61: Annual | K61: 100 | M61: 0 | N61: 0 | O61: 0 | P61: 0 | Q61: 0
A62: IRL | B62: Baltic Sea, North Sea and Eastern Arctic, and North Atlantic | C62: Vessels using active and passive gears | D62: 12-< 18 m | F62: E | G62: Other Income | H62: Questionaire | I62: C - Non-Probability Sample Survey | J62: Annual | K62: 100 | M62: 0 | N62: 0 | O62: 0 | P62: 0 | Q62: 0
A63: IRL | B63: Baltic Sea, North Sea and Eastern Arctic, and North Atlantic | C63: Vessels using hooks | D63: 0-< 10 m | F63: E | G63: Other Income | H63: Questionaire/Sentinel Logbook | I63: C - Non-Probability Sample Survey | J63: Annual | K63: 38 | M63: 57 | N63: =VLOOKUP(T63,Econ,3,FALSE) ->  | O63: 0 | P63: 0 | Q63: 0 | R63: As part of the MS's new Inshore Fisheries Strategy, work has commenced to establish a comprehensive profile of the inshore sector. A complete census of the sector will be conducted in 2022 and repeated on a periodic basis (e.g. every 5 years). This census will enhance the baseline quality of inshore data for DCF/ EU MAP purposes going forward.
A64: IRL | B64: Baltic Sea, North Sea and Eastern Arctic, and North Atlantic | C64: Vessels using hooks | D64: 10-< 12 m | E64: AREA27HOKVL1012 | F64: E | G64: Other Income | H64: Questionaire | I64: C - Non-Probability Sample Survey | J64: Annual | K64: 100 | L64: sample frame too low for sampling - clustered for reporting | M64: 10 | N64: =VLOOKUP(T64,Econ,3,FALSE) ->  | O64: 0 | P64: 0 | Q64: 0 | R64: As part of the MS's new Inshore Fisheries Strategy, work has commenced to establish a comprehensive profile of the inshore sector. A complete census of the sector will be conducted in 2022 and repeated on a periodic basis (e.g. every 5 years). This census will enhance the baseline quality of inshore data for DCF/ EU MAP purposes going forward.
A65: IRL | B65: Baltic Sea, North Sea and Eastern Arctic, and North Atlantic | C65: Vessels using hooks | D65: 12-< 18 m | E65: AREA27HOKVL1012 | F65: E | G65: Other Income | H65: Questionaire | I65: C - Non-Probability Sample Survey | J65: Annual | K65: 100 | L65: sample frame too low for sampling - clustered for reporting | M65: 1 | N65: 0 | O65: 0 | P65: 0 | Q65: 0 | R65: As part of the MS's new Inshore Fisheries Strategy, work has commenced to establish a comprehensive profile of the inshore sector. A complete census of the sector will be conducted in 2022 and repeated on a periodic basis (e.g. every 5 years). This census will enhance the baseline quality of inshore data for DCF/ EU MAP purposes going forward.
A66: IRL | B66: Baltic Sea, North Sea and Eastern Arctic, and North Atlantic | C66: Vessels using Pots and/or traps | D66: 0-< 10 m | F66: E | G66: Other Income | H66: Questionaire/Sentinel Logbook | I66: C - Non-Probability Sample Survey | J66: Annual | K66: 38 | L66: sample frame too low for sampling - clustered for reporting | M66: 577 | N66: =VLOOKUP(T66,Econ,3,FALSE) ->  | O66: 0 | P66: 0 | Q66: 0 | R66: As part of the MS's new Inshore Fisheries Strategy, work has commenced to establish a comprehensive profile of the inshore sector. A complete census of the sector will be conducted in 2022 and repeated on a periodic basis (e.g. every 5 years). This census will enhance the baseline quality of inshore data for DCF/ EU MAP purposes going forward.
A67: IRL | B67: Baltic Sea, North Sea and Eastern Arctic, and North Atlantic | C67: Vessels using Pots and/or traps | D67: 10-< 12 m | F67: E | G67: Other Income | H67: Questionaire | I67: C - Non-Probability Sample Survey | J67: Annual | K67: 38 | L67: sample frame too low for sampling - clustered for reporting | M67: 80 | N67: =VLOOKUP(T67,Econ,3,FALSE) ->  | O67: 0 | P67: 0 | Q67: 0 | R67: As part of the MS's new Inshore Fisheries Strategy, work has commenced to establish a comprehensive profile of the inshore sector. A complete census of the sector will be conducted in 2022 and repeated on a periodic basis (e.g. every 5 years). This census will enhance the baseline quality of inshore data for DCF/ EU MAP purposes going forward.
A68: IRL | B68: Baltic Sea, North Sea and Eastern Arctic, and North Atlantic | C68: Vessels using Pots and/or traps | D68: 12-< 18 m | E68: AREA27FPO1218 | F68: E | G68: Other Income | H68: Questionaire | I68: C - Non-Probability Sample Survey | J68: Annual | K68: 38 | L68: sample frame too low for sampling - clustered for reporting | M68: 21 | N68: =VLOOKUP(T68,Econ,3,FALSE) ->  | O68: 0 | P68: 0 | Q68: 0 | R68: As part of the MS's new Inshore Fisheries Strategy, work has commenced to establish a comprehensive profile of the inshore sector. A complete census of the sector will be conducted in 2022 and repeated on a periodic basis (e.g. every 5 years). This census will enhance the baseline quality of inshore data for DCF/ EU MAP purposes going forward.
A69: IRL | B69: Baltic Sea, North Sea and Eastern Arctic, and North Atlantic | C69: Vessels using Pots and/or traps | D69: 24-< 40 m | E69: AREA27FPO1218 | F69: E | G69: Other Income | H69: Questionaire | I69: C - Non-Probability Sample Survey | J69: Annual | K69: 38 | L69: sample frame too low for sampling - clustered for reporting | M69: 2 | N69: 0 | O69: 0 | P69: 0 | Q69: 0 | R69: As part of the MS's new Inshore Fisheries Strategy, work has commenced to establish a comprehensive profile of the inshore sector. A complete census of the sector will be conducted in 2022 and repeated on a periodic basis (e.g. every 5 years). This census will enhance the baseline quality of inshore data for DCF/ EU MAP purposes going forward.
A70: IRL | B70: Baltic Sea, North Sea and Eastern Arctic, and North Atlantic | C70: Beam trawlers | D70: 18-< 24 m | E70: AREA27HOKVL1012 | F70: E | G70: Personnel Costs | H70: Questionaire | I70: C - Non-Probability Sample Survey | J70: Annual | K70: 38 | L70: sample frame too low for sampling - clustered for reporting | M70: 5 | N70: 0 | O70: 0 | P70: 0 | Q70: 0 | R70: As part of the MS's new Inshore Fisheries Strategy, work has commenced to establish a comprehensive profile of the inshore sector. A complete census of the sector will be conducted in 2022 and repeated on a periodic basis (e.g. every 5 years). This census will enhance the baseline quality of inshore data for DCF/ EU MAP purposes going forward.
A71: IRL | B71: Baltic Sea, North Sea and Eastern Arctic, and North Atlantic | C71: Beam trawlers | D71: 24-< 40 m | E71: AREA27HOKVL1012 | F71: E | G71: Personnel Costs | H71: Questionaire | I71: C - Non-Probability Sample Survey | J71: Annual | K71: 38 | L71: sample frame too low for sampling - clustered for reporting | M71: 9 | N71: =VLOOKUP(T71,Econ,3,FALSE) ->  | O71: 0 | P71: 0 | Q71: 0 | R71: As part of the MS's new Inshore Fisheries Strategy, work has commenced to establish a comprehensive profile of the inshore sector. A complete census of the sector will be conducted in 2022 and repeated on a periodic basis (e.g. every 5 years). This census will enhance the baseline quality of inshore data for DCF/ EU MAP purposes going forward.
A72: IRL | B72: Baltic Sea, North Sea and Eastern Arctic, and North Atlantic | C72: Demersal trawlers and/or demersal seiners | D72: 0-< 10 m | F72: E | G72: Personnel Costs | H72: Questionaire/Sentinel Logbook | I72: C - Non-Probability Sample Survey | J72: Annual | K72: 38 | L72: sample frame too low for sampling - clustered for reporting | M72: 45 | O72: 0 | P72: 0 | Q72: 0 | R72: As part of the MS's new Inshore Fisheries Strategy, work has commenced to establish a comprehensive profile of the inshore sector. A complete census of the sector will be conducted in 2022 and repeated on a periodic basis (e.g. every 5 years). This census will enhance the baseline quality of inshore data for DCF/ EU MAP purposes going forward.
A73: IRL | B73: Baltic Sea, North Sea and Eastern Arctic, and North Atlantic | C73: Demersal trawlers and/or demersal seiners | D73: 10-< 12 m | F73: E | G73: Personnel Costs | H73: Questionaire | I73: C - Non-Probability Sample Survey | J73: Annual | K73: 38 | L73: sample frame too low for sampling - clustered for reporting | M73: 12 | O73: 0 | P73: 0 | Q73: 0 | R73: As part of the MS's new Inshore Fisheries Strategy, work has commenced to establish a comprehensive profile of the inshore sector. A complete census of the sector will be conducted in 2022 and repeated on a periodic basis (e.g. every 5 years). This census will enhance the baseline quality of inshore data for DCF/ EU MAP purposes going forward.
A74: IRL | B74: Baltic Sea, North Sea and Eastern Arctic, and North Atlantic | C74: Demersal trawlers and/or demersal seiners | D74: 12-< 18 m | F74: E | G74: Personnel Costs | H74: Questionaire | I74: C - Non-Probability Sample Survey | J74: Annual | K74: 38 | L74: sample frame too low for sampling - clustered for reporting | M74: 31 | O74: 0 | P74: 0 | Q74: 0 | R74: As part of the MS's new Inshore Fisheries Strategy, work has commenced to establish a comprehensive profile of the inshore sector. A complete census of the sector will be conducted in 2022 and repeated on a periodic basis (e.g. every 5 years). This census will enhance the baseline quality of inshore data for DCF/ EU MAP purposes going forward.
A75: IRL | B75: Baltic Sea, North Sea and Eastern Arctic, and North Atlantic | C75: Demersal trawlers and/or demersal seiners | D75: 18-< 24 m | F75: E | G75: Personnel Costs | H75: Questionaire | I75: C - Non-Probability Sample Survey | J75: Annual | K75: 38 | L75: sample frame too low for sampling - clustered for reporting | M75: 58 | O75: 0 | P75: 0 | Q75: 0 | R75: As part of the MS's new Inshore Fisheries Strategy, work has commenced to establish a comprehensive profile of the inshore sector. A complete census of the sector will be conducted in 2022 and repeated on a periodic basis (e.g. every 5 years). This census will enhance the baseline quality of inshore data for DCF/ EU MAP purposes going forward.
A76: IRL | B76: Baltic Sea, North Sea and Eastern Arctic, and North Atlantic | C76: Demersal trawlers and/or demersal seiners | D76: 24-< 40 m | F76: E | G76: Personnel Costs | H76: Questionaire | I76: C - Non-Probability Sample Survey | J76: Annual | K76: 38 | L76: sample frame too low for sampling - clustered for reporting | M76: 44 | O76: 0 | P76: 0 | Q76: 0 | R76: As part of the MS's new Inshore Fisheries Strategy, work has commenced to establish a comprehensive profile of the inshore sector. A complete census of the sector will be conducted in 2022 and repeated on a periodic basis (e.g. every 5 years). This census will enhance the baseline quality of inshore data for DCF/ EU MAP purposes going forward.
A77: IRL | B77: Baltic Sea, North Sea and Eastern Arctic, and North Atlantic | C77: Dredgers | D77: 0-< 10 m | F77: E | G77: Personnel Costs | H77: Questionaire/Sentinel Logbook | I77: C - Non-Probability Sample Survey | J77: Annual | K77: 38 | L77: sample frame too low for sampling - clustered for reporting | M77: 130 | O77: 0 | P77: 0 | Q77: 0 | R77: As part of the MS's new Inshore Fisheries Strategy, work has commenced to establish a comprehensive profile of the inshore sector. A complete census of the sector will be conducted in 2022 and repeated on a periodic basis (e.g. every 5 years). This census will enhance the baseline quality of inshore data for DCF/ EU MAP purposes going forward.
A78: IRL | B78: Baltic Sea, North Sea and Eastern Arctic, and North Atlantic | C78: Dredgers | D78: 10-< 12 m | E78: AREA27HOKVL1012 | F78: E | G78: Personnel Costs | H78: Questionaire | I78: C - Non-Probability Sample Survey | J78: Annual | K78: 38 | L78: sample frame too low for sampling - clustered for reporting | M78: 31 | O78: 0 | P78: 0 | Q78: 0 | R78: As part of the MS's new Inshore Fisheries Strategy, work has commenced to establish a comprehensive profile of the inshore sector. A complete census of the sector will be conducted in 2022 and repeated on a periodic basis (e.g. every 5 years). This census will enhance the baseline quality of inshore data for DCF/ EU MAP purposes going forward.
A79: IRL | B79: Baltic Sea, North Sea and Eastern Arctic, and North Atlantic | C79: Dredgers | D79: 12-< 18 m | E79: AREA27HOKVL1012 | F79: E | G79: Personnel Costs | H79: Questionaire | I79: C - Non-Probability Sample Survey | J79: Annual | K79: 38 | L79: sample frame too low for sampling - clustered for reporting | M79: 6 | N79: 0 | O79: 0 | P79: 0 | Q79: 0 | R79: As part of the MS's new Inshore Fisheries Strategy, work has commenced to establish a comprehensive profile of the inshore sector. A complete census of the sector will be conducted in 2022 and repeated on a periodic basis (e.g. every 5 years). This census will enhance the baseline quality of inshore data for DCF/ EU MAP purposes going forward.
A80: IRL | B80: Baltic Sea, North Sea and Eastern Arctic, and North Atlantic | C80: Dredgers | D80: 18-< 24 m | E80: AREA27HOKVL1012 | F80: E | G80: Personnel Costs | H80: Questionaire | I80: C - Non-Probability Sample Survey | J80: Annual | K80: 38 | L80: sample frame too low for sampling - clustered for reporting | M80: 2 | N80: 0 | O80: 0 | P80: 0 | Q80: 0 | R80: As part of the MS's new Inshore Fisheries Strategy, work has commenced to establish a comprehensive profile of the inshore sector. A complete census of the sector will be conducted in 2022 and repeated on a periodic basis (e.g. every 5 years). This census will enhance the baseline quality of inshore data for DCF/ EU MAP purposes going forward.
A81: IRL | B81: Baltic Sea, North Sea and Eastern Arctic, and North Atlantic | C81: Dredgers | D81: 24-< 40 m | E81: AREA27HOKVL1012 | F81: E | G81: Personnel Costs | H81: Questionaire | I81: C - Non-Probability Sample Survey | J81: Annual | K81: 38 | L81: sample frame too low for sampling - clustered for reporting | M81: 5 | N81: =VLOOKUP(T81,Econ,3,FALSE) ->  | O81: 0 | P81: 0 | Q81: 0 | R81: As part of the MS's new Inshore Fisheries Strategy, work has commenced to establish a comprehensive profile of the inshore sector. A complete census of the sector will be conducted in 2022 and repeated on a periodic basis (e.g. every 5 years). This census will enhance the baseline quality of inshore data for DCF/ EU MAP purposes going forward.
A82: IRL | B82: Baltic Sea, North Sea and Eastern Arctic, and North Atlantic | C82: Drift and/or fixed netters | D82: 0-< 10 m | F82: E | G82: Personnel Costs | H82: Questionaire/Sentinel Logbook | I82: C - Non-Probability Sample Survey | J82: Annual | K82: 38 | L82: sample frame too low for sampling - clustered for reporting | M82: 192 | N82: =VLOOKUP(T82,Econ,3,FALSE) ->  | O82: 0 | P82: 0 | Q82: 0 | R82: As part of the MS's new Inshore Fisheries Strategy, work has commenced to establish a comprehensive profile of the inshore sector. A complete census of the sector will be conducted in 2022 and repeated on a periodic basis (e.g. every 5 years). This census will enhance the baseline quality of inshore data for DCF/ EU MAP purposes going forward.
A83: IRL | B83: Baltic Sea, North Sea and Eastern Arctic, and North Atlantic | C83: Drift and/or fixed netters | D83: 10-< 12 m | F83: E | G83: Personnel Costs | H83: Questionaire | I83: C - Non-Probability Sample Survey | J83: Annual | K83: 38 | L83: sample frame too low for sampling - clustered for reporting | M83: 10 | N83: =VLOOKUP(T83,Econ,3,FALSE) ->  | O83: 0 | P83: 0 | Q83: 0 | R83: As part of the MS's new Inshore Fisheries Strategy, work has commenced to establish a comprehensive profile of the inshore sector. A complete census of the sector will be conducted in 2022 and repeated on a periodic basis (e.g. every 5 years). This census will enhance the baseline quality of inshore data for DCF/ EU MAP purposes going forward.
A84: IRL | B84: Baltic Sea, North Sea and Eastern Arctic, and North Atlantic | C84: Drift and/or fixed netters | D84: 12-< 18 m | E84: AREA27HOKVL1012 | F84: E | G84: Personnel Costs | H84: Questionaire | I84: C - Non-Probability Sample Survey | J84: Annual | K84: 38 | L84: sample frame too low for sampling - clustered for reporting | M84: 7 | N84: 0 | O84: 0 | P84: 0 | Q84: 0 | R84: As part of the MS's new Inshore Fisheries Strategy, work has commenced to establish a comprehensive profile of the inshore sector. A complete census of the sector will be conducted in 2022 and repeated on a periodic basis (e.g. every 5 years). This census will enhance the baseline quality of inshore data for DCF/ EU MAP purposes going forward.
A85: IRL | B85: Baltic Sea, North Sea and Eastern Arctic, and North Atlantic | C85: Drift and/or fixed netters | D85: 18-< 24 m | E85: AREA27HOKVL1012 | F85: E | G85: Personnel Costs | H85: Questionaire | I85: C - Non-Probability Sample Survey | J85: Annual | K85: 38 | L85: sample frame too low for sampling - clustered for reporting | M85: 7 | N85: =VLOOKUP(T85,Econ,3,FALSE) ->  | O85: 0 | P85: 0 | Q85: 0 | R85: As part of the MS's new Inshore Fisheries Strategy, work has commenced to establish a comprehensive profile of the inshore sector. A complete census of the sector will be conducted in 2022 and repeated on a periodic basis (e.g. every 5 years). This census will enhance the baseline quality of inshore data for DCF/ EU MAP purposes going forward.
A86: IRL | B86: Baltic Sea, North Sea and Eastern Arctic, and North Atlantic | C86: Drift and/or fixed netters | D86: 24-< 40 m | E86: AREA27HOKVL1012 | F86: E | G86: Personnel Costs | H86: Questionaire | I86: C - Non-Probability Sample Survey | J86: Annual | K86: 38 | L86: sample frame too low for sampling - clustered for reporting | M86: 1 | N86: 0 | O86: 0 | P86: 0 | Q86: 0 | R86: As part of the MS's new Inshore Fisheries Strategy, work has commenced to establish a comprehensive profile of the inshore sector. A complete census of the sector will be conducted in 2022 and repeated on a periodic basis (e.g. every 5 years). This census will enhance the baseline quality of inshore data for DCF/ EU MAP purposes going forward.
A87: IRL | B87: Baltic Sea, North Sea and Eastern Arctic, and North Atlantic | C87: Pelagic trawlers | D87: 0-< 10 m | F87: E | G87: Personnel Costs | H87: Questionaire/Sentinel Logbook | I87: C - Non-Probability Sample Survey | J87: Annual | K87: 38 | M87: 0 | N87: 0 | O87: 0 | P87: 0 | Q87: 0 | R87: No vessel in this segment for 2020
A88: IRL | B88: Baltic Sea, North Sea and Eastern Arctic, and North Atlantic | C88: Pelagic trawlers | D88: 10-< 12 m | E88: AREA27HOKVL1012 | F88: E | G88: Personnel Costs | H88: Questionaire | I88: C - Non-Probability Sample Survey | J88: Annual | K88: 38 | L88: sample frame too low for sampling - clustered for reporting | M88: 5 | N88: =VLOOKUP(T88,Econ,3,FALSE) ->  | O88: 0 | P88: 0 | Q88: 0 | R88: As part of the MS's new Inshore Fisheries Strategy, work has commenced to establish a comprehensive profile of the inshore sector. A complete census of the sector will be conducted in 2022 and repeated on a periodic basis (e.g. every 5 years). This census will enhance the baseline quality of inshore data for DCF/ EU MAP purposes going forward.
A89: IRL | B89: Baltic Sea, North Sea and Eastern Arctic, and North Atlantic | C89: Pelagic trawlers | D89: 12-< 18 m | E89: AREA27HOKVL1012 | F89: E | G89: Personnel Costs | H89: Questionaire | I89: C - Non-Probability Sample Survey | J89: Annual | K89: 38 | L89: sample frame too low for sampling - clustered for reporting | M89: 5 | N89: =VLOOKUP(T89,Econ,3,FALSE) ->  | O89: 0 | P89: 0 | Q89: 0 | R89: As part of the MS's new Inshore Fisheries Strategy, work has commenced to establish a comprehensive profile of the inshore sector. A complete census of the sector will be conducted in 2022 and repeated on a periodic basis (e.g. every 5 years). This census will enhance the baseline quality of inshore data for DCF/ EU MAP purposes going forward.
A90: IRL | B90: Baltic Sea, North Sea and Eastern Arctic, and North Atlantic | C90: Pelagic trawlers | D90: 18-< 24 m | E90: AREA27HOKVL1012 | F90: E | G90: Personnel Costs | H90: Questionaire | I90: C - Non-Probability Sample Survey | J90: Annual | K90: 38 | L90: sample frame too low for sampling - clustered for reporting | M90: 3 | N90: 0 | O90: 0 | P90: 0 | Q90: 0 | R90: As part of the MS's new Inshore Fisheries Strategy, work has commenced to establish a comprehensive profile of the inshore sector. A complete census of the sector will be conducted in 2022 and repeated on a periodic basis (e.g. every 5 years). This census will enhance the baseline quality of inshore data for DCF/ EU MAP purposes going forward.
A91: IRL | B91: Baltic Sea, North Sea and Eastern Arctic, and North Atlantic | C91: Pelagic trawlers | D91: 24-< 40 m | E91: AREA27HOKVL1012 | F91: E | G91: Personnel Costs | H91: Questionaire | I91: C - Non-Probability Sample Survey | J91: Annual | K91: 38 | L91: sample frame too low for sampling - clustered for reporting | M91: 14 | N91: =VLOOKUP(T91,Econ,3,FALSE) ->  | O91: 0 | P91: 0 | Q91: 0 | R91: As part of the MS's new Inshore Fisheries Strategy, work has commenced to establish a comprehensive profile of the inshore sector. A complete census of the sector will be conducted in 2022 and repeated on a periodic basis (e.g. every 5 years). This census will enhance the baseline quality of inshore data for DCF/ EU MAP purposes going forward.
A92: IRL | B92: Baltic Sea, North Sea and Eastern Arctic, and North Atlantic | C92: Pelagic trawlers | D92: 40 m or larger | F92: E | G92: Personnel Costs | H92: Questionaire | I92: C - Non-Probability Sample Survey | J92: Annual | K92: 38 | L92: sample frame too low for sampling - clustered for reporting | M92: 20 | N92: =VLOOKUP(T92,Econ,3,FALSE) ->  | O92: 0 | P92: 0 | Q92: 0 | R92: As part of the MS's new Inshore Fisheries Strategy, work has commenced to establish a comprehensive profile of the inshore sector. A complete census of the sector will be conducted in 2022 and repeated on a periodic basis (e.g. every 5 years). This census will enhance the baseline quality of inshore data for DCF/ EU MAP purposes going forward.
A93: IRL | B93: Baltic Sea, North Sea and Eastern Arctic, and North Atlantic | C93: Vessels using active and passive gears | D93: 10-< 12 m | F93: E | G93: Personnel Costs | H93: Questionaire | I93: C - Non-Probability Sample Survey | J93: Annual | K93: 38 | M93: 0 | N93: 0 | O93: 0 | P93: 0 | Q93: 0 | R93: As part of the MS's new Inshore Fisheries Strategy, work has commenced to establish a comprehensive profile of the inshore sector. A complete census of the sector will be conducted in 2022 and repeated on a periodic basis (e.g. every 5 years). This census will enhance the baseline quality of inshore data for DCF/ EU MAP purposes going forward.
A94: IRL | B94: Baltic Sea, North Sea and Eastern Arctic, and North Atlantic | C94: Vessels using active and passive gears | D94: 12-< 18 m | F94: E | G94: Personnel Costs | H94: Questionaire | I94: C - Non-Probability Sample Survey | J94: Annual | K94: 38 | M94: 0 | N94: 0 | O94: 0 | P94: 0 | Q94: 0 | R94: As part of the MS's new Inshore Fisheries Strategy, work has commenced to establish a comprehensive profile of the inshore sector. A complete census of the sector will be conducted in 2022 and repeated on a periodic basis (e.g. every 5 years). This census will enhance the baseline quality of inshore data for DCF/ EU MAP purposes going forward.
A95: IRL | B95: Baltic Sea, North Sea and Eastern Arctic, and North Atlantic | C95: Vessels using hooks | D95: 0-< 10 m | F95: E | G95: Personnel Costs | H95: Questionaire/Sentinel Logbook | I95: C - Non-Probability Sample Survey | J95: Annual | K95: 38 | M95: 57 | N95: =VLOOKUP(T95,Econ,3,FALSE) ->  | O95: 0 | P95: 0 | Q95: 0 | R95: As part of the MS's new Inshore Fisheries Strategy, work has commenced to establish a comprehensive profile of the inshore sector. A complete census of the sector will be conducted in 2022 and repeated on a periodic basis (e.g. every 5 years). This census will enhance the baseline quality of inshore data for DCF/ EU MAP purposes going forward.
A96: IRL | B96: Baltic Sea, North Sea and Eastern Arctic, and North Atlantic | C96: Vessels using hooks | D96: 10-< 12 m | E96: AREA27HOKVL1012 | F96: E | G96: Personnel Costs | H96: Questionaire | I96: C - Non-Probability Sample Survey | J96: Annual | K96: 38 | L96: sample frame too low for sampling - clustered for reporting | M96: 10 | N96: =VLOOKUP(T96,Econ,3,FALSE) ->  | O96: 0 | P96: 0 | Q96: 0 | R96: As part of the MS's new Inshore Fisheries Strategy, work has commenced to establish a comprehensive profile of the inshore sector. A complete census of the sector will be conducted in 2022 and repeated on a periodic basis (e.g. every 5 years). This census will enhance the baseline quality of inshore data for DCF/ EU MAP purposes going forward.
A97: IRL | B97: Baltic Sea, North Sea and Eastern Arctic, and North Atlantic | C97: Vessels using hooks | D97: 12-< 18 m | E97: AREA27HOKVL1012 | F97: E | G97: Personnel Costs | H97: Questionaire | I97: C - Non-Probability Sample Survey | J97: Annual | K97: 38 | L97: sample frame too low for sampling - clustered for reporting | M97: 1 | N97: 0 | O97: 0 | P97: 0 | Q97: 0 | R97: As part of the MS's new Inshore Fisheries Strategy, work has commenced to establish a comprehensive profile of the inshore sector. A complete census of the sector will be conducted in 2022 and repeated on a periodic basis (e.g. every 5 years). This census will enhance the baseline quality of inshore data for DCF/ EU MAP purposes going forward.
A98: IRL | B98: Baltic Sea, North Sea and Eastern Arctic, and North Atlantic | C98: Vessels using Pots and/or traps | D98: 0-< 10 m | F98: E | G98: Personnel Costs | H98: Questionaire/Sentinel Logbook | I98: C - Non-Probability Sample Survey | J98: Annual | K98: 38 | L98: sample frame too low for sampling - clustered for reporting | M98: 577 | N98: =VLOOKUP(T98,Econ,3,FALSE) ->  | O98: 0 | P98: 0 | Q98: 0 | R98: As part of the MS's new Inshore Fisheries Strategy, work has commenced to establish a comprehensive profile of the inshore sector. A complete census of the sector will be conducted in 2022 and repeated on a periodic basis (e.g. every 5 years). This census will enhance the baseline quality of inshore data for DCF/ EU MAP purposes going forward.
A99: IRL | B99: Baltic Sea, North Sea and Eastern Arctic, and North Atlantic | C99: Vessels using Pots and/or traps | D99: 10-< 12 m | F99: E | G99: Personnel Costs | H99: Questionaire | I99: C - Non-Probability Sample Survey | J99: Annual | K99: 38 | L99: sample frame too low for sampling - clustered for reporting | M99: 80 | N99: =VLOOKUP(T99,Econ,3,FALSE) ->  | O99: 0 | P99: 0 | Q99: 0 | R99: As part of the MS's new Inshore Fisheries Strategy, work has commenced to establish a comprehensive profile of the inshore sector. A complete census of the sector will be conducted in 2022 and repeated on a periodic basis (e.g. every 5 years). This census will enhance the baseline quality of inshore data for DCF/ EU MAP purposes going forward.
A100: IRL | B100: Baltic Sea, North Sea and Eastern Arctic, and North Atlantic | C100: Vessels using Pots and/or traps | D100: 12-< 18 m | E100: AREA27FPO1218 | F100: E | G100: Personnel Costs | H100: Questionaire | I100: C - Non-Probability Sample Survey | J100: Annual | K100: 38 | L100: sample frame too low for sampling - clustered for reporting | M100: 21 | N100: =VLOOKUP(T100,Econ,3,FALSE) ->  | O100: 0 | P100: 0 | Q100: 0 | R100: As part of the MS's new Inshore Fisheries Strategy, work has commenced to establish a comprehensive profile of the inshore sector. A complete census of the sector will be conducted in 2022 and repeated on a periodic basis (e.g. every 5 years). This census will enhance the baseline quality of inshore data for DCF/ EU MAP purposes going forward.
A101: IRL | B101: Baltic Sea, North Sea and Eastern Arctic, and North Atlantic | C101: Vessels using Pots and/or traps | D101: 24-< 40 m | E101: AREA27FPO1218 | F101: E | G101: Personnel Costs | H101: Questionaire | I101: C - Non-Probability Sample Survey | J101: Annual | K101: 38 | L101: sample frame too low for sampling - clustered for reporting | M101: 2 | N101: 0 | O101: 0 | P101: 0 | Q101: 0 | R101: As part of the MS's new Inshore Fisheries Strategy, work has commenced to establish a comprehensive profile of the inshore sector. A complete census of the sector will be conducted in 2022 and repeated on a periodic basis (e.g. every 5 years). This census will enhance the baseline quality of inshore data for DCF/ EU MAP purposes going forward.
A102: IRL | B102: Baltic Sea, North Sea and Eastern Arctic, and North Atlantic | C102: Beam trawlers | D102: 18-< 24 m | E102: AREA27HOKVL1012 | F102: E | G102: Value of Unpaid Labour | H102: Questionaire | I102: C - Non-Probability Sample Survey | J102: Annual | K102: 38 | L102: sample frame too low for sampling - clustered for reporting | M102: 5 | N102: 0 | O102: 0 | P102: 0 | Q102: 0 | R102: As part of the MS's new Inshore Fisheries Strategy, work has commenced to establish a comprehensive profile of the inshore sector. A complete census of the sector will be conducted in 2022 and repeated on a periodic basis (e.g. every 5 years). This census will enhance the baseline quality of inshore data for DCF/ EU MAP purposes going forward.
A103: IRL | B103: Baltic Sea, North Sea and Eastern Arctic, and North Atlantic | C103: Beam trawlers | D103: 24-< 40 m | E103: AREA27HOKVL1012 | F103: E | G103: Value of Unpaid Labour | H103: Questionaire | I103: C - Non-Probability Sample Survey | J103: Annual | K103: 38 | L103: sample frame too low for sampling - clustered for reporting | M103: 9 | N103: =VLOOKUP(T103,Emp,3,FALSE) ->  | O103: 0 | P103: 0 | Q103: 0 | R103: As part of the MS's new Inshore Fisheries Strategy, work has commenced to establish a comprehensive profile of the inshore sector. A complete census of the sector will be conducted in 2022 and repeated on a periodic basis (e.g. every 5 years). This census will enhance the baseline quality of inshore data for DCF/ EU MAP purposes going forward.
A104: IRL | B104: Baltic Sea, North Sea and Eastern Arctic, and North Atlantic | C104: Demersal trawlers and/or demersal seiners | D104: 0-< 10 m | F104: E | G104: Value of Unpaid Labour | H104: Questionaire/Sentinel Logbook | I104: C - Non-Probability Sample Survey | J104: Annual | K104: 38 | L104: sample frame too low for sampling - clustered for reporting | M104: 45 | O104: 0 | P104: 0 | Q104: 0 | R104: As part of the MS's new Inshore Fisheries Strategy, work has commenced to establish a comprehensive profile of the inshore sector. A complete census of the sector will be conducted in 2022 and repeated on a periodic basis (e.g. every 5 years). This census will enhance the baseline quality of inshore data for DCF/ EU MAP purposes going forward.
A105: IRL | B105: Baltic Sea, North Sea and Eastern Arctic, and North Atlantic | C105: Demersal trawlers and/or demersal seiners | D105: 10-< 12 m | F105: E | G105: Value of Unpaid Labour | H105: Questionaire | I105: C - Non-Probability Sample Survey | J105: Annual | K105: 38 | L105: sample frame too low for sampling - clustered for reporting | M105: 12 | O105: 0 | P105: 0 | Q105: 0 | R105: As part of the MS's new Inshore Fisheries Strategy, work has commenced to establish a comprehensive profile of the inshore sector. A complete census of the sector will be conducted in 2022 and repeated on a periodic basis (e.g. every 5 years). This census will enhance the baseline quality of inshore data for DCF/ EU MAP purposes going forward.
A106: IRL | B106: Baltic Sea, North Sea and Eastern Arctic, and North Atlantic | C106: Demersal trawlers and/or demersal seiners | D106: 12-< 18 m | F106: E | G106: Value of Unpaid Labour | H106: Questionaire | I106: C - Non-Probability Sample Survey | J106: Annual | K106: 38 | L106: sample frame too low for sampling - clustered for reporting | M106: 31 | O106: 0 | P106: 0 | Q106: 0 | R106: As part of the MS's new Inshore Fisheries Strategy, work has commenced to establish a comprehensive profile of the inshore sector. A complete census of the sector will be conducted in 2022 and repeated on a periodic basis (e.g. every 5 years). This census will enhance the baseline quality of inshore data for DCF/ EU MAP purposes going forward.
A107: IRL | B107: Baltic Sea, North Sea and Eastern Arctic, and North Atlantic | C107: Demersal trawlers and/or demersal seiners | D107: 18-< 24 m | F107: E | G107: Value of Unpaid Labour | H107: Questionaire | I107: C - Non-Probability Sample Survey | J107: Annual | K107: 38 | L107: sample frame too low for sampling - clustered for reporting | M107: 58 | O107: 0 | P107: 0 | Q107: 0 | R107: As part of the MS's new Inshore Fisheries Strategy, work has commenced to establish a comprehensive profile of the inshore sector. A complete census of the sector will be conducted in 2022 and repeated on a periodic basis (e.g. every 5 years). This census will enhance the baseline quality of inshore data for DCF/ EU MAP purposes going forward.
A108: IRL | B108: Baltic Sea, North Sea and Eastern Arctic, and North Atlantic | C108: Demersal trawlers and/or demersal seiners | D108: 24-< 40 m | F108: E | G108: Value of Unpaid Labour | H108: Questionaire | I108: C - Non-Probability Sample Survey | J108: Annual | K108: 38 | L108: sample frame too low for sampling - clustered for reporting | M108: 44 | O108: 0 | P108: 0 | Q108: 0 | R108: As part of the MS's new Inshore Fisheries Strategy, work has commenced to establish a comprehensive profile of the inshore sector. A complete census of the sector will be conducted in 2022 and repeated on a periodic basis (e.g. every 5 years). This census will enhance the baseline quality of inshore data for DCF/ EU MAP purposes going forward.
A109: IRL | B109: Baltic Sea, North Sea and Eastern Arctic, and North Atlantic | C109: Dredgers | D109: 0-< 10 m | F109: E | G109: Value of Unpaid Labour | H109: Questionaire/Sentinel Logbook | I109: C - Non-Probability Sample Survey | J109: Annual | K109: 38 | L109: sample frame too low for sampling - clustered for reporting | M109: 130 | O109: 0 | P109: 0 | Q109: 0 | R109: As part of the MS's new Inshore Fisheries Strategy, work has commenced to establish a comprehensive profile of the inshore sector. A complete census of the sector will be conducted in 2022 and repeated on a periodic basis (e.g. every 5 years). This census will enhance the baseline quality of inshore data for DCF/ EU MAP purposes going forward.
A110: IRL | B110: Baltic Sea, North Sea and Eastern Arctic, and North Atlantic | C110: Dredgers | D110: 10-< 12 m | E110: AREA27HOKVL1012 | F110: E | G110: Value of Unpaid Labour | H110: Questionaire | I110: C - Non-Probability Sample Survey | J110: Annual | K110: 38 | L110: sample frame too low for sampling - clustered for reporting | M110: 31 | O110: 0 | P110: 0 | Q110: 0 | R110: As part of the MS's new Inshore Fisheries Strategy, work has commenced to establish a comprehensive profile of the inshore sector. A complete census of the sector will be conducted in 2022 and repeated on a periodic basis (e.g. every 5 years). This census will enhance the baseline quality of inshore data for DCF/ EU MAP purposes going forward.
A111: IRL | B111: Baltic Sea, North Sea and Eastern Arctic, and North Atlantic | C111: Dredgers | D111: 12-< 18 m | E111: AREA27HOKVL1012 | F111: E | G111: Value of Unpaid Labour | H111: Questionaire | I111: C - Non-Probability Sample Survey | J111: Annual | K111: 38 | L111: sample frame too low for sampling - clustered for reporting | M111: 6 | N111: 0 | O111: 0 | P111: 0 | Q111: 0 | R111: As part of the MS's new Inshore Fisheries Strategy, work has commenced to establish a comprehensive profile of the inshore sector. A complete census of the sector will be conducted in 2022 and repeated on a periodic basis (e.g. every 5 years). This census will enhance the baseline quality of inshore data for DCF/ EU MAP purposes going forward.
A112: IRL | B112: Baltic Sea, North Sea and Eastern Arctic, and North Atlantic | C112: Dredgers | D112: 18-< 24 m | E112: AREA27HOKVL1012 | F112: E | G112: Value of Unpaid Labour | H112: Questionaire | I112: C - Non-Probability Sample Survey | J112: Annual | K112: 38 | L112: sample frame too low for sampling - clustered for reporting | M112: 2 | N112: 0 | O112: 0 | P112: 0 | Q112: 0 | R112: As part of the MS's new Inshore Fisheries Strategy, work has commenced to establish a comprehensive profile of the inshore sector. A complete census of the sector will be conducted in 2022 and repeated on a periodic basis (e.g. every 5 years). This census will enhance the baseline quality of inshore data for DCF/ EU MAP purposes going forward.
A113: IRL | B113: Baltic Sea, North Sea and Eastern Arctic, and North Atlantic | C113: Dredgers | D113: 24-< 40 m | E113: AREA27HOKVL1012 | F113: E | G113: Value of Unpaid Labour | H113: Questionaire | I113: C - Non-Probability Sample Survey | J113: Annual | K113: 38 | L113: sample frame too low for sampling - clustered for reporting | M113: 5 | N113: =VLOOKUP(T113,Emp,3,FALSE) ->  | O113: 0 | P113: 0 | Q113: 0 | R113: As part of the MS's new Inshore Fisheries Strategy, work has commenced to establish a comprehensive profile of the inshore sector. A complete census of the sector will be conducted in 2022 and repeated on a periodic basis (e.g. every 5 years). This census will enhance the baseline quality of inshore data for DCF/ EU MAP purposes going forward.
